Workbook

Sheet Pricing model
G2: AER pricing model
G3: =DNSP&" "&forecastyear -> United Energy 2024–25
G4: Electicity Distribution Network Service Provider
C9: Key: | G9: Version Record | H9: Date | I9: Description
E10: Final determination AER input | G10: 0.1 | H10: 2021-08-01 | I10: Draft version of new model - including inputs and calculations worksheets, as well as lookup worksheet
E11: Annual AER input | G11: 0.2 | H11: 2021-10-01 | I11: Draft version of full model for feedback
E12: Updated AER input (e.g. placeholder updated for final submission) | G12: 0.3 | H12: 2021-11-01 | I12: Final model for DNSP QA
E13: Annual DNSP input | G13: 1 | H13: 2021-12-01 | I13: Final model for use in 2022/23 process
E14: Updated DNSP input (e.g. placeholder updated for final submission) | G14: 1.1 | H14: 2022-03-01 | I14: Updated for issues arising in 2022/23 pre-lodgement engagement proces
E15: Calculation | G15: 1.2 | H15: 2022-11-01 | I15: Final updated model (from broader stakeholder consultation and revisions) for DNSP QA
E16: N/A | G16: 2 | H16: 2022-12-01 | I16: Final model for use in 2023/24 process
E17: Overrides for cost movement calculations | G17: 2.1 | H17: 2023-12-01 | I17: Updated presentation of outputs and cost movements mechanisms.
G18: 3 | H18: 2024-04-01 | I18: Final model updated for 2024–29 determinations for use in 2024/25 initial pricing where applicable
C20: Contents
C22: Rules | E22: Provides Distribution Pricing Rules
C23: Mechanisms | E23: Provides applicable mechanisms
C24: Outputs
C25: ='Outputs>>'!C7 -> Tariff schedule | E25: ='Outputs>>'!D7 -> Provides schedules of network prices
C26: Output report | E26: Provides output report including compliance, validations, trend analysis, and quantity forecast analysis
C27: Quantity forecasts | E27: Provides quantity forecast analysis and charts
C28: ='Outputs>>'!C10 -> Compliance | E28: ='Outputs>>'!D10 -> Compliance checks against total allowable revenues, unders/overs closing balances, side constraint thresholds, trial tariff thresholds, and standalone and avoidable costs.
C29: ='Outputs>>'!C11 -> Price comparisons (indicative) | E29: ='Outputs>>'!D11 -> Compliance checks of proposed prices against relevant indicative prices from previous indicative schedule
C30: Price comparisons (current) | E30: Analysis of proposed prices against current prices
C31: ='Outputs>>'!C13 -> Tables | E31: ='Outputs>>'!D13 -> Provides output tables for use in pricing proposal documents
C32: ='Outputs>>'!C14 -> Cost movements | E32: ='Outputs>>'!D14 -> Provides cost movements summaries
C33: ='Outputs>>'!C15 -> Charts | E33: ='Outputs>>'!D15 -> Provides output charts for revenue and cost movements (some editing of charts may be necessary for presentational issues)
C34: Inputs | E34: Provides links and guide to inputs required at each stage in process
C35: ='Inputs>>'!C7 -> General | E35: ='Inputs>>'!D7 -> Inputs NSP name, regulatory years for the t, t-1, and t-2 years, inflation, day counts, etc.
C36: ='Inputs>>'!C8 -> Financial | E36: ='Inputs>>'!D8 -> Inputs the WACC, x-factors, allowed revenues, and annual adjustments
C37: ='Inputs>>'!C9 -> Actuals | E37: ='Inputs>>'!D9 -> Inputs actual revenues, demand, and customer numbers
C38: ='Inputs>>'!C10 -> Metering | E38: ='Inputs>>'!D10 -> Inputs relating to metering (prices for cost movements for non-Vic, prices and quantities for revenue caps for Vic)
C39: ='Inputs>>'!C11 -> Tariffs | E39: ='Inputs>>'!D11 -> Inputs tariff information including charging components and tariff classes
C40: ='Inputs>>'!C12 -> Quantities | E40: ='Inputs>>'!D12 -> Inputs forecast, estimated, and actual quantities
C41: ='Inputs>>'!C13 -> Proposed prices input | E41: ='Inputs>>'!D13 -> Inputs proposed prices for SCS
C42: Proposed prices control input | E42: Inputs controls for proposed prices for SCS as a function of current prices
C43: ='Inputs>>'!C15 -> Historical prices | E43: ='Inputs>>'!D15 -> Inputs historical prices for SCS for calculating estimated and actual revenues
C44: ='Inputs>>'!C16 -> Indicative prices | E44: ='Inputs>>'!D16 -> Inputs indicative tariffs to update the schedule for the remainder of the regulatory control period (updates previous schedule for only remaining years)
C45: ='Inputs>>'!C18 -> Trial tariffs | E45: ='Inputs>>'!D18 -> Inputs trial tariffs and relevant revenues (both forecast and historical)
C46: ='Inputs>>'!C19 -> Tariff costs | E46: ='Inputs>>'!D19 -> Inputs cost information related to standalone and avoidable costs
C47: Calculations
C48: ='Calculations>>'!C7 -> Total allowable revenue | E48: ='Calculations>>'!D7 -> Calculates total allowable revenues
C49: ='Calculations>>'!C8 -> Accounts | E49: ='Calculations>>'!D8 -> Calculates under/over-recovery and related data
C50: ='Calculations>>'!C9 -> Revenue summary | E50: ='Calculations>>'!D9 -> Totals revenues for each tariff, charging component, and tariff class
C51: Proposed prices controls | E51: Identifies applicable controls for each price
C52: Proposed prices | E52: Proposed prices for forecast year, sourced from inputs or calculated using current prices and controls, as relevant
C53: ='Calculations>>'!C12 -> Proposed revenue | E53: ='Calculations>>'!D12 -> Calculates revenues for the t year for each tariff component
C54: ='Calculations>>'!C13 -> Historical revenue | E54: ='Calculations>>'!D13 -> Calculates revenues for the t-1 and t-2 years for each tariff component
C55: ='Calculations>>'!C14 -> Side constraints revenue | E55: ='Calculations>>'!D14 -> Calculates permissable percentage and revenue for side constraint mechanism
C56: ='Calculations>>'!C15 -> Total quantities | E56: ='Calculations>>'!D15 -> Calculates demand for each charging component, tariff, and tariff class
C57: ='Calculations>>'!C16 -> Movements | E57: ='Calculations>>'!D16 -> Calculates network costs and consumption profiles for each residential and small business tariff
C58: Lookups | E58: Provides lookups for use throughout the model
C59: Model update log | E59: Provides log of updates made to the model template (rather than changes between preliminary and final model submissions)
C61: Changelog (to detail completion of inputs, and any changes to inputs)
C63: Date | E63: Description
B78: End

Sheet Outputs>>
B1: ='Pricing model'!G2&" - "&'Pricing model'!G3 -> AER pricing model - United Energy 2024–25
B2: Outputs
B4: Model index
C6: Sheet Name | D6: Sheet Description
C7: Tariff schedule | D7: Provides schedules of network prices
C8: Output report | D8: Provides output report including compliance, validations, trend analysis, and quantity forecast analysis
C9: Quantity forecasts | D9: Provides quantity forecast analysis and charts
C10: Compliance | D10: Compliance checks against total allowable revenues, unders/overs closing balances, side constraint thresholds, trial tariff thresholds, and standalone and avoidable costs.
C11: Price comparisons (indicative) | D11: Compliance checks of proposed prices against relevant indicative prices from previous indicative schedule
C12: Price comparisons (current) | D12: Analysis of proposed prices against current prices
C13: Tables | D13: Provides output tables for use in pricing proposal documents
C14: Cost movements | D14: Provides cost movements summaries
C15: Charts | D15: Provides output charts for revenue and cost movements (some editing of charts may be necessary for presentational issues)
B17: End

Sheet Tariff schedule
B1: ='Outputs>>'!B1 -> AER pricing model - United Energy 2024–25 | I1: Back to Index
B2: ='Outputs>>'!C7 -> Tariff schedule | L2: ALL PRICES ARE EXCLUDING GST | AD2: VALIDATION
B3: ='Outputs>>'!D7 -> Provides schedules of network prices | AD3: =IF(COUNTIF(AD5:AD813,"CHECK")>0,"CHECK","OK") -> OK
B5: ="Tariff schedule 1 | "&forecastyear&" Metering prices (Vic only)" -> Tariff schedule 1 | 2024–25 Metering prices (Vic only) | I5: =forecastyear -> 2024–25
C7: =Metering!C42 -> Single phase | I7: =INDEX(Metering!$N42:$R42,1,MATCH(forecastyear,Metering!$N$39:$R$39,0)) -> 48.2 | AD7: =IF(_xlfn.ISFORMULA(I7),"OK","CHECK") -> OK
C8: =Metering!C43 -> 1 phase with contactor | I8: =INDEX(Metering!$N43:$R43,1,MATCH(forecastyear,Metering!$N$39:$R$39,0)) -> 48.2 | AD8: OK
C9: =Metering!C44 -> 3 phase DC | I9: =INDEX(Metering!$N44:$R44,1,MATCH(forecastyear,Metering!$N$39:$R$39,0)) -> 54.34 | AD9: OK
C10: =Metering!C45 -> 3 phase CT | I10: =INDEX(Metering!$N45:$R45,1,MATCH(forecastyear,Metering!$N$39:$R$39,0)) -> 57.63 | AD10: OK
C11: =Metering!C46 -> 0 | I11: =INDEX(Metering!$N46:$R46,1,MATCH(forecastyear,Metering!$N$39:$R$39,0)) -> 0 | AD11: OK
C12: =Metering!C47 -> 0 | I12: =INDEX(Metering!$N47:$R47,1,MATCH(forecastyear,Metering!$N$39:$R$39,0)) -> 0 | AD12: OK
C13: =Metering!C48 -> 0 | I13: =INDEX(Metering!$N48:$R48,1,MATCH(forecastyear,Metering!$N$39:$R$39,0)) -> 0 | AD13: OK
B16: ="Tariff schedule 2 | "&forecastyear&" VDO tariffs" -> Tariff schedule 2 | 2024–25 VDO tariffs | D16: =D83 -> Tariff class | E16: =E83 -> Code | F16: =F83 -> Other identifier | G16: =G83 -> Other identifier | I16: =I83 -> Fixed | J16: =J83 -> Anytime | K16: Peak | L16: Off-peak | M16: Summer Dmd | N16: Non-sum. Dmd | O16: Rolling Dmd | P16: Incentive Dmd | Q16: Saver | R16: Export | S16: Critical peak | T16: Rolling Peak Dmd | U16: 0 | V16: 0 | W16: 0 | X16: 0 | Y16: 0 | Z16: 0 | AA16: 0 | AB16: 0 | AC16: 0 | AD16: 0 | AE16: 0 | AF16: 0 | AG16: 0 | AH16: 0 | AI16: 0 | AJ16: 0 | AK16: 0 | AL16: 0 | AM16: 0 | AN16: 0 | AO16: 0 | AP16: 0 | AQ16: 0 | AR16: 0
I17: =I84 -> cents/day | J17: cents/kWh | K17: cents/kWh | L17: cents/kWh | M17: cents/kW/day | N17: cents/kW/day | O17: cents/kVA/day | P17: cents/kVA/day | Q17: cents/kWh | R17: cents/kWh | S17: cents/kWh | T17: $/kW/month | AC17: 0 | AD17: 0 | AE17: 0 | AF17: 0 | AG17: 0 | AH17: 0 | AI17: 0 | AJ17: 0 | AK17: 0 | AL17: 0 | AM17: 0 | AN17: 0 | AO17: 0 | AP17: 0 | AQ17: 0 | AR17: 0
C18: =C85 -> Total network prices
C19: =_xlfn.IFNA(INDEX(Tariffs!$C$46:$C$120,MATCH(VDO!D8,Tariffs!$I$46:$I$120,0)),0) -> Residential Single Rate | D19: =_xlfn.IFNA(INDEX(Tariffs!$D$46:$D$120,MATCH(VDO!D8,Tariffs!$I$46:$I$120,0)),0) -> Residential | E19: =_xlfn.IFNA(INDEX(Tariffs!$E$46:$E$120,MATCH(VDO!D8,Tariffs!$I$46:$I$120,0)),0) -> LVS1R | F19: =_xlfn.IFNA(INDEX(Tariffs!$F$46:$F$120,MATCH(VDO!D8,Tariffs!$I$46:$I$120,0)),0) -> 0 | G19: =_xlfn.IFNA(INDEX(Tariffs!$G$46:$G$120,MATCH(VDO!D8,Tariffs!$I$46:$I$120,0)),0) -> 0 | H19: =IF(C19=0,0,MATCH(C19,$C$86:$C$320,0)) -> 1 | I19: =IF($H19=0,0,INDEX(I$86:I$160,$H19)) -> 26.02 | J19: =IF($H19=0,0,INDEX(J$86:J$160,$H19)) -> 9.25 | K19: =IF($H19=0,0,INDEX(K$86:K$160,$H19)) -> 0 | L19: =IF($H19=0,0,INDEX(L$86:L$160,$H19)) -> 0 | M19: =IF($H19=0,0,INDEX(M$86:M$160,$H19)) -> 0 | N19: =IF($H19=0,0,INDEX(N$86:N$160,$H19)) -> 0 | O19: =IF($H19=0,0,INDEX(O$86:O$160,$H19)) -> 0 | P19: =IF($H19=0,0,INDEX(P$86:P$160,$H19)) -> 0 | Q19: =IF($H19=0,0,INDEX(Q$86:Q$160,$H19)) -> 0 | R19: =IF($H19=0,0,INDEX(R$86:R$160,$H19)) -> 0 | S19: =IF($H19=0,0,INDEX(S$86:S$160,$H19)) -> 0 | T19: =IF($H19=0,0,INDEX(T$86:T$160,$H19)) -> 0 | U19: =IF($H19=0,0,INDEX(U$86:U$160,$H19)) -> 0 | V19: =IF($H19=0,0,INDEX(V$86:V$160,$H19)) -> 0 | W19: =IF($H19=0,0,INDEX(W$86:W$160,$H19)) -> 0 | X19: =IF($H19=0,0,INDEX(X$86:X$160,$H19)) -> 0 | Y19: =IF($H19=0,0,INDEX(Y$86:Y$160,$H19)) -> 0 | Z19: =IF($H19=0,0,INDEX(Z$86:Z$160,$H19)) -> 0 | AA19: =IF($H19=0,0,INDEX(AA$86:AA$160,$H19)) -> 0 | AB19: =IF($H19=0,0,INDEX(AB$86:AB$160,$H19)) -> 0 | AD19: =IF(SUMPRODUCT(--_xlfn.ISFORMULA(C19:AB19))=26,"OK","CHECK") -> OK | AE19: =IF($H19=0,0,INDEX(AE$86:AE$320,$H19)) -> 0 | AF19: =IF($H19=0,0,INDEX(AF$86:AF$320,$H19)) -> 0 | AG19: =IF($H19=0,0,INDEX(AG$86:AG$320,$H19)) -> 0 | AH19: =IF($H19=0,0,INDEX(AH$86:AH$320,$H19)) -> 0 | AI19: =IF($H19=0,0,INDEX(AI$86:AI$320,$H19)) -> 0 | AJ19: =IF($H19=0,0,INDEX(AJ$86:AJ$320,$H19)) -> 0 | AK19: =IF($H19=0,0,INDEX(AK$86:AK$320,$H19)) -> 0 | AL19: =IF($H19=0,0,INDEX(AL$86:AL$320,$H19)) -> 0 | AM19: =IF($H19=0,0,INDEX(AM$86:AM$320,$H19)) -> 0 | AN19: =IF($H19=0,0,INDEX(AN$86:AN$320,$H19)) -> 0 | AO19: =IF($H19=0,0,INDEX(AO$86:AO$320,$H19)) -> 0 | AP19: =IF($H19=0,0,INDEX(AP$86:AP$320,$H19)) -> 0 | AQ19: =IF($H19=0,0,INDEX(AQ$86:AQ$320,$H19)) -> 0 | AR19: =IF($H19=0,0,INDEX(AR$86:AR$320,$H19)) -> 0
C20: =_xlfn.IFNA(INDEX(Tariffs!$C$46:$C$120,MATCH(VDO!D9,Tariffs!$I$46:$I$120,0)),0) -> Residential ToU | D20: =_xlfn.IFNA(INDEX(Tariffs!$D$46:$D$120,MATCH(VDO!D9,Tariffs!$I$46:$I$120,0)),0) -> Residential | E20: =_xlfn.IFNA(INDEX(Tariffs!$E$46:$E$120,MATCH(VDO!D9,Tariffs!$I$46:$I$120,0)),0) -> URTOU | F20: =_xlfn.IFNA(INDEX(Tariffs!$F$46:$F$120,MATCH(VDO!D9,Tariffs!$I$46:$I$120,0)),0) -> 0 | G20: =_xlfn.IFNA(INDEX(Tariffs!$G$46:$G$120,MATCH(VDO!D9,Tariffs!$I$46:$I$120,0)),0) -> 0 | H20: =IF(C20=0,0,MATCH(C20,$C$86:$C$320,0)) -> 2 | I20: =IF($H20=0,0,INDEX(I$86:I$160,$H20)) -> 26.02 | J20: =IF($H20=0,0,INDEX(J$86:J$160,$H20)) -> 0 | K20: =IF($H20=0,0,INDEX(K$86:K$160,$H20)) -> 17.39 | L20: =IF($H20=0,0,INDEX(L$86:L$160,$H20)) -> 4.33 | M20: =IF($H20=0,0,INDEX(M$86:M$160,$H20)) -> 0 | N20: =IF($H20=0,0,INDEX(N$86:N$160,$H20)) -> 0 | O20: =IF($H20=0,0,INDEX(O$86:O$160,$H20)) -> 0 | P20: =IF($H20=0,0,INDEX(P$86:P$160,$H20)) -> 0 | Q20: =IF($H20=0,0,INDEX(Q$86:Q$160,$H20)) -> 0 | R20: =IF($H20=0,0,INDEX(R$86:R$160,$H20)) -> 0 | S20: =IF($H20=0,0,INDEX(S$86:S$160,$H20)) -> 0 | T20: =IF($H20=0,0,INDEX(T$86:T$160,$H20)) -> 0 | U20: =IF($H20=0,0,INDEX(U$86:U$160,$H20)) -> 0 | V20: =IF($H20=0,0,INDEX(V$86:V$160,$H20)) -> 0 | W20: =IF($H20=0,0,INDEX(W$86:W$160,$H20)) -> 0 | X20: =IF($H20=0,0,INDEX(X$86:X$160,$H20)) -> 0 | Y20: =IF($H20=0,0,INDEX(Y$86:Y$160,$H20)) -> 0 | Z20: =IF($H20=0,0,INDEX(Z$86:Z$160,$H20)) -> 0 | AA20: =IF($H20=0,0,INDEX(AA$86:AA$160,$H20)) -> 0 | AB20: =IF($H20=0,0,INDEX(AB$86:AB$160,$H20)) -> 0 | AD20: =IF(SUMPRODUCT(--_xlfn.ISFORMULA(C20:AB20))=26,"OK","CHECK") -> OK | AE20: =IF($H20=0,0,INDEX(AE$86:AE$320,$H20)) -> 0 | AF20: =IF($H20=0,0,INDEX(AF$86:AF$320,$H20)) -> 0 | AG20: =IF($H20=0,0,INDEX(AG$86:AG$320,$H20)) -> 0 | AH20: =IF($H20=0,0,INDEX(AH$86:AH$320,$H20)) -> 0 | AI20: =IF($H20=0,0,INDEX(AI$86:AI$320,$H20)) -> 0 | AJ20: =IF($H20=0,0,INDEX(AJ$86:AJ$320,$H20)) -> 0 | AK20: =IF($H20=0,0,INDEX(AK$86:AK$320,$H20)) -> 0 | AL20: =IF($H20=0,0,INDEX(AL$86:AL$320,$H20)) -> 0 | AM20: =IF($H20=0,0,INDEX(AM$86:AM$320,$H20)) -> 0 | AN20: =IF($H20=0,0,INDEX(AN$86:AN$320,$H20)) -> 0 | AO20: =IF($H20=0,0,INDEX(AO$86:AO$320,$H20)) -> 0 | AP20: =IF($H20=0,0,INDEX(AP$86:AP$320,$H20)) -> 0 | AQ20: =IF($H20=0,0,INDEX(AQ$86:AQ$320,$H20)) -> 0 | AR20: =IF($H20=0,0,INDEX(AR$86:AR$320,$H20)) -> 0
C21: =_xlfn.IFNA(INDEX(Tariffs!$C$46:$C$120,MATCH(VDO!D10,Tariffs!$I$46:$I$120,0)),0) -> Dedicated Circuit | D21: =_xlfn.IFNA(INDEX(Tariffs!$D$46:$D$120,MATCH(VDO!D10,Tariffs!$I$46:$I$120,0)),0) -> Residential | E21: =_xlfn.IFNA(INDEX(Tariffs!$E$46:$E$120,MATCH(VDO!D10,Tariffs!$I$46:$I$120,0)),0) -> LVDed | F21: =_xlfn.IFNA(INDEX(Tariffs!$F$46:$F$120,MATCH(VDO!D10,Tariffs!$I$46:$I$120,0)),0) -> 0 | G21: =_xlfn.IFNA(INDEX(Tariffs!$G$46:$G$120,MATCH(VDO!D10,Tariffs!$I$46:$I$120,0)),0) -> 0 | H21: 4 | I21: =IF($H21=0,0,INDEX(I$86:I$160,$H21)) -> 0 | J21: =IF($H21=0,0,INDEX(J$86:J$160,$H21)) -> 0 | K21: =IF($H21=0,0,INDEX(K$86:K$160,$H21)) -> 0 | L21: =IF($H21=0,0,INDEX(L$86:L$160,$H21)) -> 2.54 | M21: =IF($H21=0,0,INDEX(M$86:M$160,$H21)) -> 0 | N21: =IF($H21=0,0,INDEX(N$86:N$160,$H21)) -> 0 | O21: =IF($H21=0,0,INDEX(O$86:O$160,$H21)) -> 0 | P21: =IF($H21=0,0,INDEX(P$86:P$160,$H21)) -> 0 | Q21: =IF($H21=0,0,INDEX(Q$86:Q$160,$H21)) -> 0 | R21: =IF($H21=0,0,INDEX(R$86:R$160,$H21)) -> 0 | S21: =IF($H21=0,0,INDEX(S$86:S$160,$H21)) -> 0 | T21: =IF($H21=0,0,INDEX(T$86:T$160,$H21)) -> 0 | U21: =IF($H21=0,0,INDEX(U$86:U$160,$H21)) -> 0 | V21: =IF($H21=0,0,INDEX(V$86:V$160,$H21)) -> 0 | W21: =IF($H21=0,0,INDEX(W$86:W$160,$H21)) -> 0 | X21: =IF($H21=0,0,INDEX(X$86:X$160,$H21)) -> 0 | Y21: =IF($H21=0,0,INDEX(Y$86:Y$160,$H21)) -> 0 | Z21: =IF($H21=0,0,INDEX(Z$86:Z$160,$H21)) -> 0 | AA21: =IF($H21=0,0,INDEX(AA$86:AA$160,$H21)) -> 0 | AB21: =IF($H21=0,0,INDEX(AB$86:AB$160,$H21)) -> 0 | AD21: =IF(SUMPRODUCT(--_xlfn.ISFORMULA(C21:AB21))=26,"OK","CHECK") -> OK | AE21: =IF($H21=0,0,INDEX(AE$86:AE$320,$H21)) -> 0 | AF21: =IF($H21=0,0,INDEX(AF$86:AF$320,$H21)) -> 0 | AG21: =IF($H21=0,0,INDEX(AG$86:AG$320,$H21)) -> 0 | AH21: =IF($H21=0,0,INDEX(AH$86:AH$320,$H21)) -> 0 | AI21: =IF($H21=0,0,INDEX(AI$86:AI$320,$H21)) -> 0 | AJ21: =IF($H21=0,0,INDEX(AJ$86:AJ$320,$H21)) -> 0 | AK21: =IF($H21=0,0,INDEX(AK$86:AK$320,$H21)) -> 0 | AL21: =IF($H21=0,0,INDEX(AL$86:AL$320,$H21)) -> 0 | AM21: =IF($H21=0,0,INDEX(AM$86:AM$320,$H21)) -> 0 | AN21: =IF($H21=0,0,INDEX(AN$86:AN$320,$H21)) -> 0 | AO21: =IF($H21=0,0,INDEX(AO$86:AO$320,$H21)) -> 0 | AP21: =IF($H21=0,0,INDEX(AP$86:AP$320,$H21)) -> 0 | AQ21: =IF($H21=0,0,INDEX(AQ$86:AQ$320,$H21)) -> 0 | AR21: =IF($H21=0,0,INDEX(AR$86:AR$320,$H21)) -> 0
C22: =_xlfn.IFNA(INDEX(Tariffs!$C$46:$C$120,MATCH(VDO!D11,Tariffs!$I$46:$I$120,0)),0) -> Small Business single rate | D22: =_xlfn.IFNA(INDEX(Tariffs!$D$46:$D$120,MATCH(VDO!D11,Tariffs!$I$46:$I$120,0)),0) -> Small and medium business | E22: =_xlfn.IFNA(INDEX(Tariffs!$E$46:$E$120,MATCH(VDO!D11,Tariffs!$I$46:$I$120,0)),0) -> LVM1R | F22: =_xlfn.IFNA(INDEX(Tariffs!$F$46:$F$120,MATCH(VDO!D11,Tariffs!$I$46:$I$120,0)),0) -> 0 | G22: =_xlfn.IFNA(INDEX(Tariffs!$G$46:$G$120,MATCH(VDO!D11,Tariffs!$I$46:$I$120,0)),0) -> 0 | H22: 6 | I22: =IF($H22=0,0,INDEX(I$86:I$160,$H22)) -> 42.46 | J22: =IF($H22=0,0,INDEX(J$86:J$160,$H22)) -> 10.29 | K22: =IF($H22=0,0,INDEX(K$86:K$160,$H22)) -> 0 | L22: =IF($H22=0,0,INDEX(L$86:L$160,$H22)) -> 0 | M22: =IF($H22=0,0,INDEX(M$86:M$160,$H22)) -> 0 | N22: =IF($H22=0,0,INDEX(N$86:N$160,$H22)) -> 0 | O22: =IF($H22=0,0,INDEX(O$86:O$160,$H22)) -> 0 | P22: =IF($H22=0,0,INDEX(P$86:P$160,$H22)) -> 0 | Q22: =IF($H22=0,0,INDEX(Q$86:Q$160,$H22)) -> 0 | R22: =IF($H22=0,0,INDEX(R$86:R$160,$H22)) -> 0 | S22: =IF($H22=0,0,INDEX(S$86:S$160,$H22)) -> 0 | T22: =IF($H22=0,0,INDEX(T$86:T$160,$H22)) -> 0 | U22: =IF($H22=0,0,INDEX(U$86:U$160,$H22)) -> 0 | V22: =IF($H22=0,0,INDEX(V$86:V$160,$H22)) -> 0 | W22: =IF($H22=0,0,INDEX(W$86:W$160,$H22)) -> 0 | X22: =IF($H22=0,0,INDEX(X$86:X$160,$H22)) -> 0 | Y22: =IF($H22=0,0,INDEX(Y$86:Y$160,$H22)) -> 0 | Z22: =IF($H22=0,0,INDEX(Z$86:Z$160,$H22)) -> 0 | AA22: =IF($H22=0,0,INDEX(AA$86:AA$160,$H22)) -> 0 | AB22: =IF($H22=0,0,INDEX(AB$86:AB$160,$H22)) -> 0 | AD22: =IF(SUMPRODUCT(--_xlfn.ISFORMULA(C22:AB22))=26,"OK","CHECK") -> OK | AE22: =IF($H22=0,0,INDEX(AE$86:AE$320,$H22)) -> 0 | AF22: =IF($H22=0,0,INDEX(AF$86:AF$320,$H22)) -> 0 | AG22: =IF($H22=0,0,INDEX(AG$86:AG$320,$H22)) -> 0 | AH22: =IF($H22=0,0,INDEX(AH$86:AH$320,$H22)) -> 0 | AI22: =IF($H22=0,0,INDEX(AI$86:AI$320,$H22)) -> 0 | AJ22: =IF($H22=0,0,INDEX(AJ$86:AJ$320,$H22)) -> 0 | AK22: =IF($H22=0,0,INDEX(AK$86:AK$320,$H22)) -> 0 | AL22: =IF($H22=0,0,INDEX(AL$86:AL$320,$H22)) -> 0 | AM22: =IF($H22=0,0,INDEX(AM$86:AM$320,$H22)) -> 0 | AN22: =IF($H22=0,0,INDEX(AN$86:AN$320,$H22)) -> 0 | AO22: =IF($H22=0,0,INDEX(AO$86:AO$320,$H22)) -> 0 | AP22: =IF($H22=0,0,INDEX(AP$86:AP$320,$H22)) -> 0 | AQ22: =IF($H22=0,0,INDEX(AQ$86:AQ$320,$H22)) -> 0 | AR22: =IF($H22=0,0,INDEX(AR$86:AR$320,$H22)) -> 0
C23: =_xlfn.IFNA(INDEX(Tariffs!$C$46:$C$120,MATCH(VDO!D12,Tariffs!$I$46:$I$120,0)),0) -> Small Business ToU | D23: =_xlfn.IFNA(INDEX(Tariffs!$D$46:$D$120,MATCH(VDO!D12,Tariffs!$I$46:$I$120,0)),0) -> Small and medium business | E23: =_xlfn.IFNA(INDEX(Tariffs!$E$46:$E$120,MATCH(VDO!D12,Tariffs!$I$46:$I$120,0)),0) -> LVTOU | F23: =_xlfn.IFNA(INDEX(Tariffs!$F$46:$F$120,MATCH(VDO!D12,Tariffs!$I$46:$I$120,0)),0) -> 0 | G23: =_xlfn.IFNA(INDEX(Tariffs!$G$46:$G$120,MATCH(VDO!D12,Tariffs!$I$46:$I$120,0)),0) -> 0 | H23: 7 | I23: =IF($H23=0,0,INDEX(I$86:I$160,$H23)) -> 42.46 | J23: =IF($H23=0,0,INDEX(J$86:J$160,$H23)) -> 0 | K23: =IF($H23=0,0,INDEX(K$86:K$160,$H23)) -> 16.41 | L23: =IF($H23=0,0,INDEX(L$86:L$160,$H23)) -> 3.64 | M23: =IF($H23=0,0,INDEX(M$86:M$160,$H23)) -> 0 | N23: =IF($H23=0,0,INDEX(N$86:N$160,$H23)) -> 0 | O23: =IF($H23=0,0,INDEX(O$86:O$160,$H23)) -> 0 | P23: =IF($H23=0,0,INDEX(P$86:P$160,$H23)) -> 0 | Q23: =IF($H23=0,0,INDEX(Q$86:Q$160,$H23)) -> 0 | R23: =IF($H23=0,0,INDEX(R$86:R$160,$H23)) -> 0 | S23: =IF($H23=0,0,INDEX(S$86:S$160,$H23)) -> 0 | T23: =IF($H23=0,0,INDEX(T$86:T$160,$H23)) -> 0 | U23: =IF($H23=0,0,INDEX(U$86:U$160,$H23)) -> 0 | V23: =IF($H23=0,0,INDEX(V$86:V$160,$H23)) -> 0 | W23: =IF($H23=0,0,INDEX(W$86:W$160,$H23)) -> 0 | X23: =IF($H23=0,0,INDEX(X$86:X$160,$H23)) -> 0 | Y23: =IF($H23=0,0,INDEX(Y$86:Y$160,$H23)) -> 0 | Z23: =IF($H23=0,0,INDEX(Z$86:Z$160,$H23)) -> 0 | AA23: =IF($H23=0,0,INDEX(AA$86:AA$160,$H23)) -> 0 | AB23: =IF($H23=0,0,INDEX(AB$86:AB$160,$H23)) -> 0 | AD23: =IF(SUMPRODUCT(--_xlfn.ISFORMULA(C23:AB23))=26,"OK","CHECK") -> OK | AE23: =IF($H23=0,0,INDEX(AE$86:AE$320,$H23)) -> 0 | AF23: =IF($H23=0,0,INDEX(AF$86:AF$320,$H23)) -> 0 | AG23: =IF($H23=0,0,INDEX(AG$86:AG$320,$H23)) -> 0 | AH23: =IF($H23=0,0,INDEX(AH$86:AH$320,$H23)) -> 0 | AI23: =IF($H23=0,0,INDEX(AI$86:AI$320,$H23)) -> 0 | AJ23: =IF($H23=0,0,INDEX(AJ$86:AJ$320,$H23)) -> 0 | AK23: =IF($H23=0,0,INDEX(AK$86:AK$320,$H23)) -> 0 | AL23: =IF($H23=0,0,INDEX(AL$86:AL$320,$H23)) -> 0 | AM23: =IF($H23=0,0,INDEX(AM$86:AM$320,$H23)) -> 0 | AN23: =IF($H23=0,0,INDEX(AN$86:AN$320,$H23)) -> 0 | AO23: =IF($H23=0,0,INDEX(AO$86:AO$320,$H23)) -> 0 | AP23: =IF($H23=0,0,INDEX(AP$86:AP$320,$H23)) -> 0 | AQ23: =IF($H23=0,0,INDEX(AQ$86:AQ$320,$H23)) -> 0 | AR23: =IF($H23=0,0,INDEX(AR$86:AR$320,$H23)) -> 0
C24: =_xlfn.IFNA(INDEX(Tariffs!$C$46:$C$120,MATCH(VDO!D13,Tariffs!$I$46:$I$120,0)),0) -> 0 | D24: =_xlfn.IFNA(INDEX(Tariffs!$D$46:$D$120,MATCH(VDO!D13,Tariffs!$I$46:$I$120,0)),0) -> 0 | E24: =_xlfn.IFNA(INDEX(Tariffs!$E$46:$E$120,MATCH(VDO!D13,Tariffs!$I$46:$I$120,0)),0) -> 0 | F24: =_xlfn.IFNA(INDEX(Tariffs!$F$46:$F$120,MATCH(VDO!D13,Tariffs!$I$46:$I$120,0)),0) -> 0 | G24: =_xlfn.IFNA(INDEX(Tariffs!$G$46:$G$120,MATCH(VDO!D13,Tariffs!$I$46:$I$120,0)),0) -> 0 | H24: 0 | I24: =IF($H24=0,0,INDEX(I$86:I$160,$H24)) -> 0 | J24: =IF($H24=0,0,INDEX(J$86:J$160,$H24)) -> 0 | K24: =IF($H24=0,0,INDEX(K$86:K$160,$H24)) -> 0 | L24: =IF($H24=0,0,INDEX(L$86:L$160,$H24)) -> 0 | M24: =IF($H24=0,0,INDEX(M$86:M$160,$H24)) -> 0 | N24: =IF($H24=0,0,INDEX(N$86:N$160,$H24)) -> 0 | O24: =IF($H24=0,0,INDEX(O$86:O$160,$H24)) -> 0 | P24: =IF($H24=0,0,INDEX(P$86:P$160,$H24)) -> 0 | Q24: =IF($H24=0,0,INDEX(Q$86:Q$160,$H24)) -> 0 | R24: =IF($H24=0,0,INDEX(R$86:R$160,$H24)) -> 0 | S24: =IF($H24=0,0,INDEX(S$86:S$160,$H24)) -> 0 | T24: =IF($H24=0,0,INDEX(T$86:T$160,$H24)) -> 0 | U24: =IF($H24=0,0,INDEX(U$86:U$160,$H24)) -> 0 | V24: =IF($H24=0,0,INDEX(V$86:V$160,$H24)) -> 0 | W24: =IF($H24=0,0,INDEX(W$86:W$160,$H24)) -> 0 | X24: =IF($H24=0,0,INDEX(X$86:X$160,$H24)) -> 0 | Y24: =IF($H24=0,0,INDEX(Y$86:Y$160,$H24)) -> 0 | Z24: =IF($H24=0,0,INDEX(Z$86:Z$160,$H24)) -> 0 | AA24: =IF($H24=0,0,INDEX(AA$86:AA$160,$H24)) -> 0 | AB24: =IF($H24=0,0,INDEX(AB$86:AB$160,$H24)) -> 0 | AD24: =IF(SUMPRODUCT(--_xlfn.ISFORMULA(C24:AB24))=26,"OK","CHECK") -> OK | AE24: =IF($H24=0,0,INDEX(AE$86:AE$320,$H24)) -> 0 | AF24: =IF($H24=0,0,INDEX(AF$86:AF$320,$H24)) -> 0 | AG24: =IF($H24=0,0,INDEX(AG$86:AG$320,$H24)) -> 0 | AH24: =IF($H24=0,0,INDEX(AH$86:AH$320,$H24)) -> 0 | AI24: =IF($H24=0,0,INDEX(AI$86:AI$320,$H24)) -> 0 | AJ24: =IF($H24=0,0,INDEX(AJ$86:AJ$320,$H24)) -> 0 | AK24: =IF($H24=0,0,INDEX(AK$86:AK$320,$H24)) -> 0 | AL24: =IF($H24=0,0,INDEX(AL$86:AL$320,$H24)) -> 0 | AM24: =IF($H24=0,0,INDEX(AM$86:AM$320,$H24)) -> 0 | AN24: =IF($H24=0,0,INDEX(AN$86:AN$320,$H24)) -> 0 | AO24: =IF($H24=0,0,INDEX(AO$86:AO$320,$H24)) -> 0 | AP24: =IF($H24=0,0,INDEX(AP$86:AP$320,$H24)) -> 0 | AQ24: =IF($H24=0,0,INDEX(AQ$86:AQ$320,$H24)) -> 0 | AR24: =IF($H24=0,0,INDEX(AR$86:AR$320,$H24)) -> 0
C25: =_xlfn.IFNA(INDEX(Tariffs!$C$46:$C$120,MATCH(VDO!D14,Tariffs!$I$46:$I$120,0)),0) -> 0 | D25: =_xlfn.IFNA(INDEX(Tariffs!$D$46:$D$120,MATCH(VDO!D14,Tariffs!$I$46:$I$120,0)),0) -> 0 | E25: =_xlfn.IFNA(INDEX(Tariffs!$E$46:$E$120,MATCH(VDO!D14,Tariffs!$I$46:$I$120,0)),0) -> 0 | F25: =_xlfn.IFNA(INDEX(Tariffs!$F$46:$F$120,MATCH(VDO!D14,Tariffs!$I$46:$I$120,0)),0) -> 0 | G25: =_xlfn.IFNA(INDEX(Tariffs!$G$46:$G$120,MATCH(VDO!D14,Tariffs!$I$46:$I$120,0)),0) -> 0 | H25: 0 | I25: =IF($H25=0,0,INDEX(I$86:I$160,$H25)) -> 0 | J25: =IF($H25=0,0,INDEX(J$86:J$160,$H25)) -> 0 | K25: =IF($H25=0,0,INDEX(K$86:K$160,$H25)) -> 0 | L25: =IF($H25=0,0,INDEX(L$86:L$160,$H25)) -> 0 | M25: =IF($H25=0,0,INDEX(M$86:M$160,$H25)) -> 0 | N25: =IF($H25=0,0,INDEX(N$86:N$160,$H25)) -> 0 | O25: =IF($H25=0,0,INDEX(O$86:O$160,$H25)) -> 0 | P25: =IF($H25=0,0,INDEX(P$86:P$160,$H25)) -> 0 | Q25: =IF($H25=0,0,INDEX(Q$86:Q$160,$H25)) -> 0 | R25: =IF($H25=0,0,INDEX(R$86:R$160,$H25)) -> 0 | S25: =IF($H25=0,0,INDEX(S$86:S$160,$H25)) -> 0 | T25: =IF($H25=0,0,INDEX(T$86:T$160,$H25)) -> 0 | U25: =IF($H25=0,0,INDEX(U$86:U$160,$H25)) -> 0 | V25: =IF($H25=0,0,INDEX(V$86:V$160,$H25)) -> 0 | W25: =IF($H25=0,0,INDEX(W$86:W$160,$H25)) -> 0 | X25: =IF($H25=0,0,INDEX(X$86:X$160,$H25)) -> 0 | Y25: =IF($H25=0,0,INDEX(Y$86:Y$160,$H25)) -> 0 | Z25: =IF($H25=0,0,INDEX(Z$86:Z$160,$H25)) -> 0 | AA25: =IF($H25=0,0,INDEX(AA$86:AA$160,$H25)) -> 0 | AB25: =IF($H25=0,0,INDEX(AB$86:AB$160,$H25)) -> 0 | AD25: =IF(SUMPRODUCT(--_xlfn.ISFORMULA(C25:AB25))=26,"OK","CHECK") -> OK | AE25: =IF($H25=0,0,INDEX(AE$86:AE$320,$H25)) -> 0 | AF25: =IF($H25=0,0,INDEX(AF$86:AF$320,$H25)) -> 0 | AG25: =IF($H25=0,0,INDEX(AG$86:AG$320,$H25)) -> 0 | AH25: =IF($H25=0,0,INDEX(AH$86:AH$320,$H25)) -> 0 | AI25: =IF($H25=0,0,INDEX(AI$86:AI$320,$H25)) -> 0 | AJ25: =IF($H25=0,0,INDEX(AJ$86:AJ$320,$H25)) -> 0 | AK25: =IF($H25=0,0,INDEX(AK$86:AK$320,$H25)) -> 0 | AL25: =IF($H25=0,0,INDEX(AL$86:AL$320,$H25)) -> 0 | AM25: =IF($H25=0,0,INDEX(AM$86:AM$320,$H25)) -> 0 | AN25: =IF($H25=0,0,INDEX(AN$86:AN$320,$H25)) -> 0 | AO25: =IF($H25=0,0,INDEX(AO$86:AO$320,$H25)) -> 0 | AP25: =IF($H25=0,0,INDEX(AP$86:AP$320,$H25)) -> 0 | AQ25: =IF($H25=0,0,INDEX(AQ$86:AQ$320,$H25)) -> 0 | AR25: =IF($H25=0,0,INDEX(AR$86:AR$320,$H25)) -> 0
C26: =_xlfn.IFNA(INDEX(Tariffs!$C$46:$C$120,MATCH(VDO!D15,Tariffs!$I$46:$I$120,0)),0) -> 0 | D26: =_xlfn.IFNA(INDEX(Tariffs!$D$46:$D$120,MATCH(VDO!D15,Tariffs!$I$46:$I$120,0)),0) -> 0 | E26: =_xlfn.IFNA(INDEX(Tariffs!$E$46:$E$120,MATCH(VDO!D15,Tariffs!$I$46:$I$120,0)),0) -> 0 | F26: =_xlfn.IFNA(INDEX(Tariffs!$F$46:$F$120,MATCH(VDO!D15,Tariffs!$I$46:$I$120,0)),0) -> 0 | G26: =_xlfn.IFNA(INDEX(Tariffs!$G$46:$G$120,MATCH(VDO!D15,Tariffs!$I$46:$I$120,0)),0) -> 0 | H26: 0 | I26: =IF($H26=0,0,INDEX(I$86:I$160,$H26)) -> 0 | J26: =IF($H26=0,0,INDEX(J$86:J$160,$H26)) -> 0 | K26: =IF($H26=0,0,INDEX(K$86:K$160,$H26)) -> 0 | L26: =IF($H26=0,0,INDEX(L$86:L$160,$H26)) -> 0 | M26: =IF($H26=0,0,INDEX(M$86:M$160,$H26)) -> 0 | N26: =IF($H26=0,0,INDEX(N$86:N$160,$H26)) -> 0 | O26: =IF($H26=0,0,INDEX(O$86:O$160,$H26)) -> 0 | P26: =IF($H26=0,0,INDEX(P$86:P$160,$H26)) -> 0 | Q26: =IF($H26=0,0,INDEX(Q$86:Q$160,$H26)) -> 0 | R26: =IF($H26=0,0,INDEX(R$86:R$160,$H26)) -> 0 | S26: =IF($H26=0,0,INDEX(S$86:S$160,$H26)) -> 0 | T26: =IF($H26=0,0,INDEX(T$86:T$160,$H26)) -> 0 | U26: =IF($H26=0,0,INDEX(U$86:U$160,$H26)) -> 0 | V26: =IF($H26=0,0,INDEX(V$86:V$160,$H26)) -> 0 | W26: =IF($H26=0,0,INDEX(W$86:W$160,$H26)) -> 0 | X26: =IF($H26=0,0,INDEX(X$86:X$160,$H26)) -> 0 | Y26: =IF($H26=0,0,INDEX(Y$86:Y$160,$H26)) -> 0 | Z26: =IF($H26=0,0,INDEX(Z$86:Z$160,$H26)) -> 0 | AA26: =IF($H26=0,0,INDEX(AA$86:AA$160,$H26)) -> 0 | AB26: =IF($H26=0,0,INDEX(AB$86:AB$160,$H26)) -> 0 | AD26: =IF(SUMPRODUCT(--_xlfn.ISFORMULA(C26:AB26))=26,"OK","CHECK") -> OK | AE26: =IF($H26=0,0,INDEX(AE$86:AE$320,$H26)) -> 0 | AF26: =IF($H26=0,0,INDEX(AF$86:AF$320,$H26)) -> 0 | AG26: =IF($H26=0,0,INDEX(AG$86:AG$320,$H26)) -> 0 | AH26: =IF($H26=0,0,INDEX(AH$86:AH$320,$H26)) -> 0 | AI26: =IF($H26=0,0,INDEX(AI$86:AI$320,$H26)) -> 0 | AJ26: =IF($H26=0,0,INDEX(AJ$86:AJ$320,$H26)) -> 0 | AK26: =IF($H26=0,0,INDEX(AK$86:AK$320,$H26)) -> 0 | AL26: =IF($H26=0,0,INDEX(AL$86:AL$320,$H26)) -> 0 | AM26: =IF($H26=0,0,INDEX(AM$86:AM$320,$H26)) -> 0 | AN26: =IF($H26=0,0,INDEX(AN$86:AN$320,$H26)) -> 0 | AO26: =IF($H26=0,0,INDEX(AO$86:AO$320,$H26)) -> 0 | AP26: =IF($H26=0,0,INDEX(AP$86:AP$320,$H26)) -> 0 | AQ26: =IF($H26=0,0,INDEX(AQ$86:AQ$320,$H26)) -> 0 | AR26: =IF($H26=0,0,INDEX(AR$86:AR$320,$H26)) -> 0
C27: =_xlfn.IFNA(INDEX(Tariffs!$C$46:$C$120,MATCH(VDO!D16,Tariffs!$I$46:$I$120,0)),0) -> 0 | D27: =_xlfn.IFNA(INDEX(Tariffs!$D$46:$D$120,MATCH(VDO!D16,Tariffs!$I$46:$I$120,0)),0) -> 0 | E27: =_xlfn.IFNA(INDEX(Tariffs!$E$46:$E$120,MATCH(VDO!D16,Tariffs!$I$46:$I$120,0)),0) -> 0 | F27: =_xlfn.IFNA(INDEX(Tariffs!$F$46:$F$120,MATCH(VDO!D16,Tariffs!$I$46:$I$120,0)),0) -> 0 | G27: =_xlfn.IFNA(INDEX(Tariffs!$G$46:$G$120,MATCH(VDO!D16,Tariffs!$I$46:$I$120,0)),0) -> 0 | H27: 0 | I27: =IF($H27=0,0,INDEX(I$86:I$160,$H27)) -> 0 | J27: =IF($H27=0,0,INDEX(J$86:J$160,$H27)) -> 0 | K27: =IF($H27=0,0,INDEX(K$86:K$160,$H27)) -> 0 | L27: =IF($H27=0,0,INDEX(L$86:L$160,$H27)) -> 0 | M27: =IF($H27=0,0,INDEX(M$86:M$160,$H27)) -> 0 | N27: =IF($H27=0,0,INDEX(N$86:N$160,$H27)) -> 0 | O27: =IF($H27=0,0,INDEX(O$86:O$160,$H27)) -> 0 | P27: =IF($H27=0,0,INDEX(P$86:P$160,$H27)) -> 0 | Q27: =IF($H27=0,0,INDEX(Q$86:Q$160,$H27)) -> 0 | R27: =IF($H27=0,0,INDEX(R$86:R$160,$H27)) -> 0 | S27: =IF($H27=0,0,INDEX(S$86:S$160,$H27)) -> 0 | T27: =IF($H27=0,0,INDEX(T$86:T$160,$H27)) -> 0 | U27: =IF($H27=0,0,INDEX(U$86:U$160,$H27)) -> 0 | V27: =IF($H27=0,0,INDEX(V$86:V$160,$H27)) -> 0 | W27: =IF($H27=0,0,INDEX(W$86:W$160,$H27)) -> 0 | X27: =IF($H27=0,0,INDEX(X$86:X$160,$H27)) -> 0 | Y27: =IF($H27=0,0,INDEX(Y$86:Y$160,$H27)) -> 0 | Z27: =IF($H27=0,0,INDEX(Z$86:Z$160,$H27)) -> 0 | AA27: =IF($H27=0,0,INDEX(AA$86:AA$160,$H27)) -> 0 | AB27: =IF($H27=0,0,INDEX(AB$86:AB$160,$H27)) -> 0 | AD27: =IF(SUMPRODUCT(--_xlfn.ISFORMULA(C27:AB27))=26,"OK","CHECK") -> OK | AE27: =IF($H27=0,0,INDEX(AE$86:AE$320,$H27)) -> 0 | AF27: =IF($H27=0,0,INDEX(AF$86:AF$320,$H27)) -> 0 | AG27: =IF($H27=0,0,INDEX(AG$86:AG$320,$H27)) -> 0 | AH27: =IF($H27=0,0,INDEX(AH$86:AH$320,$H27)) -> 0 | AI27: =IF($H27=0,0,INDEX(AI$86:AI$320,$H27)) -> 0 | AJ27: =IF($H27=0,0,INDEX(AJ$86:AJ$320,$H27)) -> 0 | AK27: =IF($H27=0,0,INDEX(AK$86:AK$320,$H27)) -> 0 | AL27: =IF($H27=0,0,INDEX(AL$86:AL$320,$H27)) -> 0 | AM27: =IF($H27=0,0,INDEX(AM$86:AM$320,$H27)) -> 0 | AN27: =IF($H27=0,0,INDEX(AN$86:AN$320,$H27)) -> 0 | AO27: =IF($H27=0,0,INDEX(AO$86:AO$320,$H27)) -> 0 | AP27: =IF($H27=0,0,INDEX(AP$86:AP$320,$H27)) -> 0 | AQ27: =IF($H27=0,0,INDEX(AQ$86:AQ$320,$H27)) -> 0 | AR27: =IF($H27=0,0,INDEX(AR$86:AR$320,$H27)) -> 0
C28: =_xlfn.IFNA(INDEX(Tariffs!$C$46:$C$120,MATCH(VDO!D17,Tariffs!$I$46:$I$120,0)),0) -> 0 | D28: =_xlfn.IFNA(INDEX(Tariffs!$D$46:$D$120,MATCH(VDO!D17,Tariffs!$I$46:$I$120,0)),0) -> 0 | E28: =_xlfn.IFNA(INDEX(Tariffs!$E$46:$E$120,MATCH(VDO!D17,Tariffs!$I$46:$I$120,0)),0) -> 0 | F28: =_xlfn.IFNA(INDEX(Tariffs!$F$46:$F$120,MATCH(VDO!D17,Tariffs!$I$46:$I$120,0)),0) -> 0 | G28: =_xlfn.IFNA(INDEX(Tariffs!$G$46:$G$120,MATCH(VDO!D17,Tariffs!$I$46:$I$120,0)),0) -> 0 | H28: 0 | I28: =IF($H28=0,0,INDEX(I$86:I$160,$H28)) -> 0 | J28: =IF($H28=0,0,INDEX(J$86:J$160,$H28)) -> 0 | K28: =IF($H28=0,0,INDEX(K$86:K$160,$H28)) -> 0 | L28: =IF($H28=0,0,INDEX(L$86:L$160,$H28)) -> 0 | M28: =IF($H28=0,0,INDEX(M$86:M$160,$H28)) -> 0 | N28: =IF($H28=0,0,INDEX(N$86:N$160,$H28)) -> 0 | O28: =IF($H28=0,0,INDEX(O$86:O$160,$H28)) -> 0 | P28: =IF($H28=0,0,INDEX(P$86:P$160,$H28)) -> 0 | Q28: =IF($H28=0,0,INDEX(Q$86:Q$160,$H28)) -> 0 | R28: =IF($H28=0,0,INDEX(R$86:R$160,$H28)) -> 0 | S28: =IF($H28=0,0,INDEX(S$86:S$160,$H28)) -> 0 | T28: =IF($H28=0,0,INDEX(T$86:T$160,$H28)) -> 0 | U28: =IF($H28=0,0,INDEX(U$86:U$160,$H28)) -> 0 | V28: =IF($H28=0,0,INDEX(V$86:V$160,$H28)) -> 0 | W28: =IF($H28=0,0,INDEX(W$86:W$160,$H28)) -> 0 | X28: =IF($H28=0,0,INDEX(X$86:X$160,$H28)) -> 0 | Y28: =IF($H28=0,0,INDEX(Y$86:Y$160,$H28)) -> 0 | Z28: =IF($H28=0,0,INDEX(Z$86:Z$160,$H28)) -> 0 | AA28: =IF($H28=0,0,INDEX(AA$86:AA$160,$H28)) -> 0 | AB28: =IF($H28=0,0,INDEX(AB$86:AB$160,$H28)) -> 0 | AD28: =IF(SUMPRODUCT(--_xlfn.ISFORMULA(C28:AB28))=26,"OK","CHECK") -> OK | AE28: =IF($H28=0,0,INDEX(AE$86:AE$320,$H28)) -> 0 | AF28: =IF($H28=0,0,INDEX(AF$86:AF$320,$H28)) -> 0 | AG28: =IF($H28=0,0,INDEX(AG$86:AG$320,$H28)) -> 0 | AH28: =IF($H28=0,0,INDEX(AH$86:AH$320,$H28)) -> 0 | AI28: =IF($H28=0,0,INDEX(AI$86:AI$320,$H28)) -> 0 | AJ28: =IF($H28=0,0,INDEX(AJ$86:AJ$320,$H28)) -> 0 | AK28: =IF($H28=0,0,INDEX(AK$86:AK$320,$H28)) -> 0 | AL28: =IF($H28=0,0,INDEX(AL$86:AL$320,$H28)) -> 0 | AM28: =IF($H28=0,0,INDEX(AM$86:AM$320,$H28)) -> 0 | AN28: =IF($H28=0,0,INDEX(AN$86:AN$320,$H28)) -> 0 | AO28: =IF($H28=0,0,INDEX(AO$86:AO$320,$H28)) -> 0 | AP28: =IF($H28=0,0,INDEX(AP$86:AP$320,$H28)) -> 0 | AQ28: =IF($H28=0,0,INDEX(AQ$86:AQ$320,$H28)) -> 0 | AR28: =IF($H28=0,0,INDEX(AR$86:AR$320,$H28)) -> 0
C29: =_xlfn.IFNA(INDEX(Tariffs!$C$46:$C$120,MATCH(VDO!D18,Tariffs!$I$46:$I$120,0)),0) -> 0 | D29: =_xlfn.IFNA(INDEX(Tariffs!$D$46:$D$120,MATCH(VDO!D18,Tariffs!$I$46:$I$120,0)),0) -> 0 | E29: =_xlfn.IFNA(INDEX(Tariffs!$E$46:$E$120,MATCH(VDO!D18,Tariffs!$I$46:$I$120,0)),0) -> 0 | F29: =_xlfn.IFNA(INDEX(Tariffs!$F$46:$F$120,MATCH(VDO!D18,Tariffs!$I$46:$I$120,0)),0) -> 0 | G29: =_xlfn.IFNA(INDEX(Tariffs!$G$46:$G$120,MATCH(VDO!D18,Tariffs!$I$46:$I$120,0)),0) -> 0 | H29: 0 | I29: =IF($H29=0,0,INDEX(I$86:I$160,$H29)) -> 0 | J29: =IF($H29=0,0,INDEX(J$86:J$160,$H29)) -> 0 | K29: =IF($H29=0,0,INDEX(K$86:K$160,$H29)) -> 0 | L29: =IF($H29=0,0,INDEX(L$86:L$160,$H29)) -> 0 | M29: =IF($H29=0,0,INDEX(M$86:M$160,$H29)) -> 0 | N29: =IF($H29=0,0,INDEX(N$86:N$160,$H29)) -> 0 | O29: =IF($H29=0,0,INDEX(O$86:O$160,$H29)) -> 0 | P29: =IF($H29=0,0,INDEX(P$86:P$160,$H29)) -> 0 | Q29: =IF($H29=0,0,INDEX(Q$86:Q$160,$H29)) -> 0 | R29: =IF($H29=0,0,INDEX(R$86:R$160,$H29)) -> 0 | S29: =IF($H29=0,0,INDEX(S$86:S$160,$H29)) -> 0 | T29: =IF($H29=0,0,INDEX(T$86:T$160,$H29)) -> 0 | U29: =IF($H29=0,0,INDEX(U$86:U$160,$H29)) -> 0 | V29: =IF($H29=0,0,INDEX(V$86:V$160,$H29)) -> 0 | W29: =IF($H29=0,0,INDEX(W$86:W$160,$H29)) -> 0 | X29: =IF($H29=0,0,INDEX(X$86:X$160,$H29)) -> 0 | Y29: =IF($H29=0,0,INDEX(Y$86:Y$160,$H29)) -> 0 | Z29: =IF($H29=0,0,INDEX(Z$86:Z$160,$H29)) -> 0 | AA29: =IF($H29=0,0,INDEX(AA$86:AA$160,$H29)) -> 0 | AB29: =IF($H29=0,0,INDEX(AB$86:AB$160,$H29)) -> 0 | AD29: =IF(SUMPRODUCT(--_xlfn.ISFORMULA(C29:AB29))=26,"OK","CHECK") -> OK | AE29: =IF($H29=0,0,INDEX(AE$86:AE$320,$H29)) -> 0 | AF29: =IF($H29=0,0,INDEX(AF$86:AF$320,$H29)) -> 0 | AG29: =IF($H29=0,0,INDEX(AG$86:AG$320,$H29)) -> 0 | AH29: =IF($H29=0,0,INDEX(AH$86:AH$320,$H29)) -> 0 | AI29: =IF($H29=0,0,INDEX(AI$86:AI$320,$H29)) -> 0 | AJ29: =IF($H29=0,0,INDEX(AJ$86:AJ$320,$H29)) -> 0 | AK29: =IF($H29=0,0,INDEX(AK$86:AK$320,$H29)) -> 0 | AL29: =IF($H29=0,0,INDEX(AL$86:AL$320,$H29)) -> 0 | AM29: =IF($H29=0,0,INDEX(AM$86:AM$320,$H29)) -> 0 | AN29: =IF($H29=0,0,INDEX(AN$86:AN$320,$H29)) -> 0 | AO29: =IF($H29=0,0,INDEX(AO$86:AO$320,$H29)) -> 0 | AP29: =IF($H29=0,0,INDEX(AP$86:AP$320,$H29)) -> 0 | AQ29: =IF($H29=0,0,INDEX(AQ$86:AQ$320,$H29)) -> 0 | AR29: =IF($H29=0,0,INDEX(AR$86:AR$320,$H29)) -> 0
C30: =_xlfn.IFNA(INDEX(Tariffs!$C$46:$C$120,MATCH(VDO!D19,Tariffs!$I$46:$I$120,0)),0) -> 0 | D30: =_xlfn.IFNA(INDEX(Tariffs!$D$46:$D$120,MATCH(VDO!D19,Tariffs!$I$46:$I$120,0)),0) -> 0 | E30: =_xlfn.IFNA(INDEX(Tariffs!$E$46:$E$120,MATCH(VDO!D19,Tariffs!$I$46:$I$120,0)),0) -> 0 | F30: =_xlfn.IFNA(INDEX(Tariffs!$F$46:$F$120,MATCH(VDO!D19,Tariffs!$I$46:$I$120,0)),0) -> 0 | G30: =_xlfn.IFNA(INDEX(Tariffs!$G$46:$G$120,MATCH(VDO!D19,Tariffs!$I$46:$I$120,0)),0) -> 0 | H30: 0 | I30: =IF($H30=0,0,INDEX(I$86:I$160,$H30)) -> 0 | J30: =IF($H30=0,0,INDEX(J$86:J$160,$H30)) -> 0 | K30: =IF($H30=0,0,INDEX(K$86:K$160,$H30)) -> 0 | L30: =IF($H30=0,0,INDEX(L$86:L$160,$H30)) -> 0 | M30: =IF($H30=0,0,INDEX(M$86:M$160,$H30)) -> 0 | N30: =IF($H30=0,0,INDEX(N$86:N$160,$H30)) -> 0 | O30: =IF($H30=0,0,INDEX(O$86:O$160,$H30)) -> 0 | P30: =IF($H30=0,0,INDEX(P$86:P$160,$H30)) -> 0 | Q30: =IF($H30=0,0,INDEX(Q$86:Q$160,$H30)) -> 0 | R30: =IF($H30=0,0,INDEX(R$86:R$160,$H30)) -> 0 | S30: =IF($H30=0,0,INDEX(S$86:S$160,$H30)) -> 0 | T30: =IF($H30=0,0,INDEX(T$86:T$160,$H30)) -> 0 | U30: =IF($H30=0,0,INDEX(U$86:U$160,$H30)) -> 0 | V30: =IF($H30=0,0,INDEX(V$86:V$160,$H30)) -> 0 | W30: =IF($H30=0,0,INDEX(W$86:W$160,$H30)) -> 0 | X30: =IF($H30=0,0,INDEX(X$86:X$160,$H30)) -> 0 | Y30: =IF($H30=0,0,INDEX(Y$86:Y$160,$H30)) -> 0 | Z30: =IF($H30=0,0,INDEX(Z$86:Z$160,$H30)) -> 0 | AA30: =IF($H30=0,0,INDEX(AA$86:AA$160,$H30)) -> 0 | AB30: =IF($H30=0,0,INDEX(AB$86:AB$160,$H30)) -> 0 | AD30: =IF(SUMPRODUCT(--_xlfn.ISFORMULA(C30:AB30))=26,"OK","CHECK") -> OK | AE30: =IF($H30=0,0,INDEX(AE$86:AE$320,$H30)) -> 0 | AF30: =IF($H30=0,0,INDEX(AF$86:AF$320,$H30)) -> 0 | AG30: =IF($H30=0,0,INDEX(AG$86:AG$320,$H30)) -> 0 | AH30: =IF($H30=0,0,INDEX(AH$86:AH$320,$H30)) -> 0 | AI30: =IF($H30=0,0,INDEX(AI$86:AI$320,$H30)) -> 0 | AJ30: =IF($H30=0,0,INDEX(AJ$86:AJ$320,$H30)) -> 0 | AK30: =IF($H30=0,0,INDEX(AK$86:AK$320,$H30)) -> 0 | AL30: =IF($H30=0,0,INDEX(AL$86:AL$320,$H30)) -> 0 | AM30: =IF($H30=0,0,INDEX(AM$86:AM$320,$H30)) -> 0 | AN30: =IF($H30=0,0,INDEX(AN$86:AN$320,$H30)) -> 0 | AO30: =IF($H30=0,0,INDEX(AO$86:AO$320,$H30)) -> 0 | AP30: =IF($H30=0,0,INDEX(AP$86:AP$320,$H30)) -> 0 | AQ30: =IF($H30=0,0,INDEX(AQ$86:AQ$320,$H30)) -> 0 | AR30: =IF($H30=0,0,INDEX(AR$86:AR$320,$H30)) -> 0
C31: =_xlfn.IFNA(INDEX(Tariffs!$C$46:$C$120,MATCH(VDO!D20,Tariffs!$I$46:$I$120,0)),0) -> 0 | D31: =_xlfn.IFNA(INDEX(Tariffs!$D$46:$D$120,MATCH(VDO!D20,Tariffs!$I$46:$I$120,0)),0) -> 0 | E31: =_xlfn.IFNA(INDEX(Tariffs!$E$46:$E$120,MATCH(VDO!D20,Tariffs!$I$46:$I$120,0)),0) -> 0 | F31: =_xlfn.IFNA(INDEX(Tariffs!$F$46:$F$120,MATCH(VDO!D20,Tariffs!$I$46:$I$120,0)),0) -> 0 | G31: =_xlfn.IFNA(INDEX(Tariffs!$G$46:$G$120,MATCH(VDO!D20,Tariffs!$I$46:$I$120,0)),0) -> 0 | H31: 0 | I31: =IF($H31=0,0,INDEX(I$86:I$160,$H31)) -> 0 | J31: =IF($H31=0,0,INDEX(J$86:J$160,$H31)) -> 0 | K31: =IF($H31=0,0,INDEX(K$86:K$160,$H31)) -> 0 | L31: =IF($H31=0,0,INDEX(L$86:L$160,$H31)) -> 0 | M31: =IF($H31=0,0,INDEX(M$86:M$160,$H31)) -> 0 | N31: =IF($H31=0,0,INDEX(N$86:N$160,$H31)) -> 0 | O31: =IF($H31=0,0,INDEX(O$86:O$160,$H31)) -> 0 | P31: =IF($H31=0,0,INDEX(P$86:P$160,$H31)) -> 0 | Q31: =IF($H31=0,0,INDEX(Q$86:Q$160,$H31)) -> 0 | R31: =IF($H31=0,0,INDEX(R$86:R$160,$H31)) -> 0 | S31: =IF($H31=0,0,INDEX(S$86:S$160,$H31)) -> 0 | T31: =IF($H31=0,0,INDEX(T$86:T$160,$H31)) -> 0 | U31: =IF($H31=0,0,INDEX(U$86:U$160,$H31)) -> 0 | V31: =IF($H31=0,0,INDEX(V$86:V$160,$H31)) -> 0 | W31: =IF($H31=0,0,INDEX(W$86:W$160,$H31)) -> 0 | X31: =IF($H31=0,0,INDEX(X$86:X$160,$H31)) -> 0 | Y31: =IF($H31=0,0,INDEX(Y$86:Y$160,$H31)) -> 0 | Z31: =IF($H31=0,0,INDEX(Z$86:Z$160,$H31)) -> 0 | AA31: =IF($H31=0,0,INDEX(AA$86:AA$160,$H31)) -> 0 | AB31: =IF($H31=0,0,INDEX(AB$86:AB$160,$H31)) -> 0 | AD31: =IF(SUMPRODUCT(--_xlfn.ISFORMULA(C31:AB31))=26,"OK","CHECK") -> OK | AE31: =IF($H31=0,0,INDEX(AE$86:AE$320,$H31)) -> 0 | AF31: =IF($H31=0,0,INDEX(AF$86:AF$320,$H31)) -> 0 | AG31: =IF($H31=0,0,INDEX(AG$86:AG$320,$H31)) -> 0 | AH31: =IF($H31=0,0,INDEX(AH$86:AH$320,$H31)) -> 0 | AI31: =IF($H31=0,0,INDEX(AI$86:AI$320,$H31)) -> 0 | AJ31: =IF($H31=0,0,INDEX(AJ$86:AJ$320,$H31)) -> 0 | AK31: =IF($H31=0,0,INDEX(AK$86:AK$320,$H31)) -> 0 | AL31: =IF($H31=0,0,INDEX(AL$86:AL$320,$H31)) -> 0 | AM31: =IF($H31=0,0,INDEX(AM$86:AM$320,$H31)) -> 0 | AN31: =IF($H31=0,0,INDEX(AN$86:AN$320,$H31)) -> 0 | AO31: =IF($H31=0,0,INDEX(AO$86:AO$320,$H31)) -> 0 | AP31: =IF($H31=0,0,INDEX(AP$86:AP$320,$H31)) -> 0 | AQ31: =IF($H31=0,0,INDEX(AQ$86:AQ$320,$H31)) -> 0 | AR31: =IF($H31=0,0,INDEX(AR$86:AR$320,$H31)) -> 0
C32: =_xlfn.IFNA(INDEX(Tariffs!$C$46:$C$120,MATCH(VDO!D21,Tariffs!$I$46:$I$120,0)),0) -> 0 | D32: =_xlfn.IFNA(INDEX(Tariffs!$D$46:$D$120,MATCH(VDO!D21,Tariffs!$I$46:$I$120,0)),0) -> 0 | E32: =_xlfn.IFNA(INDEX(Tariffs!$E$46:$E$120,MATCH(VDO!D21,Tariffs!$I$46:$I$120,0)),0) -> 0 | F32: =_xlfn.IFNA(INDEX(Tariffs!$F$46:$F$120,MATCH(VDO!D21,Tariffs!$I$46:$I$120,0)),0) -> 0 | G32: =_xlfn.IFNA(INDEX(Tariffs!$G$46:$G$120,MATCH(VDO!D21,Tariffs!$I$46:$I$120,0)),0) -> 0 | H32: 0 | I32: =IF($H32=0,0,INDEX(I$86:I$160,$H32)) -> 0 | J32: =IF($H32=0,0,INDEX(J$86:J$160,$H32)) -> 0 | K32: =IF($H32=0,0,INDEX(K$86:K$160,$H32)) -> 0 | L32: =IF($H32=0,0,INDEX(L$86:L$160,$H32)) -> 0 | M32: =IF($H32=0,0,INDEX(M$86:M$160,$H32)) -> 0 | N32: =IF($H32=0,0,INDEX(N$86:N$160,$H32)) -> 0 | O32: =IF($H32=0,0,INDEX(O$86:O$160,$H32)) -> 0 | P32: =IF($H32=0,0,INDEX(P$86:P$160,$H32)) -> 0 | Q32: =IF($H32=0,0,INDEX(Q$86:Q$160,$H32)) -> 0 | R32: =IF($H32=0,0,INDEX(R$86:R$160,$H32)) -> 0 | S32: =IF($H32=0,0,INDEX(S$86:S$160,$H32)) -> 0 | T32: =IF($H32=0,0,INDEX(T$86:T$160,$H32)) -> 0 | U32: =IF($H32=0,0,INDEX(U$86:U$160,$H32)) -> 0 | V32: =IF($H32=0,0,INDEX(V$86:V$160,$H32)) -> 0 | W32: =IF($H32=0,0,INDEX(W$86:W$160,$H32)) -> 0 | X32: =IF($H32=0,0,INDEX(X$86:X$160,$H32)) -> 0 | Y32: =IF($H32=0,0,INDEX(Y$86:Y$160,$H32)) -> 0 | Z32: =IF($H32=0,0,INDEX(Z$86:Z$160,$H32)) -> 0 | AA32: =IF($H32=0,0,INDEX(AA$86:AA$160,$H32)) -> 0 | AB32: =IF($H32=0,0,INDEX(AB$86:AB$160,$H32)) -> 0 | AD32: =IF(SUMPRODUCT(--_xlfn.ISFORMULA(C32:AB32))=26,"OK","CHECK") -> OK | AE32: =IF($H32=0,0,INDEX(AE$86:AE$320,$H32)) -> 0 | AF32: =IF($H32=0,0,INDEX(AF$86:AF$320,$H32)) -> 0 | AG32: =IF($H32=0,0,INDEX(AG$86:AG$320,$H32)) -> 0 | AH32: =IF($H32=0,0,INDEX(AH$86:AH$320,$H32)) -> 0 | AI32: =IF($H32=0,0,INDEX(AI$86:AI$320,$H32)) -> 0 | AJ32: =IF($H32=0,0,INDEX(AJ$86:AJ$320,$H32)) -> 0 | AK32: =IF($H32=0,0,INDEX(AK$86:AK$320,$H32)) -> 0 | AL32: =IF($H32=0,0,INDEX(AL$86:AL$320,$H32)) -> 0 | AM32: =IF($H32=0,0,INDEX(AM$86:AM$320,$H32)) -> 0 | AN32: =IF($H32=0,0,INDEX(AN$86:AN$320,$H32)) -> 0 | AO32: =IF($H32=0,0,INDEX(AO$86:AO$320,$H32)) -> 0 | AP32: =IF($H32=0,0,INDEX(AP$86:AP$320,$H32)) -> 0 | AQ32: =IF($H32=0,0,INDEX(AQ$86:AQ$320,$H32)) -> 0 | AR32: =IF($H32=0,0,INDEX(AR$86:AR$320,$H32)) -> 0
C34: =C163 -> Distribution
C35: =C19 -> Residential Single Rate | D35: Residential | E35: LVS1R | F35: 0 | G35: 0 | H35: 1 | I35: =IF($H35=0,0,INDEX(I$164:I$238,$H35)) -> 22.8 | J35: =IF($H35=0,0,INDEX(J$164:J$238,$H35)) -> 7.33 | K35: =IF($H35=0,0,INDEX(K$164:K$238,$H35)) -> 0 | L35: =IF($H35=0,0,INDEX(L$164:L$238,$H35)) -> 0 | M35: =IF($H35=0,0,INDEX(M$164:M$238,$H35)) -> 0 | N35: =IF($H35=0,0,INDEX(N$164:N$238,$H35)) -> 0 | O35: =IF($H35=0,0,INDEX(O$164:O$238,$H35)) -> 0 | P35: =IF($H35=0,0,INDEX(P$164:P$238,$H35)) -> 0 | Q35: =IF($H35=0,0,INDEX(Q$164:Q$238,$H35)) -> 0 | R35: =IF($H35=0,0,INDEX(R$164:R$238,$H35)) -> 0 | S35: =IF($H35=0,0,INDEX(S$164:S$238,$H35)) -> 0 | T35: =IF($H35=0,0,INDEX(T$164:T$238,$H35)) -> 0 | U35: =IF($H35=0,0,INDEX(U$164:U$238,$H35)) -> 0 | V35: =IF($H35=0,0,INDEX(V$164:V$238,$H35)) -> 0 | W35: =IF($H35=0,0,INDEX(W$164:W$238,$H35)) -> 0 | X35: =IF($H35=0,0,INDEX(X$164:X$238,$H35)) -> 0 | Y35: =IF($H35=0,0,INDEX(Y$164:Y$238,$H35)) -> 0 | Z35: =IF($H35=0,0,INDEX(Z$164:Z$238,$H35)) -> 0 | AA35: =IF($H35=0,0,INDEX(AA$164:AA$238,$H35)) -> 0 | AB35: =IF($H35=0,0,INDEX(AB$164:AB$238,$H35)) -> 0 | AD35: =IF(SUMPRODUCT(--_xlfn.ISFORMULA(C35:AB35))=26,"OK","CHECK") -> OK | AE35: =IF($H35=0,0,INDEX(AE$324:AE$558,$H35)) -> 0 | AF35: =IF($H35=0,0,INDEX(AF$324:AF$558,$H35)) -> 0 | AG35: =IF($H35=0,0,INDEX(AG$324:AG$558,$H35)) -> 0 | AH35: =IF($H35=0,0,INDEX(AH$324:AH$558,$H35)) -> 0 | AI35: =IF($H35=0,0,INDEX(AI$324:AI$558,$H35)) -> 0 | AJ35: =IF($H35=0,0,INDEX(AJ$324:AJ$558,$H35)) -> 0 | AK35: =IF($H35=0,0,INDEX(AK$324:AK$558,$H35)) -> 0 | AL35: =IF($H35=0,0,INDEX(AL$324:AL$558,$H35)) -> 0 | AM35: =IF($H35=0,0,INDEX(AM$324:AM$558,$H35)) -> 0 | AN35: =IF($H35=0,0,INDEX(AN$324:AN$558,$H35)) -> 0 | AO35: =IF($H35=0,0,INDEX(AO$324:AO$558,$H35)) -> 0 | AP35: =IF($H35=0,0,INDEX(AP$324:AP$558,$H35)) -> 0 | AQ35: =IF($H35=0,0,INDEX(AQ$324:AQ$558,$H35)) -> 0 | AR35: =IF($H35=0,0,INDEX(AR$324:AR$558,$H35)) -> 0
C36: =C20 -> Residential ToU | D36: Residential | E36: URTOU | F36: 0 | G36: 0 | H36: 2 | I36: =IF($H36=0,0,INDEX(I$164:I$238,$H36)) -> 22.8 | J36: =IF($H36=0,0,INDEX(J$164:J$238,$H36)) -> 0 | K36: =IF($H36=0,0,INDEX(K$164:K$238,$H36)) -> 13.65 | L36: =IF($H36=0,0,INDEX(L$164:L$238,$H36)) -> 3.4 | M36: =IF($H36=0,0,INDEX(M$164:M$238,$H36)) -> 0 | N36: =IF($H36=0,0,INDEX(N$164:N$238,$H36)) -> 0 | O36: =IF($H36=0,0,INDEX(O$164:O$238,$H36)) -> 0 | P36: =IF($H36=0,0,INDEX(P$164:P$238,$H36)) -> 0 | Q36: =IF($H36=0,0,INDEX(Q$164:Q$238,$H36)) -> 0 | R36: =IF($H36=0,0,INDEX(R$164:R$238,$H36)) -> 0 | S36: =IF($H36=0,0,INDEX(S$164:S$238,$H36)) -> 0 | T36: =IF($H36=0,0,INDEX(T$164:T$238,$H36)) -> 0 | U36: =IF($H36=0,0,INDEX(U$164:U$238,$H36)) -> 0 | V36: =IF($H36=0,0,INDEX(V$164:V$238,$H36)) -> 0 | W36: =IF($H36=0,0,INDEX(W$164:W$238,$H36)) -> 0 | X36: =IF($H36=0,0,INDEX(X$164:X$238,$H36)) -> 0 | Y36: =IF($H36=0,0,INDEX(Y$164:Y$238,$H36)) -> 0 | Z36: =IF($H36=0,0,INDEX(Z$164:Z$238,$H36)) -> 0 | AA36: =IF($H36=0,0,INDEX(AA$164:AA$238,$H36)) -> 0 | AB36: =IF($H36=0,0,INDEX(AB$164:AB$238,$H36)) -> 0 | AD36: =IF(SUMPRODUCT(--_xlfn.ISFORMULA(C36:AB36))=26,"OK","CHECK") -> OK | AE36: =IF($H36=0,0,INDEX(AE$324:AE$558,$H36)) -> 0 | AF36: =IF($H36=0,0,INDEX(AF$324:AF$558,$H36)) -> 0 | AG36: =IF($H36=0,0,INDEX(AG$324:AG$558,$H36)) -> 0 | AH36: =IF($H36=0,0,INDEX(AH$324:AH$558,$H36)) -> 0 | AI36: =IF($H36=0,0,INDEX(AI$324:AI$558,$H36)) -> 0 | AJ36: =IF($H36=0,0,INDEX(AJ$324:AJ$558,$H36)) -> 0 | AK36: =IF($H36=0,0,INDEX(AK$324:AK$558,$H36)) -> 0 | AL36: =IF($H36=0,0,INDEX(AL$324:AL$558,$H36)) -> 0 | AM36: =IF($H36=0,0,INDEX(AM$324:AM$558,$H36)) -> 0 | AN36: =IF($H36=0,0,INDEX(AN$324:AN$558,$H36)) -> 0 | AO36: =IF($H36=0,0,INDEX(AO$324:AO$558,$H36)) -> 0 | AP36: =IF($H36=0,0,INDEX(AP$324:AP$558,$H36)) -> 0 | AQ36: =IF($H36=0,0,INDEX(AQ$324:AQ$558,$H36)) -> 0 | AR36: =IF($H36=0,0,INDEX(AR$324:AR$558,$H36)) -> 0
C37: Dedicated Circuit | D37: Residential | E37: LVDed | F37: 0 | G37: 0 | H37: 4 | I37: =IF($H37=0,0,INDEX(I$164:I$238,$H37)) -> 0 | J37: =IF($H37=0,0,INDEX(J$164:J$238,$H37)) -> 0 | K37: =IF($H37=0,0,INDEX(K$164:K$238,$H37)) -> 0 | L37: =IF($H37=0,0,INDEX(L$164:L$238,$H37)) -> 2.54 | M37: =IF($H37=0,0,INDEX(M$164:M$238,$H37)) -> 0 | N37: =IF($H37=0,0,INDEX(N$164:N$238,$H37)) -> 0 | O37: =IF($H37=0,0,INDEX(O$164:O$238,$H37)) -> 0 | P37: =IF($H37=0,0,INDEX(P$164:P$238,$H37)) -> 0 | Q37: =IF($H37=0,0,INDEX(Q$164:Q$238,$H37)) -> 0 | R37: =IF($H37=0,0,INDEX(R$164:R$238,$H37)) -> 0 | S37: =IF($H37=0,0,INDEX(S$164:S$238,$H37)) -> 0 | T37: =IF($H37=0,0,INDEX(T$164:T$238,$H37)) -> 0 | U37: =IF($H37=0,0,INDEX(U$164:U$238,$H37)) -> 0 | V37: =IF($H37=0,0,INDEX(V$164:V$238,$H37)) -> 0 | W37: =IF($H37=0,0,INDEX(W$164:W$238,$H37)) -> 0 | X37: =IF($H37=0,0,INDEX(X$164:X$238,$H37)) -> 0 | Y37: =IF($H37=0,0,INDEX(Y$164:Y$238,$H37)) -> 0 | Z37: =IF($H37=0,0,INDEX(Z$164:Z$238,$H37)) -> 0 | AA37: =IF($H37=0,0,INDEX(AA$164:AA$238,$H37)) -> 0 | AB37: =IF($H37=0,0,INDEX(AB$164:AB$238,$H37)) -> 0 | AD37: =IF(SUMPRODUCT(--_xlfn.ISFORMULA(C37:AB37))=26,"OK","CHECK") -> OK | AE37: =IF($H37=0,0,INDEX(AE$324:AE$558,$H37)) -> 0 | AF37: =IF($H37=0,0,INDEX(AF$324:AF$558,$H37)) -> 0 | AG37: =IF($H37=0,0,INDEX(AG$324:AG$558,$H37)) -> 0 | AH37: =IF($H37=0,0,INDEX(AH$324:AH$558,$H37)) -> 0 | AI37: =IF($H37=0,0,INDEX(AI$324:AI$558,$H37)) -> 0 | AJ37: =IF($H37=0,0,INDEX(AJ$324:AJ$558,$H37)) -> 0 | AK37: =IF($H37=0,0,INDEX(AK$324:AK$558,$H37)) -> 0 | AL37: =IF($H37=0,0,INDEX(AL$324:AL$558,$H37)) -> 0 | AM37: =IF($H37=0,0,INDEX(AM$324:AM$558,$H37)) -> 0 | AN37: =IF($H37=0,0,INDEX(AN$324:AN$558,$H37)) -> 0 | AO37: =IF($H37=0,0,INDEX(AO$324:AO$558,$H37)) -> 0 | AP37: =IF($H37=0,0,INDEX(AP$324:AP$558,$H37)) -> 0 | AQ37: =IF($H37=0,0,INDEX(AQ$324:AQ$558,$H37)) -> 0 | AR37: =IF($H37=0,0,INDEX(AR$324:AR$558,$H37)) -> 0
C38: Small Business single rate | D38: Small and medium business | E38: LVM1R | F38: 0 | G38: 0 | H38: 6 | I38: =IF($H38=0,0,INDEX(I$164:I$238,$H38)) -> 39.24 | J38: =IF($H38=0,0,INDEX(J$164:J$238,$H38)) -> 8.08 | K38: =IF($H38=0,0,INDEX(K$164:K$238,$H38)) -> 0 | L38: =IF($H38=0,0,INDEX(L$164:L$238,$H38)) -> 0 | M38: =IF($H38=0,0,INDEX(M$164:M$238,$H38)) -> 0 | N38: =IF($H38=0,0,INDEX(N$164:N$238,$H38)) -> 0 | O38: =IF($H38=0,0,INDEX(O$164:O$238,$H38)) -> 0 | P38: =IF($H38=0,0,INDEX(P$164:P$238,$H38)) -> 0 | Q38: =IF($H38=0,0,INDEX(Q$164:Q$238,$H38)) -> 0 | R38: =IF($H38=0,0,INDEX(R$164:R$238,$H38)) -> 0 | S38: =IF($H38=0,0,INDEX(S$164:S$238,$H38)) -> 0 | T38: =IF($H38=0,0,INDEX(T$164:T$238,$H38)) -> 0 | U38: =IF($H38=0,0,INDEX(U$164:U$238,$H38)) -> 0 | V38: =IF($H38=0,0,INDEX(V$164:V$238,$H38)) -> 0 | W38: =IF($H38=0,0,INDEX(W$164:W$238,$H38)) -> 0 | X38: =IF($H38=0,0,INDEX(X$164:X$238,$H38)) -> 0 | Y38: =IF($H38=0,0,INDEX(Y$164:Y$238,$H38)) -> 0 | Z38: =IF($H38=0,0,INDEX(Z$164:Z$238,$H38)) -> 0 | AA38: =IF($H38=0,0,INDEX(AA$164:AA$238,$H38)) -> 0 | AB38: =IF($H38=0,0,INDEX(AB$164:AB$238,$H38)) -> 0 | AD38: =IF(SUMPRODUCT(--_xlfn.ISFORMULA(C38:AB38))=26,"OK","CHECK") -> OK | AE38: =IF($H38=0,0,INDEX(AE$324:AE$558,$H38)) -> 0 | AF38: =IF($H38=0,0,INDEX(AF$324:AF$558,$H38)) -> 0 | AG38: =IF($H38=0,0,INDEX(AG$324:AG$558,$H38)) -> 0 | AH38: =IF($H38=0,0,INDEX(AH$324:AH$558,$H38)) -> 0 | AI38: =IF($H38=0,0,INDEX(AI$324:AI$558,$H38)) -> 0 | AJ38: =IF($H38=0,0,INDEX(AJ$324:AJ$558,$H38)) -> 0 | AK38: =IF($H38=0,0,INDEX(AK$324:AK$558,$H38)) -> 0 | AL38: =IF($H38=0,0,INDEX(AL$324:AL$558,$H38)) -> 0 | AM38: =IF($H38=0,0,INDEX(AM$324:AM$558,$H38)) -> 0 | AN38: =IF($H38=0,0,INDEX(AN$324:AN$558,$H38)) -> 0 | AO38: =IF($H38=0,0,INDEX(AO$324:AO$558,$H38)) -> 0 | AP38: =IF($H38=0,0,INDEX(AP$324:AP$558,$H38)) -> 0 | AQ38: =IF($H38=0,0,INDEX(AQ$324:AQ$558,$H38)) -> 0 | AR38: =IF($H38=0,0,INDEX(AR$324:AR$558,$H38)) -> 0
C39: Small Business ToU | D39: Small and medium business | E39: LVTOU | F39: 0 | G39: 0 | H39: 7 | I39: =IF($H39=0,0,INDEX(I$164:I$238,$H39)) -> 39.24 | J39: =IF($H39=0,0,INDEX(J$164:J$238,$H39)) -> 0 | K39: =IF($H39=0,0,INDEX(K$164:K$238,$H39)) -> 13.61 | L39: =IF($H39=0,0,INDEX(L$164:L$238,$H39)) -> 3.02 | M39: =IF($H39=0,0,INDEX(M$164:M$238,$H39)) -> 0 | N39: =IF($H39=0,0,INDEX(N$164:N$238,$H39)) -> 0 | O39: =IF($H39=0,0,INDEX(O$164:O$238,$H39)) -> 0 | P39: =IF($H39=0,0,INDEX(P$164:P$238,$H39)) -> 0 | Q39: =IF($H39=0,0,INDEX(Q$164:Q$238,$H39)) -> 0 | R39: =IF($H39=0,0,INDEX(R$164:R$238,$H39)) -> 0 | S39: =IF($H39=0,0,INDEX(S$164:S$238,$H39)) -> 0 | T39: =IF($H39=0,0,INDEX(T$164:T$238,$H39)) -> 0 | U39: =IF($H39=0,0,INDEX(U$164:U$238,$H39)) -> 0 | V39: =IF($H39=0,0,INDEX(V$164:V$238,$H39)) -> 0 | W39: =IF($H39=0,0,INDEX(W$164:W$238,$H39)) -> 0 | X39: =IF($H39=0,0,INDEX(X$164:X$238,$H39)) -> 0 | Y39: =IF($H39=0,0,INDEX(Y$164:Y$238,$H39)) -> 0 | Z39: =IF($H39=0,0,INDEX(Z$164:Z$238,$H39)) -> 0 | AA39: =IF($H39=0,0,INDEX(AA$164:AA$238,$H39)) -> 0 | AB39: =IF($H39=0,0,INDEX(AB$164:AB$238,$H39)) -> 0 | AD39: =IF(SUMPRODUCT(--_xlfn.ISFORMULA(C39:AB39))=26,"OK","CHECK") -> OK | AE39: =IF($H39=0,0,INDEX(AE$324:AE$558,$H39)) -> 0 | AF39: =IF($H39=0,0,INDEX(AF$324:AF$558,$H39)) -> 0 | AG39: =IF($H39=0,0,INDEX(AG$324:AG$558,$H39)) -> 0 | AH39: =IF($H39=0,0,INDEX(AH$324:AH$558,$H39)) -> 0 | AI39: =IF($H39=0,0,INDEX(AI$324:AI$558,$H39)) -> 0 | AJ39: =IF($H39=0,0,INDEX(AJ$324:AJ$558,$H39)) -> 0 | AK39: =IF($H39=0,0,INDEX(AK$324:AK$558,$H39)) -> 0 | AL39: =IF($H39=0,0,INDEX(AL$324:AL$558,$H39)) -> 0 | AM39: =IF($H39=0,0,INDEX(AM$324:AM$558,$H39)) -> 0 | AN39: =IF($H39=0,0,INDEX(AN$324:AN$558,$H39)) -> 0 | AO39: =IF($H39=0,0,INDEX(AO$324:AO$558,$H39)) -> 0 | AP39: =IF($H39=0,0,INDEX(AP$324:AP$558,$H39)) -> 0 | AQ39: =IF($H39=0,0,INDEX(AQ$324:AQ$558,$H39)) -> 0 | AR39: =IF($H39=0,0,INDEX(AR$324:AR$558,$H39)) -> 0
C40: 0 | D40: 0 | E40: 0 | F40: 0 | G40: 0 | H40: 0 | I40: =IF($H40=0,0,INDEX(I$164:I$238,$H40)) -> 0 | J40: =IF($H40=0,0,INDEX(J$164:J$238,$H40)) -> 0 | K40: =IF($H40=0,0,INDEX(K$164:K$238,$H40)) -> 0 | L40: =IF($H40=0,0,INDEX(L$164:L$238,$H40)) -> 0 | M40: =IF($H40=0,0,INDEX(M$164:M$238,$H40)) -> 0 | N40: =IF($H40=0,0,INDEX(N$164:N$238,$H40)) -> 0 | O40: =IF($H40=0,0,INDEX(O$164:O$238,$H40)) -> 0 | P40: =IF($H40=0,0,INDEX(P$164:P$238,$H40)) -> 0 | Q40: =IF($H40=0,0,INDEX(Q$164:Q$238,$H40)) -> 0 | R40: =IF($H40=0,0,INDEX(R$164:R$238,$H40)) -> 0 | S40: =IF($H40=0,0,INDEX(S$164:S$238,$H40)) -> 0 | T40: =IF($H40=0,0,INDEX(T$164:T$238,$H40)) -> 0 | U40: =IF($H40=0,0,INDEX(U$164:U$238,$H40)) -> 0 | V40: =IF($H40=0,0,INDEX(V$164:V$238,$H40)) -> 0 | W40: =IF($H40=0,0,INDEX(W$164:W$238,$H40)) -> 0 | X40: =IF($H40=0,0,INDEX(X$164:X$238,$H40)) -> 0 | Y40: =IF($H40=0,0,INDEX(Y$164:Y$238,$H40)) -> 0 | Z40: =IF($H40=0,0,INDEX(Z$164:Z$238,$H40)) -> 0 | AA40: =IF($H40=0,0,INDEX(AA$164:AA$238,$H40)) -> 0 | AB40: =IF($H40=0,0,INDEX(AB$164:AB$238,$H40)) -> 0 | AD40: =IF(SUMPRODUCT(--_xlfn.ISFORMULA(C40:AB40))=26,"OK","CHECK") -> OK | AE40: =IF($H40=0,0,INDEX(AE$324:AE$558,$H40)) -> 0 | AF40: =IF($H40=0,0,INDEX(AF$324:AF$558,$H40)) -> 0 | AG40: =IF($H40=0,0,INDEX(AG$324:AG$558,$H40)) -> 0 | AH40: =IF($H40=0,0,INDEX(AH$324:AH$558,$H40)) -> 0 | AI40: =IF($H40=0,0,INDEX(AI$324:AI$558,$H40)) -> 0 | AJ40: =IF($H40=0,0,INDEX(AJ$324:AJ$558,$H40)) -> 0 | AK40: =IF($H40=0,0,INDEX(AK$324:AK$558,$H40)) -> 0 | AL40: =IF($H40=0,0,INDEX(AL$324:AL$558,$H40)) -> 0 | AM40: =IF($H40=0,0,INDEX(AM$324:AM$558,$H40)) -> 0 | AN40: =IF($H40=0,0,INDEX(AN$324:AN$558,$H40)) -> 0 | AO40: =IF($H40=0,0,INDEX(AO$324:AO$558,$H40)) -> 0 | AP40: =IF($H40=0,0,INDEX(AP$324:AP$558,$H40)) -> 0 | AQ40: =IF($H40=0,0,INDEX(AQ$324:AQ$558,$H40)) -> 0 | AR40: =IF($H40=0,0,INDEX(AR$324:AR$558,$H40)) -> 0
C41: 0 | D41: 0 | E41: 0 | F41: 0 | G41: 0 | H41: 0 | I41: =IF($H41=0,0,INDEX(I$164:I$238,$H41)) -> 0 | J41: =IF($H41=0,0,INDEX(J$164:J$238,$H41)) -> 0 | K41: =IF($H41=0,0,INDEX(K$164:K$238,$H41)) -> 0 | L41: =IF($H41=0,0,INDEX(L$164:L$238,$H41)) -> 0 | M41: =IF($H41=0,0,INDEX(M$164:M$238,$H41)) -> 0 | N41: =IF($H41=0,0,INDEX(N$164:N$238,$H41)) -> 0 | O41: =IF($H41=0,0,INDEX(O$164:O$238,$H41)) -> 0 | P41: =IF($H41=0,0,INDEX(P$164:P$238,$H41)) -> 0 | Q41: =IF($H41=0,0,INDEX(Q$164:Q$238,$H41)) -> 0 | R41: =IF($H41=0,0,INDEX(R$164:R$238,$H41)) -> 0 | S41: =IF($H41=0,0,INDEX(S$164:S$238,$H41)) -> 0 | T41: =IF($H41=0,0,INDEX(T$164:T$238,$H41)) -> 0 | U41: =IF($H41=0,0,INDEX(U$164:U$238,$H41)) -> 0 | V41: =IF($H41=0,0,INDEX(V$164:V$238,$H41)) -> 0 | W41: =IF($H41=0,0,INDEX(W$164:W$238,$H41)) -> 0 | X41: =IF($H41=0,0,INDEX(X$164:X$238,$H41)) -> 0 | Y41: =IF($H41=0,0,INDEX(Y$164:Y$238,$H41)) -> 0 | Z41: =IF($H41=0,0,INDEX(Z$164:Z$238,$H41)) -> 0 | AA41: =IF($H41=0,0,INDEX(AA$164:AA$238,$H41)) -> 0 | AB41: =IF($H41=0,0,INDEX(AB$164:AB$238,$H41)) -> 0 | AD41: =IF(SUMPRODUCT(--_xlfn.ISFORMULA(C41:AB41))=26,"OK","CHECK") -> OK | AE41: =IF($H41=0,0,INDEX(AE$324:AE$558,$H41)) -> 0 | AF41: =IF($H41=0,0,INDEX(AF$324:AF$558,$H41)) -> 0 | AG41: =IF($H41=0,0,INDEX(AG$324:AG$558,$H41)) -> 0 | AH41: =IF($H41=0,0,INDEX(AH$324:AH$558,$H41)) -> 0 | AI41: =IF($H41=0,0,INDEX(AI$324:AI$558,$H41)) -> 0 | AJ41: =IF($H41=0,0,INDEX(AJ$324:AJ$558,$H41)) -> 0 | AK41: =IF($H41=0,0,INDEX(AK$324:AK$558,$H41)) -> 0 | AL41: =IF($H41=0,0,INDEX(AL$324:AL$558,$H41)) -> 0 | AM41: =IF($H41=0,0,INDEX(AM$324:AM$558,$H41)) -> 0 | AN41: =IF($H41=0,0,INDEX(AN$324:AN$558,$H41)) -> 0 | AO41: =IF($H41=0,0,INDEX(AO$324:AO$558,$H41)) -> 0 | AP41: =IF($H41=0,0,INDEX(AP$324:AP$558,$H41)) -> 0 | AQ41: =IF($H41=0,0,INDEX(AQ$324:AQ$558,$H41)) -> 0 | AR41: =IF($H41=0,0,INDEX(AR$324:AR$558,$H41)) -> 0
C42: 0 | D42: 0 | E42: 0 | F42: 0 | G42: 0 | H42: 0 | I42: =IF($H42=0,0,INDEX(I$164:I$238,$H42)) -> 0 | J42: =IF($H42=0,0,INDEX(J$164:J$238,$H42)) -> 0 | K42: =IF($H42=0,0,INDEX(K$164:K$238,$H42)) -> 0 | L42: =IF($H42=0,0,INDEX(L$164:L$238,$H42)) -> 0 | M42: =IF($H42=0,0,INDEX(M$164:M$238,$H42)) -> 0 | N42: =IF($H42=0,0,INDEX(N$164:N$238,$H42)) -> 0 | O42: =IF($H42=0,0,INDEX(O$164:O$238,$H42)) -> 0 | P42: =IF($H42=0,0,INDEX(P$164:P$238,$H42)) -> 0 | Q42: =IF($H42=0,0,INDEX(Q$164:Q$238,$H42)) -> 0 | R42: =IF($H42=0,0,INDEX(R$164:R$238,$H42)) -> 0 | S42: =IF($H42=0,0,INDEX(S$164:S$238,$H42)) -> 0 | T42: =IF($H42=0,0,INDEX(T$164:T$238,$H42)) -> 0 | U42: =IF($H42=0,0,INDEX(U$164:U$238,$H42)) -> 0 | V42: =IF($H42=0,0,INDEX(V$164:V$238,$H42)) -> 0 | W42: =IF($H42=0,0,INDEX(W$164:W$238,$H42)) -> 0 | X42: =IF($H42=0,0,INDEX(X$164:X$238,$H42)) -> 0 | Y42: =IF($H42=0,0,INDEX(Y$164:Y$238,$H42)) -> 0 | Z42: =IF($H42=0,0,INDEX(Z$164:Z$238,$H42)) -> 0 | AA42: =IF($H42=0,0,INDEX(AA$164:AA$238,$H42)) -> 0 | AB42: =IF($H42=0,0,INDEX(AB$164:AB$238,$H42)) -> 0 | AD42: =IF(SUMPRODUCT(--_xlfn.ISFORMULA(C42:AB42))=26,"OK","CHECK") -> OK | AE42: =IF($H42=0,0,INDEX(AE$324:AE$558,$H42)) -> 0 | AF42: =IF($H42=0,0,INDEX(AF$324:AF$558,$H42)) -> 0 | AG42: =IF($H42=0,0,INDEX(AG$324:AG$558,$H42)) -> 0 | AH42: =IF($H42=0,0,INDEX(AH$324:AH$558,$H42)) -> 0 | AI42: =IF($H42=0,0,INDEX(AI$324:AI$558,$H42)) -> 0 | AJ42: =IF($H42=0,0,INDEX(AJ$324:AJ$558,$H42)) -> 0 | AK42: =IF($H42=0,0,INDEX(AK$324:AK$558,$H42)) -> 0 | AL42: =IF($H42=0,0,INDEX(AL$324:AL$558,$H42)) -> 0 | AM42: =IF($H42=0,0,INDEX(AM$324:AM$558,$H42)) -> 0 | AN42: =IF($H42=0,0,INDEX(AN$324:AN$558,$H42)) -> 0 | AO42: =IF($H42=0,0,INDEX(AO$324:AO$558,$H42)) -> 0 | AP42: =IF($H42=0,0,INDEX(AP$324:AP$558,$H42)) -> 0 | AQ42: =IF($H42=0,0,INDEX(AQ$324:AQ$558,$H42)) -> 0 | AR42: =IF($H42=0,0,INDEX(AR$324:AR$558,$H42)) -> 0
C43: 0 | D43: 0 | E43: 0 | F43: 0 | G43: 0 | H43: 0 | I43: =IF($H43=0,0,INDEX(I$164:I$238,$H43)) -> 0 | J43: =IF($H43=0,0,INDEX(J$164:J$238,$H43)) -> 0 | K43: =IF($H43=0,0,INDEX(K$164:K$238,$H43)) -> 0 | L43: =IF($H43=0,0,INDEX(L$164:L$238,$H43)) -> 0 | M43: =IF($H43=0,0,INDEX(M$164:M$238,$H43)) -> 0 | N43: =IF($H43=0,0,INDEX(N$164:N$238,$H43)) -> 0 | O43: =IF($H43=0,0,INDEX(O$164:O$238,$H43)) -> 0 | P43: =IF($H43=0,0,INDEX(P$164:P$238,$H43)) -> 0 | Q43: =IF($H43=0,0,INDEX(Q$164:Q$238,$H43)) -> 0 | R43: =IF($H43=0,0,INDEX(R$164:R$238,$H43)) -> 0 | S43: =IF($H43=0,0,INDEX(S$164:S$238,$H43)) -> 0 | T43: =IF($H43=0,0,INDEX(T$164:T$238,$H43)) -> 0 | U43: =IF($H43=0,0,INDEX(U$164:U$238,$H43)) -> 0 | V43: =IF($H43=0,0,INDEX(V$164:V$238,$H43)) -> 0 | W43: =IF($H43=0,0,INDEX(W$164:W$238,$H43)) -> 0 | X43: =IF($H43=0,0,INDEX(X$164:X$238,$H43)) -> 0 | Y43: =IF($H43=0,0,INDEX(Y$164:Y$238,$H43)) -> 0 | Z43: =IF($H43=0,0,INDEX(Z$164:Z$238,$H43)) -> 0 | AA43: =IF($H43=0,0,INDEX(AA$164:AA$238,$H43)) -> 0 | AB43: =IF($H43=0,0,INDEX(AB$164:AB$238,$H43)) -> 0 | AD43: =IF(SUMPRODUCT(--_xlfn.ISFORMULA(C43:AB43))=26,"OK","CHECK") -> OK | AE43: =IF($H43=0,0,INDEX(AE$324:AE$558,$H43)) -> 0 | AF43: =IF($H43=0,0,INDEX(AF$324:AF$558,$H43)) -> 0 | AG43: =IF($H43=0,0,INDEX(AG$324:AG$558,$H43)) -> 0 | AH43: =IF($H43=0,0,INDEX(AH$324:AH$558,$H43)) -> 0 | AI43: =IF($H43=0,0,INDEX(AI$324:AI$558,$H43)) -> 0 | AJ43: =IF($H43=0,0,INDEX(AJ$324:AJ$558,$H43)) -> 0 | AK43: =IF($H43=0,0,INDEX(AK$324:AK$558,$H43)) -> 0 | AL43: =IF($H43=0,0,INDEX(AL$324:AL$558,$H43)) -> 0 | AM43: =IF($H43=0,0,INDEX(AM$324:AM$558,$H43)) -> 0 | AN43: =IF($H43=0,0,INDEX(AN$324:AN$558,$H43)) -> 0 | AO43: =IF($H43=0,0,INDEX(AO$324:AO$558,$H43)) -> 0 | AP43: =IF($H43=0,0,INDEX(AP$324:AP$558,$H43)) -> 0 | AQ43: =IF($H43=0,0,INDEX(AQ$324:AQ$558,$H43)) -> 0 | AR43: =IF($H43=0,0,INDEX(AR$324:AR$558,$H43)) -> 0
C44: 0 | D44: 0 | E44: 0 | F44: 0 | G44: 0 | H44: 0 | I44: =IF($H44=0,0,INDEX(I$164:I$238,$H44)) -> 0 | J44: =IF($H44=0,0,INDEX(J$164:J$238,$H44)) -> 0 | K44: =IF($H44=0,0,INDEX(K$164:K$238,$H44)) -> 0 | L44: =IF($H44=0,0,INDEX(L$164:L$238,$H44)) -> 0 | M44: =IF($H44=0,0,INDEX(M$164:M$238,$H44)) -> 0 | N44: =IF($H44=0,0,INDEX(N$164:N$238,$H44)) -> 0 | O44: =IF($H44=0,0,INDEX(O$164:O$238,$H44)) -> 0 | P44: =IF($H44=0,0,INDEX(P$164:P$238,$H44)) -> 0 | Q44: =IF($H44=0,0,INDEX(Q$164:Q$238,$H44)) -> 0 | R44: =IF($H44=0,0,INDEX(R$164:R$238,$H44)) -> 0 | S44: =IF($H44=0,0,INDEX(S$164:S$238,$H44)) -> 0 | T44: =IF($H44=0,0,INDEX(T$164:T$238,$H44)) -> 0 | U44: =IF($H44=0,0,INDEX(U$164:U$238,$H44)) -> 0 | V44: =IF($H44=0,0,INDEX(V$164:V$238,$H44)) -> 0 | W44: =IF($H44=0,0,INDEX(W$164:W$238,$H44)) -> 0 | X44: =IF($H44=0,0,INDEX(X$164:X$238,$H44)) -> 0 | Y44: =IF($H44=0,0,INDEX(Y$164:Y$238,$H44)) -> 0 | Z44: =IF($H44=0,0,INDEX(Z$164:Z$238,$H44)) -> 0 | AA44: =IF($H44=0,0,INDEX(AA$164:AA$238,$H44)) -> 0 | AB44: =IF($H44=0,0,INDEX(AB$164:AB$238,$H44)) -> 0 | AD44: =IF(SUMPRODUCT(--_xlfn.ISFORMULA(C44:AB44))=26,"OK","CHECK") -> OK | AE44: =IF($H44=0,0,INDEX(AE$324:AE$558,$H44)) -> 0 | AF44: =IF($H44=0,0,INDEX(AF$324:AF$558,$H44)) -> 0 | AG44: =IF($H44=0,0,INDEX(AG$324:AG$558,$H44)) -> 0 | AH44: =IF($H44=0,0,INDEX(AH$324:AH$558,$H44)) -> 0 | AI44: =IF($H44=0,0,INDEX(AI$324:AI$558,$H44)) -> 0 | AJ44: =IF($H44=0,0,INDEX(AJ$324:AJ$558,$H44)) -> 0 | AK44: =IF($H44=0,0,INDEX(AK$324:AK$558,$H44)) -> 0 | AL44: =IF($H44=0,0,INDEX(AL$324:AL$558,$H44)) -> 0 | AM44: =IF($H44=0,0,INDEX(AM$324:AM$558,$H44)) -> 0 | AN44: =IF($H44=0,0,INDEX(AN$324:AN$558,$H44)) -> 0 | AO44: =IF($H44=0,0,INDEX(AO$324:AO$558,$H44)) -> 0 | AP44: =IF($H44=0,0,INDEX(AP$324:AP$558,$H44)) -> 0 | AQ44: =IF($H44=0,0,INDEX(AQ$324:AQ$558,$H44)) -> 0 | AR44: =IF($H44=0,0,INDEX(AR$324:AR$558,$H44)) -> 0
C45: 0 | D45: 0 | E45: 0 | F45: 0 | G45: 0 | H45: 0 | I45: =IF($H45=0,0,INDEX(I$164:I$238,$H45)) -> 0 | J45: =IF($H45=0,0,INDEX(J$164:J$238,$H45)) -> 0 | K45: =IF($H45=0,0,INDEX(K$164:K$238,$H45)) -> 0 | L45: =IF($H45=0,0,INDEX(L$164:L$238,$H45)) -> 0 | M45: =IF($H45=0,0,INDEX(M$164:M$238,$H45)) -> 0 | N45: =IF($H45=0,0,INDEX(N$164:N$238,$H45)) -> 0 | O45: =IF($H45=0,0,INDEX(O$164:O$238,$H45)) -> 0 | P45: =IF($H45=0,0,INDEX(P$164:P$238,$H45)) -> 0 | Q45: =IF($H45=0,0,INDEX(Q$164:Q$238,$H45)) -> 0 | R45: =IF($H45=0,0,INDEX(R$164:R$238,$H45)) -> 0 | S45: =IF($H45=0,0,INDEX(S$164:S$238,$H45)) -> 0 | T45: =IF($H45=0,0,INDEX(T$164:T$238,$H45)) -> 0 | U45: =IF($H45=0,0,INDEX(U$164:U$238,$H45)) -> 0 | V45: =IF($H45=0,0,INDEX(V$164:V$238,$H45)) -> 0 | W45: =IF($H45=0,0,INDEX(W$164:W$238,$H45)) -> 0 | X45: =IF($H45=0,0,INDEX(X$164:X$238,$H45)) -> 0 | Y45: =IF($H45=0,0,INDEX(Y$164:Y$238,$H45)) -> 0 | Z45: =IF($H45=0,0,INDEX(Z$164:Z$238,$H45)) -> 0 | AA45: =IF($H45=0,0,INDEX(AA$164:AA$238,$H45)) -> 0 | AB45: =IF($H45=0,0,INDEX(AB$164:AB$238,$H45)) -> 0 | AD45: =IF(SUMPRODUCT(--_xlfn.ISFORMULA(C45:AB45))=26,"OK","CHECK") -> OK | AE45: =IF($H45=0,0,INDEX(AE$324:AE$558,$H45)) -> 0 | AF45: =IF($H45=0,0,INDEX(AF$324:AF$558,$H45)) -> 0 | AG45: =IF($H45=0,0,INDEX(AG$324:AG$558,$H45)) -> 0 | AH45: =IF($H45=0,0,INDEX(AH$324:AH$558,$H45)) -> 0 | AI45: =IF($H45=0,0,INDEX(AI$324:AI$558,$H45)) -> 0 | AJ45: =IF($H45=0,0,INDEX(AJ$324:AJ$558,$H45)) -> 0 | AK45: =IF($H45=0,0,INDEX(AK$324:AK$558,$H45)) -> 0 | AL45: =IF($H45=0,0,INDEX(AL$324:AL$558,$H45)) -> 0 | AM45: =IF($H45=0,0,INDEX(AM$324:AM$558,$H45)) -> 0 | AN45: =IF($H45=0,0,INDEX(AN$324:AN$558,$H45)) -> 0 | AO45: =IF($H45=0,0,INDEX(AO$324:AO$558,$H45)) -> 0 | AP45: =IF($H45=0,0,INDEX(AP$324:AP$558,$H45)) -> 0 | AQ45: =IF($H45=0,0,INDEX(AQ$324:AQ$558,$H45)) -> 0 | AR45: =IF($H45=0,0,INDEX(AR$324:AR$558,$H45)) -> 0
C46: 0 | D46: 0 | E46: 0 | F46: 0 | G46: 0 | H46: 0 | I46: =IF($H46=0,0,INDEX(I$164:I$238,$H46)) -> 0 | J46: =IF($H46=0,0,INDEX(J$164:J$238,$H46)) -> 0 | K46: =IF($H46=0,0,INDEX(K$164:K$238,$H46)) -> 0 | L46: =IF($H46=0,0,INDEX(L$164:L$238,$H46)) -> 0 | M46: =IF($H46=0,0,INDEX(M$164:M$238,$H46)) -> 0 | N46: =IF($H46=0,0,INDEX(N$164:N$238,$H46)) -> 0 | O46: =IF($H46=0,0,INDEX(O$164:O$238,$H46)) -> 0 | P46: =IF($H46=0,0,INDEX(P$164:P$238,$H46)) -> 0 | Q46: =IF($H46=0,0,INDEX(Q$164:Q$238,$H46)) -> 0 | R46: =IF($H46=0,0,INDEX(R$164:R$238,$H46)) -> 0 | S46: =IF($H46=0,0,INDEX(S$164:S$238,$H46)) -> 0 | T46: =IF($H46=0,0,INDEX(T$164:T$238,$H46)) -> 0 | U46: =IF($H46=0,0,INDEX(U$164:U$238,$H46)) -> 0 | V46: =IF($H46=0,0,INDEX(V$164:V$238,$H46)) -> 0 | W46: =IF($H46=0,0,INDEX(W$164:W$238,$H46)) -> 0 | X46: =IF($H46=0,0,INDEX(X$164:X$238,$H46)) -> 0 | Y46: =IF($H46=0,0,INDEX(Y$164:Y$238,$H46)) -> 0 | Z46: =IF($H46=0,0,INDEX(Z$164:Z$238,$H46)) -> 0 | AA46: =IF($H46=0,0,INDEX(AA$164:AA$238,$H46)) -> 0 | AB46: =IF($H46=0,0,INDEX(AB$164:AB$238,$H46)) -> 0 | AD46: =IF(SUMPRODUCT(--_xlfn.ISFORMULA(C46:AB46))=26,"OK","CHECK") -> OK | AE46: =IF($H46=0,0,INDEX(AE$324:AE$558,$H46)) -> 0 | AF46: =IF($H46=0,0,INDEX(AF$324:AF$558,$H46)) -> 0 | AG46: =IF($H46=0,0,INDEX(AG$324:AG$558,$H46)) -> 0 | AH46: =IF($H46=0,0,INDEX(AH$324:AH$558,$H46)) -> 0 | AI46: =IF($H46=0,0,INDEX(AI$324:AI$558,$H46)) -> 0 | AJ46: =IF($H46=0,0,INDEX(AJ$324:AJ$558,$H46)) -> 0 | AK46: =IF($H46=0,0,INDEX(AK$324:AK$558,$H46)) -> 0 | AL46: =IF($H46=0,0,INDEX(AL$324:AL$558,$H46)) -> 0 | AM46: =IF($H46=0,0,INDEX(AM$324:AM$558,$H46)) -> 0 | AN46: =IF($H46=0,0,INDEX(AN$324:AN$558,$H46)) -> 0 | AO46: =IF($H46=0,0,INDEX(AO$324:AO$558,$H46)) -> 0 | AP46: =IF($H46=0,0,INDEX(AP$324:AP$558,$H46)) -> 0 | AQ46: =IF($H46=0,0,INDEX(AQ$324:AQ$558,$H46)) -> 0 | AR46: =IF($H46=0,0,INDEX(AR$324:AR$558,$H46)) -> 0
C47: 0 | D47: 0 | E47: 0 | F47: 0 | G47: 0 | H47: 0 | I47: =IF($H47=0,0,INDEX(I$164:I$238,$H47)) -> 0 | J47: =IF($H47=0,0,INDEX(J$164:J$238,$H47)) -> 0 | K47: =IF($H47=0,0,INDEX(K$164:K$238,$H47)) -> 0 | L47: =IF($H47=0,0,INDEX(L$164:L$238,$H47)) -> 0 | M47: =IF($H47=0,0,INDEX(M$164:M$238,$H47)) -> 0 | N47: =IF($H47=0,0,INDEX(N$164:N$238,$H47)) -> 0 | O47: =IF($H47=0,0,INDEX(O$164:O$238,$H47)) -> 0 | P47: =IF($H47=0,0,INDEX(P$164:P$238,$H47)) -> 0 | Q47: =IF($H47=0,0,INDEX(Q$164:Q$238,$H47)) -> 0 | R47: =IF($H47=0,0,INDEX(R$164:R$238,$H47)) -> 0 | S47: =IF($H47=0,0,INDEX(S$164:S$238,$H47)) -> 0 | T47: =IF($H47=0,0,INDEX(T$164:T$238,$H47)) -> 0 | U47: =IF($H47=0,0,INDEX(U$164:U$238,$H47)) -> 0 | V47: =IF($H47=0,0,INDEX(V$164:V$238,$H47)) -> 0 | W47: =IF($H47=0,0,INDEX(W$164:W$238,$H47)) -> 0 | X47: =IF($H47=0,0,INDEX(X$164:X$238,$H47)) -> 0 | Y47: =IF($H47=0,0,INDEX(Y$164:Y$238,$H47)) -> 0 | Z47: =IF($H47=0,0,INDEX(Z$164:Z$238,$H47)) -> 0 | AA47: =IF($H47=0,0,INDEX(AA$164:AA$238,$H47)) -> 0 | AB47: =IF($H47=0,0,INDEX(AB$164:AB$238,$H47)) -> 0 | AD47: =IF(SUMPRODUCT(--_xlfn.ISFORMULA(C47:AB47))=26,"OK","CHECK") -> OK | AE47: =IF($H47=0,0,INDEX(AE$324:AE$558,$H47)) -> 0 | AF47: =IF($H47=0,0,INDEX(AF$324:AF$558,$H47)) -> 0 | AG47: =IF($H47=0,0,INDEX(AG$324:AG$558,$H47)) -> 0 | AH47: =IF($H47=0,0,INDEX(AH$324:AH$558,$H47)) -> 0 | AI47: =IF($H47=0,0,INDEX(AI$324:AI$558,$H47)) -> 0 | AJ47: =IF($H47=0,0,INDEX(AJ$324:AJ$558,$H47)) -> 0 | AK47: =IF($H47=0,0,INDEX(AK$324:AK$558,$H47)) -> 0 | AL47: =IF($H47=0,0,INDEX(AL$324:AL$558,$H47)) -> 0 | AM47: =IF($H47=0,0,INDEX(AM$324:AM$558,$H47)) -> 0 | AN47: =IF($H47=0,0,INDEX(AN$324:AN$558,$H47)) -> 0 | AO47: =IF($H47=0,0,INDEX(AO$324:AO$558,$H47)) -> 0 | AP47: =IF($H47=0,0,INDEX(AP$324:AP$558,$H47)) -> 0 | AQ47: =IF($H47=0,0,INDEX(AQ$324:AQ$558,$H47)) -> 0 | AR47: =IF($H47=0,0,INDEX(AR$324:AR$558,$H47)) -> 0
C48: 0 | D48: 0 | E48: 0 | F48: 0 | G48: 0 | H48: 0 | I48: =IF($H48=0,0,INDEX(I$164:I$238,$H48)) -> 0 | J48: =IF($H48=0,0,INDEX(J$164:J$238,$H48)) -> 0 | K48: =IF($H48=0,0,INDEX(K$164:K$238,$H48)) -> 0 | L48: =IF($H48=0,0,INDEX(L$164:L$238,$H48)) -> 0 | M48: =IF($H48=0,0,INDEX(M$164:M$238,$H48)) -> 0 | N48: =IF($H48=0,0,INDEX(N$164:N$238,$H48)) -> 0 | O48: =IF($H48=0,0,INDEX(O$164:O$238,$H48)) -> 0 | P48: =IF($H48=0,0,INDEX(P$164:P$238,$H48)) -> 0 | Q48: =IF($H48=0,0,INDEX(Q$164:Q$238,$H48)) -> 0 | R48: =IF($H48=0,0,INDEX(R$164:R$238,$H48)) -> 0 | S48: =IF($H48=0,0,INDEX(S$164:S$238,$H48)) -> 0 | T48: =IF($H48=0,0,INDEX(T$164:T$238,$H48)) -> 0 | U48: =IF($H48=0,0,INDEX(U$164:U$238,$H48)) -> 0 | V48: =IF($H48=0,0,INDEX(V$164:V$238,$H48)) -> 0 | W48: =IF($H48=0,0,INDEX(W$164:W$238,$H48)) -> 0 | X48: =IF($H48=0,0,INDEX(X$164:X$238,$H48)) -> 0 | Y48: =IF($H48=0,0,INDEX(Y$164:Y$238,$H48)) -> 0 | Z48: =IF($H48=0,0,INDEX(Z$164:Z$238,$H48)) -> 0 | AA48: =IF($H48=0,0,INDEX(AA$164:AA$238,$H48)) -> 0 | AB48: =IF($H48=0,0,INDEX(AB$164:AB$238,$H48)) -> 0 | AD48: =IF(SUMPRODUCT(--_xlfn.ISFORMULA(C48:AB48))=26,"OK","CHECK") -> OK | AE48: =IF($H48=0,0,INDEX(AE$324:AE$558,$H48)) -> 0 | AF48: =IF($H48=0,0,INDEX(AF$324:AF$558,$H48)) -> 0 | AG48: =IF($H48=0,0,INDEX(AG$324:AG$558,$H48)) -> 0 | AH48: =IF($H48=0,0,INDEX(AH$324:AH$558,$H48)) -> 0 | AI48: =IF($H48=0,0,INDEX(AI$324:AI$558,$H48)) -> 0 | AJ48: =IF($H48=0,0,INDEX(AJ$324:AJ$558,$H48)) -> 0 | AK48: =IF($H48=0,0,INDEX(AK$324:AK$558,$H48)) -> 0 | AL48: =IF($H48=0,0,INDEX(AL$324:AL$558,$H48)) -> 0 | AM48: =IF($H48=0,0,INDEX(AM$324:AM$558,$H48)) -> 0 | AN48: =IF($H48=0,0,INDEX(AN$324:AN$558,$H48)) -> 0 | AO48: =IF($H48=0,0,INDEX(AO$324:AO$558,$H48)) -> 0 | AP48: =IF($H48=0,0,INDEX(AP$324:AP$558,$H48)) -> 0 | AQ48: =IF($H48=0,0,INDEX(AQ$324:AQ$558,$H48)) -> 0 | AR48: =IF($H48=0,0,INDEX(AR$324:AR$558,$H48)) -> 0
C50: =C241 -> Designated Pricing Proposal Costs
C51: =C19 -> Residential Single Rate | D51: Residential | E51: LVS1R | F51: 0 | G51: 0 | H51: 1 | I51: =IF($H51=0,0,INDEX(I$242:I$316,$H51)) -> 0 | J51: =IF($H51=0,0,INDEX(J$242:J$316,$H51)) -> 1.92 | K51: =IF($H51=0,0,INDEX(K$242:K$316,$H51)) -> 0 | L51: =IF($H51=0,0,INDEX(L$242:L$316,$H51)) -> 0 | M51: =IF($H51=0,0,INDEX(M$242:M$316,$H51)) -> 0 | N51: =IF($H51=0,0,INDEX(N$242:N$316,$H51)) -> 0 | O51: =IF($H51=0,0,INDEX(O$242:O$316,$H51)) -> 0 | P51: =IF($H51=0,0,INDEX(P$242:P$316,$H51)) -> 0 | Q51: =IF($H51=0,0,INDEX(Q$242:Q$316,$H51)) -> 0 | R51: =IF($H51=0,0,INDEX(R$242:R$316,$H51)) -> 0 | S51: =IF($H51=0,0,INDEX(S$242:S$316,$H51)) -> 0 | T51: =IF($H51=0,0,INDEX(T$242:T$316,$H51)) -> 0 | U51: =IF($H51=0,0,INDEX(U$242:U$316,$H51)) -> 0 | V51: =IF($H51=0,0,INDEX(V$242:V$316,$H51)) -> 0 | W51: =IF($H51=0,0,INDEX(W$242:W$316,$H51)) -> 0 | X51: =IF($H51=0,0,INDEX(X$242:X$316,$H51)) -> 0 | Y51: =IF($H51=0,0,INDEX(Y$242:Y$316,$H51)) -> 0 | Z51: =IF($H51=0,0,INDEX(Z$242:Z$316,$H51)) -> 0 | AA51: =IF($H51=0,0,INDEX(AA$242:AA$316,$H51)) -> 0 | AB51: =IF($H51=0,0,INDEX(AB$242:AB$316,$H51)) -> 0 | AD51: =IF(SUMPRODUCT(--_xlfn.ISFORMULA(C51:AB51))=26,"OK","CHECK") -> OK | AE51: =IF($H51=0,0,INDEX(AE$562:AE$796,$H51)) -> 0 | AF51: =IF($H51=0,0,INDEX(AF$562:AF$796,$H51)) -> 0 | AG51: =IF($H51=0,0,INDEX(AG$562:AG$796,$H51)) -> 0 | AH51: =IF($H51=0,0,INDEX(AH$562:AH$796,$H51)) -> 0 | AI51: =IF($H51=0,0,INDEX(AI$562:AI$796,$H51)) -> 0 | AJ51: =IF($H51=0,0,INDEX(AJ$562:AJ$796,$H51)) -> 0 | AK51: =IF($H51=0,0,INDEX(AK$562:AK$796,$H51)) -> 0 | AL51: =IF($H51=0,0,INDEX(AL$562:AL$796,$H51)) -> 0 | AM51: =IF($H51=0,0,INDEX(AM$562:AM$796,$H51)) -> 0 | AN51: =IF($H51=0,0,INDEX(AN$562:AN$796,$H51)) -> 0 | AO51: =IF($H51=0,0,INDEX(AO$562:AO$796,$H51)) -> 0 | AP51: =IF($H51=0,0,INDEX(AP$562:AP$796,$H51)) -> 0 | AQ51: =IF($H51=0,0,INDEX(AQ$562:AQ$796,$H51)) -> 0 | AR51: =IF($H51=0,0,INDEX(AR$562:AR$796,$H51)) -> 0
C52: =C20 -> Residential ToU | D52: Residential | E52: URTOU | F52: 0 | G52: 0 | H52: 2 | I52: =IF($H52=0,0,INDEX(I$242:I$316,$H52)) -> 0 | J52: =IF($H52=0,0,INDEX(J$242:J$316,$H52)) -> 0 | K52: =IF($H52=0,0,INDEX(K$242:K$316,$H52)) -> 3.74 | L52: =IF($H52=0,0,INDEX(L$242:L$316,$H52)) -> 0.93 | M52: =IF($H52=0,0,INDEX(M$242:M$316,$H52)) -> 0 | N52: =IF($H52=0,0,INDEX(N$242:N$316,$H52)) -> 0 | O52: =IF($H52=0,0,INDEX(O$242:O$316,$H52)) -> 0 | P52: =IF($H52=0,0,INDEX(P$242:P$316,$H52)) -> 0 | Q52: =IF($H52=0,0,INDEX(Q$242:Q$316,$H52)) -> 0 | R52: =IF($H52=0,0,INDEX(R$242:R$316,$H52)) -> 0 | S52: =IF($H52=0,0,INDEX(S$242:S$316,$H52)) -> 0 | T52: =IF($H52=0,0,INDEX(T$242:T$316,$H52)) -> 0 | U52: =IF($H52=0,0,INDEX(U$242:U$316,$H52)) -> 0 | V52: =IF($H52=0,0,INDEX(V$242:V$316,$H52)) -> 0 | W52: =IF($H52=0,0,INDEX(W$242:W$316,$H52)) -> 0 | X52: =IF($H52=0,0,INDEX(X$242:X$316,$H52)) -> 0 | Y52: =IF($H52=0,0,INDEX(Y$242:Y$316,$H52)) -> 0 | Z52: =IF($H52=0,0,INDEX(Z$242:Z$316,$H52)) -> 0 | AA52: =IF($H52=0,0,INDEX(AA$242:AA$316,$H52)) -> 0 | AB52: =IF($H52=0,0,INDEX(AB$242:AB$316,$H52)) -> 0 | AD52: =IF(SUMPRODUCT(--_xlfn.ISFORMULA(C52:AB52))=26,"OK","CHECK") -> OK | AE52: =IF($H52=0,0,INDEX(AE$562:AE$796,$H52)) -> 0 | AF52: =IF($H52=0,0,INDEX(AF$562:AF$796,$H52)) -> 0 | AG52: =IF($H52=0,0,INDEX(AG$562:AG$796,$H52)) -> 0 | AH52: =IF($H52=0,0,INDEX(AH$562:AH$796,$H52)) -> 0 | AI52: =IF($H52=0,0,INDEX(AI$562:AI$796,$H52)) -> 0 | AJ52: =IF($H52=0,0,INDEX(AJ$562:AJ$796,$H52)) -> 0 | AK52: =IF($H52=0,0,INDEX(AK$562:AK$796,$H52)) -> 0 | AL52: =IF($H52=0,0,INDEX(AL$562:AL$796,$H52)) -> 0 | AM52: =IF($H52=0,0,INDEX(AM$562:AM$796,$H52)) -> 0 | AN52: =IF($H52=0,0,INDEX(AN$562:AN$796,$H52)) -> 0 | AO52: =IF($H52=0,0,INDEX(AO$562:AO$796,$H52)) -> 0 | AP52: =IF($H52=0,0,INDEX(AP$562:AP$796,$H52)) -> 0 | AQ52: =IF($H52=0,0,INDEX(AQ$562:AQ$796,$H52)) -> 0 | AR52: =IF($H52=0,0,INDEX(AR$562:AR$796,$H52)) -> 0
C53: Dedicated Circuit | D53: Residential | E53: LVDed | F53: 0 | G53: 0 | H53: 4 | I53: =IF($H53=0,0,INDEX(I$242:I$316,$H53)) -> 0 | J53: =IF($H53=0,0,INDEX(J$242:J$316,$H53)) -> 0 | K53: =IF($H53=0,0,INDEX(K$242:K$316,$H53)) -> 0 | L53: =IF($H53=0,0,INDEX(L$242:L$316,$H53)) -> 0 | M53: =IF($H53=0,0,INDEX(M$242:M$316,$H53)) -> 0 | N53: =IF($H53=0,0,INDEX(N$242:N$316,$H53)) -> 0 | O53: =IF($H53=0,0,INDEX(O$242:O$316,$H53)) -> 0 | P53: =IF($H53=0,0,INDEX(P$242:P$316,$H53)) -> 0 | Q53: =IF($H53=0,0,INDEX(Q$242:Q$316,$H53)) -> 0 | R53: =IF($H53=0,0,INDEX(R$242:R$316,$H53)) -> 0 | S53: =IF($H53=0,0,INDEX(S$242:S$316,$H53)) -> 0 | T53: =IF($H53=0,0,INDEX(T$242:T$316,$H53)) -> 0 | U53: =IF($H53=0,0,INDEX(U$242:U$316,$H53)) -> 0 | V53: =IF($H53=0,0,INDEX(V$242:V$316,$H53)) -> 0 | W53: =IF($H53=0,0,INDEX(W$242:W$316,$H53)) -> 0 | X53: =IF($H53=0,0,INDEX(X$242:X$316,$H53)) -> 0 | Y53: =IF($H53=0,0,INDEX(Y$242:Y$316,$H53)) -> 0 | Z53: =IF($H53=0,0,INDEX(Z$242:Z$316,$H53)) -> 0 | AA53: =IF($H53=0,0,INDEX(AA$242:AA$316,$H53)) -> 0 | AB53: =IF($H53=0,0,INDEX(AB$242:AB$316,$H53)) -> 0 | AD53: =IF(SUMPRODUCT(--_xlfn.ISFORMULA(C53:AB53))=26,"OK","CHECK") -> OK | AE53: =IF($H53=0,0,INDEX(AE$562:AE$796,$H53)) -> 0 | AF53: =IF($H53=0,0,INDEX(AF$562:AF$796,$H53)) -> 0 | AG53: =IF($H53=0,0,INDEX(AG$562:AG$796,$H53)) -> 0 | AH53: =IF($H53=0,0,INDEX(AH$562:AH$796,$H53)) -> 0 | AI53: =IF($H53=0,0,INDEX(AI$562:AI$796,$H53)) -> 0 | AJ53: =IF($H53=0,0,INDEX(AJ$562:AJ$796,$H53)) -> 0 | AK53: =IF($H53=0,0,INDEX(AK$562:AK$796,$H53)) -> 0 | AL53: =IF($H53=0,0,INDEX(AL$562:AL$796,$H53)) -> 0 | AM53: =IF($H53=0,0,INDEX(AM$562:AM$796,$H53)) -> 0 | AN53: =IF($H53=0,0,INDEX(AN$562:AN$796,$H53)) -> 0 | AO53: =IF($H53=0,0,INDEX(AO$562:AO$796,$H53)) -> 0 | AP53: =IF($H53=0,0,INDEX(AP$562:AP$796,$H53)) -> 0 | AQ53: =IF($H53=0,0,INDEX(AQ$562:AQ$796,$H53)) -> 0 | AR53: =IF($H53=0,0,INDEX(AR$562:AR$796,$H53)) -> 0
C54: Small Business single rate | D54: Small and medium business | E54: LVM1R | F54: 0 | G54: 0 | H54: 6 | I54: =IF($H54=0,0,INDEX(I$242:I$316,$H54)) -> 0 | J54: =IF($H54=0,0,INDEX(J$242:J$316,$H54)) -> 2.21 | K54: =IF($H54=0,0,INDEX(K$242:K$316,$H54)) -> 0 | L54: =IF($H54=0,0,INDEX(L$242:L$316,$H54)) -> 0 | M54: =IF($H54=0,0,INDEX(M$242:M$316,$H54)) -> 0 | N54: =IF($H54=0,0,INDEX(N$242:N$316,$H54)) -> 0 | O54: =IF($H54=0,0,INDEX(O$242:O$316,$H54)) -> 0 | P54: =IF($H54=0,0,INDEX(P$242:P$316,$H54)) -> 0 | Q54: =IF($H54=0,0,INDEX(Q$242:Q$316,$H54)) -> 0 | R54: =IF($H54=0,0,INDEX(R$242:R$316,$H54)) -> 0 | S54: =IF($H54=0,0,INDEX(S$242:S$316,$H54)) -> 0 | T54: =IF($H54=0,0,INDEX(T$242:T$316,$H54)) -> 0 | U54: =IF($H54=0,0,INDEX(U$242:U$316,$H54)) -> 0 | V54: =IF($H54=0,0,INDEX(V$242:V$316,$H54)) -> 0 | W54: =IF($H54=0,0,INDEX(W$242:W$316,$H54)) -> 0 | X54: =IF($H54=0,0,INDEX(X$242:X$316,$H54)) -> 0 | Y54: =IF($H54=0,0,INDEX(Y$242:Y$316,$H54)) -> 0 | Z54: =IF($H54=0,0,INDEX(Z$242:Z$316,$H54)) -> 0 | AA54: =IF($H54=0,0,INDEX(AA$242:AA$316,$H54)) -> 0 | AB54: =IF($H54=0,0,INDEX(AB$242:AB$316,$H54)) -> 0 | AD54: =IF(SUMPRODUCT(--_xlfn.ISFORMULA(C54:AB54))=26,"OK","CHECK") -> OK | AE54: =IF($H54=0,0,INDEX(AE$562:AE$796,$H54)) -> 0 | AF54: =IF($H54=0,0,INDEX(AF$562:AF$796,$H54)) -> 0 | AG54: =IF($H54=0,0,INDEX(AG$562:AG$796,$H54)) -> 0 | AH54: =IF($H54=0,0,INDEX(AH$562:AH$796,$H54)) -> 0 | AI54: =IF($H54=0,0,INDEX(AI$562:AI$796,$H54)) -> 0 | AJ54: =IF($H54=0,0,INDEX(AJ$562:AJ$796,$H54)) -> 0 | AK54: =IF($H54=0,0,INDEX(AK$562:AK$796,$H54)) -> 0 | AL54: =IF($H54=0,0,INDEX(AL$562:AL$796,$H54)) -> 0 | AM54: =IF($H54=0,0,INDEX(AM$562:AM$796,$H54)) -> 0 | AN54: =IF($H54=0,0,INDEX(AN$562:AN$796,$H54)) -> 0 | AO54: =IF($H54=0,0,INDEX(AO$562:AO$796,$H54)) -> 0 | AP54: =IF($H54=0,0,INDEX(AP$562:AP$796,$H54)) -> 0 | AQ54: =IF($H54=0,0,INDEX(AQ$562:AQ$796,$H54)) -> 0 | AR54: =IF($H54=0,0,INDEX(AR$562:AR$796,$H54)) -> 0
C55: Small Business ToU | D55: Small and medium business | E55: LVTOU | F55: 0 | G55: 0 | H55: 7 | I55: =IF($H55=0,0,INDEX(I$242:I$316,$H55)) -> 0 | J55: =IF($H55=0,0,INDEX(J$242:J$316,$H55)) -> 0 | K55: =IF($H55=0,0,INDEX(K$242:K$316,$H55)) -> 2.8 | L55: =IF($H55=0,0,INDEX(L$242:L$316,$H55)) -> 0.62 | M55: =IF($H55=0,0,INDEX(M$242:M$316,$H55)) -> 0 | N55: =IF($H55=0,0,INDEX(N$242:N$316,$H55)) -> 0 | O55: =IF($H55=0,0,INDEX(O$242:O$316,$H55)) -> 0 | P55: =IF($H55=0,0,INDEX(P$242:P$316,$H55)) -> 0 | Q55: =IF($H55=0,0,INDEX(Q$242:Q$316,$H55)) -> 0 | R55: =IF($H55=0,0,INDEX(R$242:R$316,$H55)) -> 0 | S55: =IF($H55=0,0,INDEX(S$242:S$316,$H55)) -> 0 | T55: =IF($H55=0,0,INDEX(T$242:T$316,$H55)) -> 0 | U55: =IF($H55=0,0,INDEX(U$242:U$316,$H55)) -> 0 | V55: =IF($H55=0,0,INDEX(V$242:V$316,$H55)) -> 0 | W55: =IF($H55=0,0,INDEX(W$242:W$316,$H55)) -> 0 | X55: =IF($H55=0,0,INDEX(X$242:X$316,$H55)) -> 0 | Y55: =IF($H55=0,0,INDEX(Y$242:Y$316,$H55)) -> 0 | Z55: =IF($H55=0,0,INDEX(Z$242:Z$316,$H55)) -> 0 | AA55: =IF($H55=0,0,INDEX(AA$242:AA$316,$H55)) -> 0 | AB55: =IF($H55=0,0,INDEX(AB$242:AB$316,$H55)) -> 0 | AD55: =IF(SUMPRODUCT(--_xlfn.ISFORMULA(C55:AB55))=26,"OK","CHECK") -> OK | AE55: =IF($H55=0,0,INDEX(AE$562:AE$796,$H55)) -> 0 | AF55: =IF($H55=0,0,INDEX(AF$562:AF$796,$H55)) -> 0 | AG55: =IF($H55=0,0,INDEX(AG$562:AG$796,$H55)) -> 0 | AH55: =IF($H55=0,0,INDEX(AH$562:AH$796,$H55)) -> 0 | AI55: =IF($H55=0,0,INDEX(AI$562:AI$796,$H55)) -> 0 | AJ55: =IF($H55=0,0,INDEX(AJ$562:AJ$796,$H55)) -> 0 | AK55: =IF($H55=0,0,INDEX(AK$562:AK$796,$H55)) -> 0 | AL55: =IF($H55=0,0,INDEX(AL$562:AL$796,$H55)) -> 0 | AM55: =IF($H55=0,0,INDEX(AM$562:AM$796,$H55)) -> 0 | AN55: =IF($H55=0,0,INDEX(AN$562:AN$796,$H55)) -> 0 | AO55: =IF($H55=0,0,INDEX(AO$562:AO$796,$H55)) -> 0 | AP55: =IF($H55=0,0,INDEX(AP$562:AP$796,$H55)) -> 0 | AQ55: =IF($H55=0,0,INDEX(AQ$562:AQ$796,$H55)) -> 0 | AR55: =IF($H55=0,0,INDEX(AR$562:AR$796,$H55)) -> 0
C56: 0 | D56: 0 | E56: 0 | F56: 0 | G56: 0 | H56: 0 | I56: =IF($H56=0,0,INDEX(I$242:I$316,$H56)) -> 0 | J56: =IF($H56=0,0,INDEX(J$242:J$316,$H56)) -> 0 | K56: =IF($H56=0,0,INDEX(K$242:K$316,$H56)) -> 0 | L56: =IF($H56=0,0,INDEX(L$242:L$316,$H56)) -> 0 | M56: =IF($H56=0,0,INDEX(M$242:M$316,$H56)) -> 0 | N56: =IF($H56=0,0,INDEX(N$242:N$316,$H56)) -> 0 | O56: =IF($H56=0,0,INDEX(O$242:O$316,$H56)) -> 0 | P56: =IF($H56=0,0,INDEX(P$242:P$316,$H56)) -> 0 | Q56: =IF($H56=0,0,INDEX(Q$242:Q$316,$H56)) -> 0 | R56: =IF($H56=0,0,INDEX(R$242:R$316,$H56)) -> 0 | S56: =IF($H56=0,0,INDEX(S$242:S$316,$H56)) -> 0 | T56: =IF($H56=0,0,INDEX(T$242:T$316,$H56)) -> 0 | U56: =IF($H56=0,0,INDEX(U$242:U$316,$H56)) -> 0 | V56: =IF($H56=0,0,INDEX(V$242:V$316,$H56)) -> 0 | W56: =IF($H56=0,0,INDEX(W$242:W$316,$H56)) -> 0 | X56: =IF($H56=0,0,INDEX(X$242:X$316,$H56)) -> 0 | Y56: =IF($H56=0,0,INDEX(Y$242:Y$316,$H56)) -> 0 | Z56: =IF($H56=0,0,INDEX(Z$242:Z$316,$H56)) -> 0 | AA56: =IF($H56=0,0,INDEX(AA$242:AA$316,$H56)) -> 0 | AB56: =IF($H56=0,0,INDEX(AB$242:AB$316,$H56)) -> 0 | AD56: =IF(SUMPRODUCT(--_xlfn.ISFORMULA(C56:AB56))=26,"OK","CHECK") -> OK | AE56: =IF($H56=0,0,INDEX(AE$562:AE$796,$H56)) -> 0 | AF56: =IF($H56=0,0,INDEX(AF$562:AF$796,$H56)) -> 0 | AG56: =IF($H56=0,0,INDEX(AG$562:AG$796,$H56)) -> 0 | AH56: =IF($H56=0,0,INDEX(AH$562:AH$796,$H56)) -> 0 | AI56: =IF($H56=0,0,INDEX(AI$562:AI$796,$H56)) -> 0 | AJ56: =IF($H56=0,0,INDEX(AJ$562:AJ$796,$H56)) -> 0 | AK56: =IF($H56=0,0,INDEX(AK$562:AK$796,$H56)) -> 0 | AL56: =IF($H56=0,0,INDEX(AL$562:AL$796,$H56)) -> 0 | AM56: =IF($H56=0,0,INDEX(AM$562:AM$796,$H56)) -> 0 | AN56: =IF($H56=0,0,INDEX(AN$562:AN$796,$H56)) -> 0 | AO56: =IF($H56=0,0,INDEX(AO$562:AO$796,$H56)) -> 0 | AP56: =IF($H56=0,0,INDEX(AP$562:AP$796,$H56)) -> 0 | AQ56: =IF($H56=0,0,INDEX(AQ$562:AQ$796,$H56)) -> 0 | AR56: =IF($H56=0,0,INDEX(AR$562:AR$796,$H56)) -> 0
C57: 0 | D57: 0 | E57: 0 | F57: 0 | G57: 0 | H57: 0 | I57: =IF($H57=0,0,INDEX(I$242:I$316,$H57)) -> 0 | J57: =IF($H57=0,0,INDEX(J$242:J$316,$H57)) -> 0 | K57: =IF($H57=0,0,INDEX(K$242:K$316,$H57)) -> 0 | L57: =IF($H57=0,0,INDEX(L$242:L$316,$H57)) -> 0 | M57: =IF($H57=0,0,INDEX(M$242:M$316,$H57)) -> 0 | N57: =IF($H57=0,0,INDEX(N$242:N$316,$H57)) -> 0 | O57: =IF($H57=0,0,INDEX(O$242:O$316,$H57)) -> 0 | P57: =IF($H57=0,0,INDEX(P$242:P$316,$H57)) -> 0 | Q57: =IF($H57=0,0,INDEX(Q$242:Q$316,$H57)) -> 0 | R57: =IF($H57=0,0,INDEX(R$242:R$316,$H57)) -> 0 | S57: =IF($H57=0,0,INDEX(S$242:S$316,$H57)) -> 0 | T57: =IF($H57=0,0,INDEX(T$242:T$316,$H57)) -> 0 | U57: =IF($H57=0,0,INDEX(U$242:U$316,$H57)) -> 0 | V57: =IF($H57=0,0,INDEX(V$242:V$316,$H57)) -> 0 | W57: =IF($H57=0,0,INDEX(W$242:W$316,$H57)) -> 0 | X57: =IF($H57=0,0,INDEX(X$242:X$316,$H57)) -> 0 | Y57: =IF($H57=0,0,INDEX(Y$242:Y$316,$H57)) -> 0 | Z57: =IF($H57=0,0,INDEX(Z$242:Z$316,$H57)) -> 0 | AA57: =IF($H57=0,0,INDEX(AA$242:AA$316,$H57)) -> 0 | AB57: =IF($H57=0,0,INDEX(AB$242:AB$316,$H57)) -> 0 | AD57: =IF(SUMPRODUCT(--_xlfn.ISFORMULA(C57:AB57))=26,"OK","CHECK") -> OK | AE57: =IF($H57=0,0,INDEX(AE$562:AE$796,$H57)) -> 0 | AF57: =IF($H57=0,0,INDEX(AF$562:AF$796,$H57)) -> 0 | AG57: =IF($H57=0,0,INDEX(AG$562:AG$796,$H57)) -> 0 | AH57: =IF($H57=0,0,INDEX(AH$562:AH$796,$H57)) -> 0 | AI57: =IF($H57=0,0,INDEX(AI$562:AI$796,$H57)) -> 0 | AJ57: =IF($H57=0,0,INDEX(AJ$562:AJ$796,$H57)) -> 0 | AK57: =IF($H57=0,0,INDEX(AK$562:AK$796,$H57)) -> 0 | AL57: =IF($H57=0,0,INDEX(AL$562:AL$796,$H57)) -> 0 | AM57: =IF($H57=0,0,INDEX(AM$562:AM$796,$H57)) -> 0 | AN57: =IF($H57=0,0,INDEX(AN$562:AN$796,$H57)) -> 0 | AO57: =IF($H57=0,0,INDEX(AO$562:AO$796,$H57)) -> 0 | AP57: =IF($H57=0,0,INDEX(AP$562:AP$796,$H57)) -> 0 | AQ57: =IF($H57=0,0,INDEX(AQ$562:AQ$796,$H57)) -> 0 | AR57: =IF($H57=0,0,INDEX(AR$562:AR$796,$H57)) -> 0
C58: 0 | D58: 0 | E58: 0 | F58: 0 | G58: 0 | H58: 0 | I58: =IF($H58=0,0,INDEX(I$242:I$316,$H58)) -> 0 | J58: =IF($H58=0,0,INDEX(J$242:J$316,$H58)) -> 0 | K58: =IF($H58=0,0,INDEX(K$242:K$316,$H58)) -> 0 | L58: =IF($H58=0,0,INDEX(L$242:L$316,$H58)) -> 0 | M58: =IF($H58=0,0,INDEX(M$242:M$316,$H58)) -> 0 | N58: =IF($H58=0,0,INDEX(N$242:N$316,$H58)) -> 0 | O58: =IF($H58=0,0,INDEX(O$242:O$316,$H58)) -> 0 | P58: =IF($H58=0,0,INDEX(P$242:P$316,$H58)) -> 0 | Q58: =IF($H58=0,0,INDEX(Q$242:Q$316,$H58)) -> 0 | R58: =IF($H58=0,0,INDEX(R$242:R$316,$H58)) -> 0 | S58: =IF($H58=0,0,INDEX(S$242:S$316,$H58)) -> 0 | T58: =IF($H58=0,0,INDEX(T$242:T$316,$H58)) -> 0 | U58: =IF($H58=0,0,INDEX(U$242:U$316,$H58)) -> 0 | V58: =IF($H58=0,0,INDEX(V$242:V$316,$H58)) -> 0 | W58: =IF($H58=0,0,INDEX(W$242:W$316,$H58)) -> 0 | X58: =IF($H58=0,0,INDEX(X$242:X$316,$H58)) -> 0 | Y58: =IF($H58=0,0,INDEX(Y$242:Y$316,$H58)) -> 0 | Z58: =IF($H58=0,0,INDEX(Z$242:Z$316,$H58)) -> 0 | AA58: =IF($H58=0,0,INDEX(AA$242:AA$316,$H58)) -> 0 | AB58: =IF($H58=0,0,INDEX(AB$242:AB$316,$H58)) -> 0 | AD58: =IF(SUMPRODUCT(--_xlfn.ISFORMULA(C58:AB58))=26,"OK","CHECK") -> OK | AE58: =IF($H58=0,0,INDEX(AE$562:AE$796,$H58)) -> 0 | AF58: =IF($H58=0,0,INDEX(AF$562:AF$796,$H58)) -> 0 | AG58: =IF($H58=0,0,INDEX(AG$562:AG$796,$H58)) -> 0 | AH58: =IF($H58=0,0,INDEX(AH$562:AH$796,$H58)) -> 0 | AI58: =IF($H58=0,0,INDEX(AI$562:AI$796,$H58)) -> 0 | AJ58: =IF($H58=0,0,INDEX(AJ$562:AJ$796,$H58)) -> 0 | AK58: =IF($H58=0,0,INDEX(AK$562:AK$796,$H58)) -> 0 | AL58: =IF($H58=0,0,INDEX(AL$562:AL$796,$H58)) -> 0 | AM58: =IF($H58=0,0,INDEX(AM$562:AM$796,$H58)) -> 0 | AN58: =IF($H58=0,0,INDEX(AN$562:AN$796,$H58)) -> 0 | AO58: =IF($H58=0,0,INDEX(AO$562:AO$796,$H58)) -> 0 | AP58: =IF($H58=0,0,INDEX(AP$562:AP$796,$H58)) -> 0 | AQ58: =IF($H58=0,0,INDEX(AQ$562:AQ$796,$H58)) -> 0 | AR58: =IF($H58=0,0,INDEX(AR$562:AR$796,$H58)) -> 0
C59: 0 | D59: 0 | E59: 0 | F59: 0 | G59: 0 | H59: 0 | I59: =IF($H59=0,0,INDEX(I$242:I$316,$H59)) -> 0 | J59: =IF($H59=0,0,INDEX(J$242:J$316,$H59)) -> 0 | K59: =IF($H59=0,0,INDEX(K$242:K$316,$H59)) -> 0 | L59: =IF($H59=0,0,INDEX(L$242:L$316,$H59)) -> 0 | M59: =IF($H59=0,0,INDEX(M$242:M$316,$H59)) -> 0 | N59: =IF($H59=0,0,INDEX(N$242:N$316,$H59)) -> 0 | O59: =IF($H59=0,0,INDEX(O$242:O$316,$H59)) -> 0 | P59: =IF($H59=0,0,INDEX(P$242:P$316,$H59)) -> 0 | Q59: =IF($H59=0,0,INDEX(Q$242:Q$316,$H59)) -> 0 | R59: =IF($H59=0,0,INDEX(R$242:R$316,$H59)) -> 0 | S59: =IF($H59=0,0,INDEX(S$242:S$316,$H59)) -> 0 | T59: =IF($H59=0,0,INDEX(T$242:T$316,$H59)) -> 0 | U59: =IF($H59=0,0,INDEX(U$242:U$316,$H59)) -> 0 | V59: =IF($H59=0,0,INDEX(V$242:V$316,$H59)) -> 0 | W59: =IF($H59=0,0,INDEX(W$242:W$316,$H59)) -> 0 | X59: =IF($H59=0,0,INDEX(X$242:X$316,$H59)) -> 0 | Y59: =IF($H59=0,0,INDEX(Y$242:Y$316,$H59)) -> 0 | Z59: =IF($H59=0,0,INDEX(Z$242:Z$316,$H59)) -> 0 | AA59: =IF($H59=0,0,INDEX(AA$242:AA$316,$H59)) -> 0 | AB59: =IF($H59=0,0,INDEX(AB$242:AB$316,$H59)) -> 0 | AD59: =IF(SUMPRODUCT(--_xlfn.ISFORMULA(C59:AB59))=26,"OK","CHECK") -> OK | AE59: =IF($H59=0,0,INDEX(AE$562:AE$796,$H59)) -> 0 | AF59: =IF($H59=0,0,INDEX(AF$562:AF$796,$H59)) -> 0 | AG59: =IF($H59=0,0,INDEX(AG$562:AG$796,$H59)) -> 0 | AH59: =IF($H59=0,0,INDEX(AH$562:AH$796,$H59)) -> 0 | AI59: =IF($H59=0,0,INDEX(AI$562:AI$796,$H59)) -> 0 | AJ59: =IF($H59=0,0,INDEX(AJ$562:AJ$796,$H59)) -> 0 | AK59: =IF($H59=0,0,INDEX(AK$562:AK$796,$H59)) -> 0 | AL59: =IF($H59=0,0,INDEX(AL$562:AL$796,$H59)) -> 0 | AM59: =IF($H59=0,0,INDEX(AM$562:AM$796,$H59)) -> 0 | AN59: =IF($H59=0,0,INDEX(AN$562:AN$796,$H59)) -> 0 | AO59: =IF($H59=0,0,INDEX(AO$562:AO$796,$H59)) -> 0 | AP59: =IF($H59=0,0,INDEX(AP$562:AP$796,$H59)) -> 0 | AQ59: =IF($H59=0,0,INDEX(AQ$562:AQ$796,$H59)) -> 0 | AR59: =IF($H59=0,0,INDEX(AR$562:AR$796,$H59)) -> 0
C60: 0 | D60: 0 | E60: 0 | F60: 0 | G60: 0 | H60: 0 | I60: =IF($H60=0,0,INDEX(I$242:I$316,$H60)) -> 0 | J60: =IF($H60=0,0,INDEX(J$242:J$316,$H60)) -> 0 | K60: =IF($H60=0,0,INDEX(K$242:K$316,$H60)) -> 0 | L60: =IF($H60=0,0,INDEX(L$242:L$316,$H60)) -> 0 | M60: =IF($H60=0,0,INDEX(M$242:M$316,$H60)) -> 0 | N60: =IF($H60=0,0,INDEX(N$242:N$316,$H60)) -> 0 | O60: =IF($H60=0,0,INDEX(O$242:O$316,$H60)) -> 0 | P60: =IF($H60=0,0,INDEX(P$242:P$316,$H60)) -> 0 | Q60: =IF($H60=0,0,INDEX(Q$242:Q$316,$H60)) -> 0 | R60: =IF($H60=0,0,INDEX(R$242:R$316,$H60)) -> 0 | S60: =IF($H60=0,0,INDEX(S$242:S$316,$H60)) -> 0 | T60: =IF($H60=0,0,INDEX(T$242:T$316,$H60)) -> 0 | U60: =IF($H60=0,0,INDEX(U$242:U$316,$H60)) -> 0 | V60: =IF($H60=0,0,INDEX(V$242:V$316,$H60)) -> 0 | W60: =IF($H60=0,0,INDEX(W$242:W$316,$H60)) -> 0 | X60: =IF($H60=0,0,INDEX(X$242:X$316,$H60)) -> 0 | Y60: =IF($H60=0,0,INDEX(Y$242:Y$316,$H60)) -> 0 | Z60: =IF($H60=0,0,INDEX(Z$242:Z$316,$H60)) -> 0 | AA60: =IF($H60=0,0,INDEX(AA$242:AA$316,$H60)) -> 0 | AB60: =IF($H60=0,0,INDEX(AB$242:AB$316,$H60)) -> 0 | AD60: =IF(SUMPRODUCT(--_xlfn.ISFORMULA(C60:AB60))=26,"OK","CHECK") -> OK | AE60: =IF($H60=0,0,INDEX(AE$562:AE$796,$H60)) -> 0 | AF60: =IF($H60=0,0,INDEX(AF$562:AF$796,$H60)) -> 0 | AG60: =IF($H60=0,0,INDEX(AG$562:AG$796,$H60)) -> 0 | AH60: =IF($H60=0,0,INDEX(AH$562:AH$796,$H60)) -> 0 | AI60: =IF($H60=0,0,INDEX(AI$562:AI$796,$H60)) -> 0 | AJ60: =IF($H60=0,0,INDEX(AJ$562:AJ$796,$H60)) -> 0 | AK60: =IF($H60=0,0,INDEX(AK$562:AK$796,$H60)) -> 0 | AL60: =IF($H60=0,0,INDEX(AL$562:AL$796,$H60)) -> 0 | AM60: =IF($H60=0,0,INDEX(AM$562:AM$796,$H60)) -> 0 | AN60: =IF($H60=0,0,INDEX(AN$562:AN$796,$H60)) -> 0 | AO60: =IF($H60=0,0,INDEX(AO$562:AO$796,$H60)) -> 0 | AP60: =IF($H60=0,0,INDEX(AP$562:AP$796,$H60)) -> 0 | AQ60: =IF($H60=0,0,INDEX(AQ$562:AQ$796,$H60)) -> 0 | AR60: =IF($H60=0,0,INDEX(AR$562:AR$796,$H60)) -> 0
C61: 0 | D61: 0 | E61: 0 | F61: 0 | G61: 0 | H61: 0 | I61: =IF($H61=0,0,INDEX(I$242:I$316,$H61)) -> 0 | J61: =IF($H61=0,0,INDEX(J$242:J$316,$H61)) -> 0 | K61: =IF($H61=0,0,INDEX(K$242:K$316,$H61)) -> 0 | L61: =IF($H61=0,0,INDEX(L$242:L$316,$H61)) -> 0 | M61: =IF($H61=0,0,INDEX(M$242:M$316,$H61)) -> 0 | N61: =IF($H61=0,0,INDEX(N$242:N$316,$H61)) -> 0 | O61: =IF($H61=0,0,INDEX(O$242:O$316,$H61)) -> 0 | P61: =IF($H61=0,0,INDEX(P$242:P$316,$H61)) -> 0 | Q61: =IF($H61=0,0,INDEX(Q$242:Q$316,$H61)) -> 0 | R61: =IF($H61=0,0,INDEX(R$242:R$316,$H61)) -> 0 | S61: =IF($H61=0,0,INDEX(S$242:S$316,$H61)) -> 0 | T61: =IF($H61=0,0,INDEX(T$242:T$316,$H61)) -> 0 | U61: =IF($H61=0,0,INDEX(U$242:U$316,$H61)) -> 0 | V61: =IF($H61=0,0,INDEX(V$242:V$316,$H61)) -> 0 | W61: =IF($H61=0,0,INDEX(W$242:W$316,$H61)) -> 0 | X61: =IF($H61=0,0,INDEX(X$242:X$316,$H61)) -> 0 | Y61: =IF($H61=0,0,INDEX(Y$242:Y$316,$H61)) -> 0 | Z61: =IF($H61=0,0,INDEX(Z$242:Z$316,$H61)) -> 0 | AA61: =IF($H61=0,0,INDEX(AA$242:AA$316,$H61)) -> 0 | AB61: =IF($H61=0,0,INDEX(AB$242:AB$316,$H61)) -> 0 | AD61: =IF(SUMPRODUCT(--_xlfn.ISFORMULA(C61:AB61))=26,"OK","CHECK") -> OK | AE61: =IF($H61=0,0,INDEX(AE$562:AE$796,$H61)) -> 0 | AF61: =IF($H61=0,0,INDEX(AF$562:AF$796,$H61)) -> 0 | AG61: =IF($H61=0,0,INDEX(AG$562:AG$796,$H61)) -> 0 | AH61: =IF($H61=0,0,INDEX(AH$562:AH$796,$H61)) -> 0 | AI61: =IF($H61=0,0,INDEX(AI$562:AI$796,$H61)) -> 0 | AJ61: =IF($H61=0,0,INDEX(AJ$562:AJ$796,$H61)) -> 0 | AK61: =IF($H61=0,0,INDEX(AK$562:AK$796,$H61)) -> 0 | AL61: =IF($H61=0,0,INDEX(AL$562:AL$796,$H61)) -> 0 | AM61: =IF($H61=0,0,INDEX(AM$562:AM$796,$H61)) -> 0 | AN61: =IF($H61=0,0,INDEX(AN$562:AN$796,$H61)) -> 0 | AO61: =IF($H61=0,0,INDEX(AO$562:AO$796,$H61)) -> 0 | AP61: =IF($H61=0,0,INDEX(AP$562:AP$796,$H61)) -> 0 | AQ61: =IF($H61=0,0,INDEX(AQ$562:AQ$796,$H61)) -> 0 | AR61: =IF($H61=0,0,INDEX(AR$562:AR$796,$H61)) -> 0
C62: 0 | D62: 0 | E62: 0 | F62: 0 | G62: 0 | H62: 0 | I62: =IF($H62=0,0,INDEX(I$242:I$316,$H62)) -> 0 | J62: =IF($H62=0,0,INDEX(J$242:J$316,$H62)) -> 0 | K62: =IF($H62=0,0,INDEX(K$242:K$316,$H62)) -> 0 | L62: =IF($H62=0,0,INDEX(L$242:L$316,$H62)) -> 0 | M62: =IF($H62=0,0,INDEX(M$242:M$316,$H62)) -> 0 | N62: =IF($H62=0,0,INDEX(N$242:N$316,$H62)) -> 0 | O62: =IF($H62=0,0,INDEX(O$242:O$316,$H62)) -> 0 | P62: =IF($H62=0,0,INDEX(P$242:P$316,$H62)) -> 0 | Q62: =IF($H62=0,0,INDEX(Q$242:Q$316,$H62)) -> 0 | R62: =IF($H62=0,0,INDEX(R$242:R$316,$H62)) -> 0 | S62: =IF($H62=0,0,INDEX(S$242:S$316,$H62)) -> 0 | T62: =IF($H62=0,0,INDEX(T$242:T$316,$H62)) -> 0 | U62: =IF($H62=0,0,INDEX(U$242:U$316,$H62)) -> 0 | V62: =IF($H62=0,0,INDEX(V$242:V$316,$H62)) -> 0 | W62: =IF($H62=0,0,INDEX(W$242:W$316,$H62)) -> 0 | X62: =IF($H62=0,0,INDEX(X$242:X$316,$H62)) -> 0 | Y62: =IF($H62=0,0,INDEX(Y$242:Y$316,$H62)) -> 0 | Z62: =IF($H62=0,0,INDEX(Z$242:Z$316,$H62)) -> 0 | AA62: =IF($H62=0,0,INDEX(AA$242:AA$316,$H62)) -> 0 | AB62: =IF($H62=0,0,INDEX(AB$242:AB$316,$H62)) -> 0 | AD62: =IF(SUMPRODUCT(--_xlfn.ISFORMULA(C62:AB62))=26,"OK","CHECK") -> OK | AE62: =IF($H62=0,0,INDEX(AE$562:AE$796,$H62)) -> 0 | AF62: =IF($H62=0,0,INDEX(AF$562:AF$796,$H62)) -> 0 | AG62: =IF($H62=0,0,INDEX(AG$562:AG$796,$H62)) -> 0 | AH62: =IF($H62=0,0,INDEX(AH$562:AH$796,$H62)) -> 0 | AI62: =IF($H62=0,0,INDEX(AI$562:AI$796,$H62)) -> 0 | AJ62: =IF($H62=0,0,INDEX(AJ$562:AJ$796,$H62)) -> 0 | AK62: =IF($H62=0,0,INDEX(AK$562:AK$796,$H62)) -> 0 | AL62: =IF($H62=0,0,INDEX(AL$562:AL$796,$H62)) -> 0 | AM62: =IF($H62=0,0,INDEX(AM$562:AM$796,$H62)) -> 0 | AN62: =IF($H62=0,0,INDEX(AN$562:AN$796,$H62)) -> 0 | AO62: =IF($H62=0,0,INDEX(AO$562:AO$796,$H62)) -> 0 | AP62: =IF($H62=0,0,INDEX(AP$562:AP$796,$H62)) -> 0 | AQ62: =IF($H62=0,0,INDEX(AQ$562:AQ$796,$H62)) -> 0 | AR62: =IF($H62=0,0,INDEX(AR$562:AR$796,$H62)) -> 0
C63: 0 | D63: 0 | E63: 0 | F63: 0 | G63: 0 | H63: 0 | I63: =IF($H63=0,0,INDEX(I$242:I$316,$H63)) -> 0 | J63: =IF($H63=0,0,INDEX(J$242:J$316,$H63)) -> 0 | K63: =IF($H63=0,0,INDEX(K$242:K$316,$H63)) -> 0 | L63: =IF($H63=0,0,INDEX(L$242:L$316,$H63)) -> 0 | M63: =IF($H63=0,0,INDEX(M$242:M$316,$H63)) -> 0 | N63: =IF($H63=0,0,INDEX(N$242:N$316,$H63)) -> 0 | O63: =IF($H63=0,0,INDEX(O$242:O$316,$H63)) -> 0 | P63: =IF($H63=0,0,INDEX(P$242:P$316,$H63)) -> 0 | Q63: =IF($H63=0,0,INDEX(Q$242:Q$316,$H63)) -> 0 | R63: =IF($H63=0,0,INDEX(R$242:R$316,$H63)) -> 0 | S63: =IF($H63=0,0,INDEX(S$242:S$316,$H63)) -> 0 | T63: =IF($H63=0,0,INDEX(T$242:T$316,$H63)) -> 0 | U63: =IF($H63=0,0,INDEX(U$242:U$316,$H63)) -> 0 | V63: =IF($H63=0,0,INDEX(V$242:V$316,$H63)) -> 0 | W63: =IF($H63=0,0,INDEX(W$242:W$316,$H63)) -> 0 | X63: =IF($H63=0,0,INDEX(X$242:X$316,$H63)) -> 0 | Y63: =IF($H63=0,0,INDEX(Y$242:Y$316,$H63)) -> 0 | Z63: =IF($H63=0,0,INDEX(Z$242:Z$316,$H63)) -> 0 | AA63: =IF($H63=0,0,INDEX(AA$242:AA$316,$H63)) -> 0 | AB63: =IF($H63=0,0,INDEX(AB$242:AB$316,$H63)) -> 0 | AD63: =IF(SUMPRODUCT(--_xlfn.ISFORMULA(C63:AB63))=26,"OK","CHECK") -> OK | AE63: =IF($H63=0,0,INDEX(AE$562:AE$796,$H63)) -> 0 | AF63: =IF($H63=0,0,INDEX(AF$562:AF$796,$H63)) -> 0 | AG63: =IF($H63=0,0,INDEX(AG$562:AG$796,$H63)) -> 0 | AH63: =IF($H63=0,0,INDEX(AH$562:AH$796,$H63)) -> 0 | AI63: =IF($H63=0,0,INDEX(AI$562:AI$796,$H63)) -> 0 | AJ63: =IF($H63=0,0,INDEX(AJ$562:AJ$796,$H63)) -> 0 | AK63: =IF($H63=0,0,INDEX(AK$562:AK$796,$H63)) -> 0 | AL63: =IF($H63=0,0,INDEX(AL$562:AL$796,$H63)) -> 0 | AM63: =IF($H63=0,0,INDEX(AM$562:AM$796,$H63)) -> 0 | AN63: =IF($H63=0,0,INDEX(AN$562:AN$796,$H63)) -> 0 | AO63: =IF($H63=0,0,INDEX(AO$562:AO$796,$H63)) -> 0 | AP63: =IF($H63=0,0,INDEX(AP$562:AP$796,$H63)) -> 0 | AQ63: =IF($H63=0,0,INDEX(AQ$562:AQ$796,$H63)) -> 0 | AR63: =IF($H63=0,0,INDEX(AR$562:AR$796,$H63)) -> 0
C64: 0 | D64: 0 | E64: 0 | F64: 0 | G64: 0 | H64: 0 | I64: =IF($H64=0,0,INDEX(I$242:I$316,$H64)) -> 0 | J64: =IF($H64=0,0,INDEX(J$242:J$316,$H64)) -> 0 | K64: =IF($H64=0,0,INDEX(K$242:K$316,$H64)) -> 0 | L64: =IF($H64=0,0,INDEX(L$242:L$316,$H64)) -> 0 | M64: =IF($H64=0,0,INDEX(M$242:M$316,$H64)) -> 0 | N64: =IF($H64=0,0,INDEX(N$242:N$316,$H64)) -> 0 | O64: =IF($H64=0,0,INDEX(O$242:O$316,$H64)) -> 0 | P64: =IF($H64=0,0,INDEX(P$242:P$316,$H64)) -> 0 | Q64: =IF($H64=0,0,INDEX(Q$242:Q$316,$H64)) -> 0 | R64: =IF($H64=0,0,INDEX(R$242:R$316,$H64)) -> 0 | S64: =IF($H64=0,0,INDEX(S$242:S$316,$H64)) -> 0 | T64: =IF($H64=0,0,INDEX(T$242:T$316,$H64)) -> 0 | U64: =IF($H64=0,0,INDEX(U$242:U$316,$H64)) -> 0 | V64: =IF($H64=0,0,INDEX(V$242:V$316,$H64)) -> 0 | W64: =IF($H64=0,0,INDEX(W$242:W$316,$H64)) -> 0 | X64: =IF($H64=0,0,INDEX(X$242:X$316,$H64)) -> 0 | Y64: =IF($H64=0,0,INDEX(Y$242:Y$316,$H64)) -> 0 | Z64: =IF($H64=0,0,INDEX(Z$242:Z$316,$H64)) -> 0 | AA64: =IF($H64=0,0,INDEX(AA$242:AA$316,$H64)) -> 0 | AB64: =IF($H64=0,0,INDEX(AB$242:AB$316,$H64)) -> 0 | AD64: =IF(SUMPRODUCT(--_xlfn.ISFORMULA(C64:AB64))=26,"OK","CHECK") -> OK | AE64: =IF($H64=0,0,INDEX(AE$562:AE$796,$H64)) -> 0 | AF64: =IF($H64=0,0,INDEX(AF$562:AF$796,$H64)) -> 0 | AG64: =IF($H64=0,0,INDEX(AG$562:AG$796,$H64)) -> 0 | AH64: =IF($H64=0,0,INDEX(AH$562:AH$796,$H64)) -> 0 | AI64: =IF($H64=0,0,INDEX(AI$562:AI$796,$H64)) -> 0 | AJ64: =IF($H64=0,0,INDEX(AJ$562:AJ$796,$H64)) -> 0 | AK64: =IF($H64=0,0,INDEX(AK$562:AK$796,$H64)) -> 0 | AL64: =IF($H64=0,0,INDEX(AL$562:AL$796,$H64)) -> 0 | AM64: =IF($H64=0,0,INDEX(AM$562:AM$796,$H64)) -> 0 | AN64: =IF($H64=0,0,INDEX(AN$562:AN$796,$H64)) -> 0 | AO64: =IF($H64=0,0,INDEX(AO$562:AO$796,$H64)) -> 0 | AP64: =IF($H64=0,0,INDEX(AP$562:AP$796,$H64)) -> 0 | AQ64: =IF($H64=0,0,INDEX(AQ$562:AQ$796,$H64)) -> 0 | AR64: =IF($H64=0,0,INDEX(AR$562:AR$796,$H64)) -> 0
C66: =C319 -> Jurisdictional Scheme Amounts
C67: =C19 -> Residential Single Rate | D67: Residential | E67: LVS1R | F67: 0 | G67: 0 | H67: 1 | I67: =IF($H67=0,0,INDEX(I$320:I$394,$H67)) -> 3.22 | J67: =IF($H67=0,0,INDEX(J$320:J$394,$H67)) -> 0 | K67: =IF($H67=0,0,INDEX(K$320:K$394,$H67)) -> 0 | L67: =IF($H67=0,0,INDEX(L$320:L$394,$H67)) -> 0 | M67: =IF($H67=0,0,INDEX(M$320:M$394,$H67)) -> 0 | N67: =IF($H67=0,0,INDEX(N$320:N$394,$H67)) -> 0 | O67: =IF($H67=0,0,INDEX(O$320:O$394,$H67)) -> 0 | P67: =IF($H67=0,0,INDEX(P$320:P$394,$H67)) -> 0 | Q67: =IF($H67=0,0,INDEX(Q$320:Q$394,$H67)) -> 0 | R67: =IF($H67=0,0,INDEX(R$320:R$394,$H67)) -> 0 | S67: =IF($H67=0,0,INDEX(S$320:S$394,$H67)) -> 0 | T67: =IF($H67=0,0,INDEX(T$320:T$394,$H67)) -> 0 | U67: =IF($H67=0,0,INDEX(U$320:U$394,$H67)) -> 0 | V67: =IF($H67=0,0,INDEX(V$320:V$394,$H67)) -> 0 | W67: =IF($H67=0,0,INDEX(W$320:W$394,$H67)) -> 0 | X67: =IF($H67=0,0,INDEX(X$320:X$394,$H67)) -> 0 | Y67: =IF($H67=0,0,INDEX(Y$320:Y$394,$H67)) -> 0 | Z67: =IF($H67=0,0,INDEX(Z$320:Z$394,$H67)) -> 0 | AA67: =IF($H67=0,0,INDEX(AA$320:AA$394,$H67)) -> 0 | AB67: =IF($H67=0,0,INDEX(AB$320:AB$394,$H67)) -> 0 | AD67: =IF(SUMPRODUCT(--_xlfn.ISFORMULA(C67:AB67))=26,"OK","CHECK") -> OK | AE67: =IF($H67=0,0,INDEX(AE$800:AE$1034,$H67)) -> 0 | AF67: =IF($H67=0,0,INDEX(AF$800:AF$1034,$H67)) -> 0 | AG67: =IF($H67=0,0,INDEX(AG$800:AG$1034,$H67)) -> 0 | AH67: =IF($H67=0,0,INDEX(AH$800:AH$1034,$H67)) -> 0 | AI67: =IF($H67=0,0,INDEX(AI$800:AI$1034,$H67)) -> 0 | AJ67: =IF($H67=0,0,INDEX(AJ$800:AJ$1034,$H67)) -> 0 | AK67: =IF($H67=0,0,INDEX(AK$800:AK$1034,$H67)) -> 0 | AL67: =IF($H67=0,0,INDEX(AL$800:AL$1034,$H67)) -> 0 | AM67: =IF($H67=0,0,INDEX(AM$800:AM$1034,$H67)) -> 0 | AN67: =IF($H67=0,0,INDEX(AN$800:AN$1034,$H67)) -> 0 | AO67: =IF($H67=0,0,INDEX(AO$800:AO$1034,$H67)) -> 0 | AP67: =IF($H67=0,0,INDEX(AP$800:AP$1034,$H67)) -> 0 | AQ67: =IF($H67=0,0,INDEX(AQ$800:AQ$1034,$H67)) -> 0 | AR67: =IF($H67=0,0,INDEX(AR$800:AR$1034,$H67)) -> 0
C68: =C20 -> Residential ToU | D68: Residential | E68: URTOU | F68: 0 | G68: 0 | H68: 2 | I68: =IF($H68=0,0,INDEX(I$320:I$394,$H68)) -> 3.22 | J68: =IF($H68=0,0,INDEX(J$320:J$394,$H68)) -> 0 | K68: =IF($H68=0,0,INDEX(K$320:K$394,$H68)) -> 0 | L68: =IF($H68=0,0,INDEX(L$320:L$394,$H68)) -> 0 | M68: =IF($H68=0,0,INDEX(M$320:M$394,$H68)) -> 0 | N68: =IF($H68=0,0,INDEX(N$320:N$394,$H68)) -> 0 | O68: =IF($H68=0,0,INDEX(O$320:O$394,$H68)) -> 0 | P68: =IF($H68=0,0,INDEX(P$320:P$394,$H68)) -> 0 | Q68: =IF($H68=0,0,INDEX(Q$320:Q$394,$H68)) -> 0 | R68: =IF($H68=0,0,INDEX(R$320:R$394,$H68)) -> 0 | S68: =IF($H68=0,0,INDEX(S$320:S$394,$H68)) -> 0 | T68: =IF($H68=0,0,INDEX(T$320:T$394,$H68)) -> 0 | U68: =IF($H68=0,0,INDEX(U$320:U$394,$H68)) -> 0 | V68: =IF($H68=0,0,INDEX(V$320:V$394,$H68)) -> 0 | W68: =IF($H68=0,0,INDEX(W$320:W$394,$H68)) -> 0 | X68: =IF($H68=0,0,INDEX(X$320:X$394,$H68)) -> 0 | Y68: =IF($H68=0,0,INDEX(Y$320:Y$394,$H68)) -> 0 | Z68: =IF($H68=0,0,INDEX(Z$320:Z$394,$H68)) -> 0 | AA68: =IF($H68=0,0,INDEX(AA$320:AA$394,$H68)) -> 0 | AB68: =IF($H68=0,0,INDEX(AB$320:AB$394,$H68)) -> 0 | AD68: =IF(SUMPRODUCT(--_xlfn.ISFORMULA(C68:AB68))=26,"OK","CHECK") -> OK | AE68: =IF($H68=0,0,INDEX(AE$800:AE$1034,$H68)) -> 0 | AF68: =IF($H68=0,0,INDEX(AF$800:AF$1034,$H68)) -> 0 | AG68: =IF($H68=0,0,INDEX(AG$800:AG$1034,$H68)) -> 0 | AH68: =IF($H68=0,0,INDEX(AH$800:AH$1034,$H68)) -> 0 | AI68: =IF($H68=0,0,INDEX(AI$800:AI$1034,$H68)) -> 0 | AJ68: =IF($H68=0,0,INDEX(AJ$800:AJ$1034,$H68)) -> 0 | AK68: =IF($H68=0,0,INDEX(AK$800:AK$1034,$H68)) -> 0 | AL68: =IF($H68=0,0,INDEX(AL$800:AL$1034,$H68)) -> 0 | AM68: =IF($H68=0,0,INDEX(AM$800:AM$1034,$H68)) -> 0 | AN68: =IF($H68=0,0,INDEX(AN$800:AN$1034,$H68)) -> 0 | AO68: =IF($H68=0,0,INDEX(AO$800:AO$1034,$H68)) -> 0 | AP68: =IF($H68=0,0,INDEX(AP$800:AP$1034,$H68)) -> 0 | AQ68: =IF($H68=0,0,INDEX(AQ$800:AQ$1034,$H68)) -> 0 | AR68: =IF($H68=0,0,INDEX(AR$800:AR$1034,$H68)) -> 0
C69: Dedicated Circuit | D69: Residential | E69: LVDed | F69: 0 | G69: 0 | H69: 4 | I69: =IF($H69=0,0,INDEX(I$320:I$394,$H69)) -> 0 | J69: =IF($H69=0,0,INDEX(J$320:J$394,$H69)) -> 0 | K69: =IF($H69=0,0,INDEX(K$320:K$394,$H69)) -> 0 | L69: =IF($H69=0,0,INDEX(L$320:L$394,$H69)) -> 0 | M69: =IF($H69=0,0,INDEX(M$320:M$394,$H69)) -> 0 | N69: =IF($H69=0,0,INDEX(N$320:N$394,$H69)) -> 0 | O69: =IF($H69=0,0,INDEX(O$320:O$394,$H69)) -> 0 | P69: =IF($H69=0,0,INDEX(P$320:P$394,$H69)) -> 0 | Q69: =IF($H69=0,0,INDEX(Q$320:Q$394,$H69)) -> 0 | R69: =IF($H69=0,0,INDEX(R$320:R$394,$H69)) -> 0 | S69: =IF($H69=0,0,INDEX(S$320:S$394,$H69)) -> 0 | T69: =IF($H69=0,0,INDEX(T$320:T$394,$H69)) -> 0 | U69: =IF($H69=0,0,INDEX(U$320:U$394,$H69)) -> 0 | V69: =IF($H69=0,0,INDEX(V$320:V$394,$H69)) -> 0 | W69: =IF($H69=0,0,INDEX(W$320:W$394,$H69)) -> 0 | X69: =IF($H69=0,0,INDEX(X$320:X$394,$H69)) -> 0 | Y69: =IF($H69=0,0,INDEX(Y$320:Y$394,$H69)) -> 0 | Z69: =IF($H69=0,0,INDEX(Z$320:Z$394,$H69)) -> 0 | AA69: =IF($H69=0,0,INDEX(AA$320:AA$394,$H69)) -> 0 | AB69: =IF($H69=0,0,INDEX(AB$320:AB$394,$H69)) -> 0 | AD69: =IF(SUMPRODUCT(--_xlfn.ISFORMULA(C69:AB69))=26,"OK","CHECK") -> OK | AE69: =IF($H69=0,0,INDEX(AE$800:AE$1034,$H69)) -> 0 | AF69: =IF($H69=0,0,INDEX(AF$800:AF$1034,$H69)) -> 0 | AG69: =IF($H69=0,0,INDEX(AG$800:AG$1034,$H69)) -> 0 | AH69: =IF($H69=0,0,INDEX(AH$800:AH$1034,$H69)) -> 0 | AI69: =IF($H69=0,0,INDEX(AI$800:AI$1034,$H69)) -> 0 | AJ69: =IF($H69=0,0,INDEX(AJ$800:AJ$1034,$H69)) -> 0 | AK69: =IF($H69=0,0,INDEX(AK$800:AK$1034,$H69)) -> 0 | AL69: =IF($H69=0,0,INDEX(AL$800:AL$1034,$H69)) -> 0 | AM69: =IF($H69=0,0,INDEX(AM$800:AM$1034,$H69)) -> 0 | AN69: =IF($H69=0,0,INDEX(AN$800:AN$1034,$H69)) -> 0 | AO69: =IF($H69=0,0,INDEX(AO$800:AO$1034,$H69)) -> 0 | AP69: =IF($H69=0,0,INDEX(AP$800:AP$1034,$H69)) -> 0 | AQ69: =IF($H69=0,0,INDEX(AQ$800:AQ$1034,$H69)) -> 0 | AR69: =IF($H69=0,0,INDEX(AR$800:AR$1034,$H69)) -> 0
C70: Small Business single rate | D70: Small and medium business | E70: LVM1R | F70: 0 | G70: 0 | H70: 6 | I70: =IF($H70=0,0,INDEX(I$320:I$394,$H70)) -> 3.22 | J70: =IF($H70=0,0,INDEX(J$320:J$394,$H70)) -> 0 | K70: =IF($H70=0,0,INDEX(K$320:K$394,$H70)) -> 0 | L70: =IF($H70=0,0,INDEX(L$320:L$394,$H70)) -> 0 | M70: =IF($H70=0,0,INDEX(M$320:M$394,$H70)) -> 0 | N70: =IF($H70=0,0,INDEX(N$320:N$394,$H70)) -> 0 | O70: =IF($H70=0,0,INDEX(O$320:O$394,$H70)) -> 0 | P70: =IF($H70=0,0,INDEX(P$320:P$394,$H70)) -> 0 | Q70: =IF($H70=0,0,INDEX(Q$320:Q$394,$H70)) -> 0 | R70: =IF($H70=0,0,INDEX(R$320:R$394,$H70)) -> 0 | S70: =IF($H70=0,0,INDEX(S$320:S$394,$H70)) -> 0 | T70: =IF($H70=0,0,INDEX(T$320:T$394,$H70)) -> 0 | U70: =IF($H70=0,0,INDEX(U$320:U$394,$H70)) -> 0 | V70: =IF($H70=0,0,INDEX(V$320:V$394,$H70)) -> 0 | W70: =IF($H70=0,0,INDEX(W$320:W$394,$H70)) -> 0 | X70: =IF($H70=0,0,INDEX(X$320:X$394,$H70)) -> 0 | Y70: =IF($H70=0,0,INDEX(Y$320:Y$394,$H70)) -> 0 | Z70: =IF($H70=0,0,INDEX(Z$320:Z$394,$H70)) -> 0 | AA70: =IF($H70=0,0,INDEX(AA$320:AA$394,$H70)) -> 0 | AB70: =IF($H70=0,0,INDEX(AB$320:AB$394,$H70)) -> 0 | AD70: =IF(SUMPRODUCT(--_xlfn.ISFORMULA(C70:AB70))=26,"OK","CHECK") -> OK | AE70: =IF($H70=0,0,INDEX(AE$800:AE$1034,$H70)) -> 0 | AF70: =IF($H70=0,0,INDEX(AF$800:AF$1034,$H70)) -> 0 | AG70: =IF($H70=0,0,INDEX(AG$800:AG$1034,$H70)) -> 0 | AH70: =IF($H70=0,0,INDEX(AH$800:AH$1034,$H70)) -> 0 | AI70: =IF($H70=0,0,INDEX(AI$800:AI$1034,$H70)) -> 0 | AJ70: =IF($H70=0,0,INDEX(AJ$800:AJ$1034,$H70)) -> 0 | AK70: =IF($H70=0,0,INDEX(AK$800:AK$1034,$H70)) -> 0 | AL70: =IF($H70=0,0,INDEX(AL$800:AL$1034,$H70)) -> 0 | AM70: =IF($H70=0,0,INDEX(AM$800:AM$1034,$H70)) -> 0 | AN70: =IF($H70=0,0,INDEX(AN$800:AN$1034,$H70)) -> 0 | AO70: =IF($H70=0,0,INDEX(AO$800:AO$1034,$H70)) -> 0 | AP70: =IF($H70=0,0,INDEX(AP$800:AP$1034,$H70)) -> 0 | AQ70: =IF($H70=0,0,INDEX(AQ$800:AQ$1034,$H70)) -> 0 | AR70: =IF($H70=0,0,INDEX(AR$800:AR$1034,$H70)) -> 0
C71: Small Business ToU | D71: Small and medium business | E71: LVTOU | F71: 0 | G71: 0 | H71: 7 | I71: =IF($H71=0,0,INDEX(I$320:I$394,$H71)) -> 3.22 | J71: =IF($H71=0,0,INDEX(J$320:J$394,$H71)) -> 0 | K71: =IF($H71=0,0,INDEX(K$320:K$394,$H71)) -> 0 | L71: =IF($H71=0,0,INDEX(L$320:L$394,$H71)) -> 0 | M71: =IF($H71=0,0,INDEX(M$320:M$394,$H71)) -> 0 | N71: =IF($H71=0,0,INDEX(N$320:N$394,$H71)) -> 0 | O71: =IF($H71=0,0,INDEX(O$320:O$394,$H71)) -> 0 | P71: =IF($H71=0,0,INDEX(P$320:P$394,$H71)) -> 0 | Q71: =IF($H71=0,0,INDEX(Q$320:Q$394,$H71)) -> 0 | R71: =IF($H71=0,0,INDEX(R$320:R$394,$H71)) -> 0 | S71: =IF($H71=0,0,INDEX(S$320:S$394,$H71)) -> 0 | T71: =IF($H71=0,0,INDEX(T$320:T$394,$H71)) -> 0 | U71: =IF($H71=0,0,INDEX(U$320:U$394,$H71)) -> 0 | V71: =IF($H71=0,0,INDEX(V$320:V$394,$H71)) -> 0 | W71: =IF($H71=0,0,INDEX(W$320:W$394,$H71)) -> 0 | X71: =IF($H71=0,0,INDEX(X$320:X$394,$H71)) -> 0 | Y71: =IF($H71=0,0,INDEX(Y$320:Y$394,$H71)) -> 0 | Z71: =IF($H71=0,0,INDEX(Z$320:Z$394,$H71)) -> 0 | AA71: =IF($H71=0,0,INDEX(AA$320:AA$394,$H71)) -> 0 | AB71: =IF($H71=0,0,INDEX(AB$320:AB$394,$H71)) -> 0 | AD71: =IF(SUMPRODUCT(--_xlfn.ISFORMULA(C71:AB71))=26,"OK","CHECK") -> OK | AE71: =IF($H71=0,0,INDEX(AE$800:AE$1034,$H71)) -> 0 | AF71: =IF($H71=0,0,INDEX(AF$800:AF$1034,$H71)) -> 0 | AG71: =IF($H71=0,0,INDEX(AG$800:AG$1034,$H71)) -> 0 | AH71: =IF($H71=0,0,INDEX(AH$800:AH$1034,$H71)) -> 0 | AI71: =IF($H71=0,0,INDEX(AI$800:AI$1034,$H71)) -> 0 | AJ71: =IF($H71=0,0,INDEX(AJ$800:AJ$1034,$H71)) -> 0 | AK71: =IF($H71=0,0,INDEX(AK$800:AK$1034,$H71)) -> 0 | AL71: =IF($H71=0,0,INDEX(AL$800:AL$1034,$H71)) -> 0 | AM71: =IF($H71=0,0,INDEX(AM$800:AM$1034,$H71)) -> 0 | AN71: =IF($H71=0,0,INDEX(AN$800:AN$1034,$H71)) -> 0 | AO71: =IF($H71=0,0,INDEX(AO$800:AO$1034,$H71)) -> 0 | AP71: =IF($H71=0,0,INDEX(AP$800:AP$1034,$H71)) -> 0 | AQ71: =IF($H71=0,0,INDEX(AQ$800:AQ$1034,$H71)) -> 0 | AR71: =IF($H71=0,0,INDEX(AR$800:AR$1034,$H71)) -> 0
C72: 0 | D72: 0 | E72: 0 | F72: 0 | G72: 0 | H72: 0 | I72: =IF($H72=0,0,INDEX(I$320:I$394,$H72)) -> 0 | J72: =IF($H72=0,0,INDEX(J$320:J$394,$H72)) -> 0 | K72: =IF($H72=0,0,INDEX(K$320:K$394,$H72)) -> 0 | L72: =IF($H72=0,0,INDEX(L$320:L$394,$H72)) -> 0 | M72: =IF($H72=0,0,INDEX(M$320:M$394,$H72)) -> 0 | N72: =IF($H72=0,0,INDEX(N$320:N$394,$H72)) -> 0 | O72: =IF($H72=0,0,INDEX(O$320:O$394,$H72)) -> 0 | P72: =IF($H72=0,0,INDEX(P$320:P$394,$H72)) -> 0 | Q72: =IF($H72=0,0,INDEX(Q$320:Q$394,$H72)) -> 0 | R72: =IF($H72=0,0,INDEX(R$320:R$394,$H72)) -> 0 | S72: =IF($H72=0,0,INDEX(S$320:S$394,$H72)) -> 0 | T72: =IF($H72=0,0,INDEX(T$320:T$394,$H72)) -> 0 | U72: =IF($H72=0,0,INDEX(U$320:U$394,$H72)) -> 0 | V72: =IF($H72=0,0,INDEX(V$320:V$394,$H72)) -> 0 | W72: =IF($H72=0,0,INDEX(W$320:W$394,$H72)) -> 0 | X72: =IF($H72=0,0,INDEX(X$320:X$394,$H72)) -> 0 | Y72: =IF($H72=0,0,INDEX(Y$320:Y$394,$H72)) -> 0 | Z72: =IF($H72=0,0,INDEX(Z$320:Z$394,$H72)) -> 0 | AA72: =IF($H72=0,0,INDEX(AA$320:AA$394,$H72)) -> 0 | AB72: =IF($H72=0,0,INDEX(AB$320:AB$394,$H72)) -> 0 | AC72: =IF($H72=0,0,INDEX(AC$800:AC$1034,$H72)) -> 0 | AD72: =IF(SUMPRODUCT(--_xlfn.ISFORMULA(C72:AB72))=26,"OK","CHECK") -> OK | AE72: =IF($H72=0,0,INDEX(AE$800:AE$1034,$H72)) -> 0 | AF72: =IF($H72=0,0,INDEX(AF$800:AF$1034,$H72)) -> 0 | AG72: =IF($H72=0,0,INDEX(AG$800:AG$1034,$H72)) -> 0 | AH72: =IF($H72=0,0,INDEX(AH$800:AH$1034,$H72)) -> 0 | AI72: =IF($H72=0,0,INDEX(AI$800:AI$1034,$H72)) -> 0 | AJ72: =IF($H72=0,0,INDEX(AJ$800:AJ$1034,$H72)) -> 0 | AK72: =IF($H72=0,0,INDEX(AK$800:AK$1034,$H72)) -> 0 | AL72: =IF($H72=0,0,INDEX(AL$800:AL$1034,$H72)) -> 0 | AM72: =IF($H72=0,0,INDEX(AM$800:AM$1034,$H72)) -> 0 | AN72: =IF($H72=0,0,INDEX(AN$800:AN$1034,$H72)) -> 0 | AO72: =IF($H72=0,0,INDEX(AO$800:AO$1034,$H72)) -> 0 | AP72: =IF($H72=0,0,INDEX(AP$800:AP$1034,$H72)) -> 0 | AQ72: =IF($H72=0,0,INDEX(AQ$800:AQ$1034,$H72)) -> 0 | AR72: =IF($H72=0,0,INDEX(AR$800:AR$1034,$H72)) -> 0
C73: 0 | D73: 0 | E73: 0 | F73: 0 | G73: 0 | H73: 0 | I73: =IF($H73=0,0,INDEX(I$320:I$394,$H73)) -> 0 | J73: =IF($H73=0,0,INDEX(J$320:J$394,$H73)) -> 0 | K73: =IF($H73=0,0,INDEX(K$320:K$394,$H73)) -> 0 | L73: =IF($H73=0,0,INDEX(L$320:L$394,$H73)) -> 0 | M73: =IF($H73=0,0,INDEX(M$320:M$394,$H73)) -> 0 | N73: =IF($H73=0,0,INDEX(N$320:N$394,$H73)) -> 0 | O73: =IF($H73=0,0,INDEX(O$320:O$394,$H73)) -> 0 | P73: =IF($H73=0,0,INDEX(P$320:P$394,$H73)) -> 0 | Q73: =IF($H73=0,0,INDEX(Q$320:Q$394,$H73)) -> 0 | R73: =IF($H73=0,0,INDEX(R$320:R$394,$H73)) -> 0 | S73: =IF($H73=0,0,INDEX(S$320:S$394,$H73)) -> 0 | T73: =IF($H73=0,0,INDEX(T$320:T$394,$H73)) -> 0 | U73: =IF($H73=0,0,INDEX(U$320:U$394,$H73)) -> 0 | V73: =IF($H73=0,0,INDEX(V$320:V$394,$H73)) -> 0 | W73: =IF($H73=0,0,INDEX(W$320:W$394,$H73)) -> 0 | X73: =IF($H73=0,0,INDEX(X$320:X$394,$H73)) -> 0 | Y73: =IF($H73=0,0,INDEX(Y$320:Y$394,$H73)) -> 0 | Z73: =IF($H73=0,0,INDEX(Z$320:Z$394,$H73)) -> 0 | AA73: =IF($H73=0,0,INDEX(AA$320:AA$394,$H73)) -> 0 | AB73: =IF($H73=0,0,INDEX(AB$320:AB$394,$H73)) -> 0 | AC73: =IF($H73=0,0,INDEX(AC$800:AC$1034,$H73)) -> 0 | AD73: =IF(SUMPRODUCT(--_xlfn.ISFORMULA(C73:AB73))=26,"OK","CHECK") -> OK | AE73: =IF($H73=0,0,INDEX(AE$800:AE$1034,$H73)) -> 0 | AF73: =IF($H73=0,0,INDEX(AF$800:AF$1034,$H73)) -> 0 | AG73: =IF($H73=0,0,INDEX(AG$800:AG$1034,$H73)) -> 0 | AH73: =IF($H73=0,0,INDEX(AH$800:AH$1034,$H73)) -> 0 | AI73: =IF($H73=0,0,INDEX(AI$800:AI$1034,$H73)) -> 0 | AJ73: =IF($H73=0,0,INDEX(AJ$800:AJ$1034,$H73)) -> 0 | AK73: =IF($H73=0,0,INDEX(AK$800:AK$1034,$H73)) -> 0 | AL73: =IF($H73=0,0,INDEX(AL$800:AL$1034,$H73)) -> 0 | AM73: =IF($H73=0,0,INDEX(AM$800:AM$1034,$H73)) -> 0 | AN73: =IF($H73=0,0,INDEX(AN$800:AN$1034,$H73)) -> 0 | AO73: =IF($H73=0,0,INDEX(AO$800:AO$1034,$H73)) -> 0 | AP73: =IF($H73=0,0,INDEX(AP$800:AP$1034,$H73)) -> 0 | AQ73: =IF($H73=0,0,INDEX(AQ$800:AQ$1034,$H73)) -> 0 | AR73: =IF($H73=0,0,INDEX(AR$800:AR$1034,$H73)) -> 0
C74: 0 | D74: 0 | E74: 0 | F74: 0 | G74: 0 | H74: 0 | I74: =IF($H74=0,0,INDEX(I$320:I$394,$H74)) -> 0 | J74: =IF($H74=0,0,INDEX(J$320:J$394,$H74)) -> 0 | K74: =IF($H74=0,0,INDEX(K$320:K$394,$H74)) -> 0 | L74: =IF($H74=0,0,INDEX(L$320:L$394,$H74)) -> 0 | M74: =IF($H74=0,0,INDEX(M$320:M$394,$H74)) -> 0 | N74: =IF($H74=0,0,INDEX(N$320:N$394,$H74)) -> 0 | O74: =IF($H74=0,0,INDEX(O$320:O$394,$H74)) -> 0 | P74: =IF($H74=0,0,INDEX(P$320:P$394,$H74)) -> 0 | Q74: =IF($H74=0,0,INDEX(Q$320:Q$394,$H74)) -> 0 | R74: =IF($H74=0,0,INDEX(R$320:R$394,$H74)) -> 0 | S74: =IF($H74=0,0,INDEX(S$320:S$394,$H74)) -> 0 | T74: =IF($H74=0,0,INDEX(T$320:T$394,$H74)) -> 0 | U74: =IF($H74=0,0,INDEX(U$320:U$394,$H74)) -> 0 | V74: =IF($H74=0,0,INDEX(V$320:V$394,$H74)) -> 0 | W74: =IF($H74=0,0,INDEX(W$320:W$394,$H74)) -> 0 | X74: =IF($H74=0,0,INDEX(X$320:X$394,$H74)) -> 0 | Y74: =IF($H74=0,0,INDEX(Y$320:Y$394,$H74)) -> 0 | Z74: =IF($H74=0,0,INDEX(Z$320:Z$394,$H74)) -> 0 | AA74: =IF($H74=0,0,INDEX(AA$320:AA$394,$H74)) -> 0 | AB74: =IF($H74=0,0,INDEX(AB$320:AB$394,$H74)) -> 0 | AC74: =IF($H74=0,0,INDEX(AC$800:AC$1034,$H74)) -> 0 | AD74: =IF(SUMPRODUCT(--_xlfn.ISFORMULA(C74:AB74))=26,"OK","CHECK") -> OK | AE74: =IF($H74=0,0,INDEX(AE$800:AE$1034,$H74)) -> 0 | AF74: =IF($H74=0,0,INDEX(AF$800:AF$1034,$H74)) -> 0 | AG74: =IF($H74=0,0,INDEX(AG$800:AG$1034,$H74)) -> 0 | AH74: =IF($H74=0,0,INDEX(AH$800:AH$1034,$H74)) -> 0 | AI74: =IF($H74=0,0,INDEX(AI$800:AI$1034,$H74)) -> 0 | AJ74: =IF($H74=0,0,INDEX(AJ$800:AJ$1034,$H74)) -> 0 | AK74: =IF($H74=0,0,INDEX(AK$800:AK$1034,$H74)) -> 0 | AL74: =IF($H74=0,0,INDEX(AL$800:AL$1034,$H74)) -> 0 | AM74: =IF($H74=0,0,INDEX(AM$800:AM$1034,$H74)) -> 0 | AN74: =IF($H74=0,0,INDEX(AN$800:AN$1034,$H74)) -> 0 | AO74: =IF($H74=0,0,INDEX(AO$800:AO$1034,$H74)) -> 0 | AP74: =IF($H74=0,0,INDEX(AP$800:AP$1034,$H74)) -> 0 | AQ74: =IF($H74=0,0,INDEX(AQ$800:AQ$1034,$H74)) -> 0 | AR74: =IF($H74=0,0,INDEX(AR$800:AR$1034,$H74)) -> 0
C75: 0 | D75: 0 | E75: 0 | F75: 0 | G75: 0 | H75: 0 | I75: =IF($H75=0,0,INDEX(I$320:I$394,$H75)) -> 0 | J75: =IF($H75=0,0,INDEX(J$320:J$394,$H75)) -> 0 | K75: =IF($H75=0,0,INDEX(K$320:K$394,$H75)) -> 0 | L75: =IF($H75=0,0,INDEX(L$320:L$394,$H75)) -> 0 | M75: =IF($H75=0,0,INDEX(M$320:M$394,$H75)) -> 0 | N75: =IF($H75=0,0,INDEX(N$320:N$394,$H75)) -> 0 | O75: =IF($H75=0,0,INDEX(O$320:O$394,$H75)) -> 0 | P75: =IF($H75=0,0,INDEX(P$320:P$394,$H75)) -> 0 | Q75: =IF($H75=0,0,INDEX(Q$320:Q$394,$H75)) -> 0 | R75: =IF($H75=0,0,INDEX(R$320:R$394,$H75)) -> 0 | S75: =IF($H75=0,0,INDEX(S$320:S$394,$H75)) -> 0 | T75: =IF($H75=0,0,INDEX(T$320:T$394,$H75)) -> 0 | U75: =IF($H75=0,0,INDEX(U$320:U$394,$H75)) -> 0 | V75: =IF($H75=0,0,INDEX(V$320:V$394,$H75)) -> 0 | W75: =IF($H75=0,0,INDEX(W$320:W$394,$H75)) -> 0 | X75: =IF($H75=0,0,INDEX(X$320:X$394,$H75)) -> 0 | Y75: =IF($H75=0,0,INDEX(Y$320:Y$394,$H75)) -> 0 | Z75: =IF($H75=0,0,INDEX(Z$320:Z$394,$H75)) -> 0 | AA75: =IF($H75=0,0,INDEX(AA$320:AA$394,$H75)) -> 0 | AB75: =IF($H75=0,0,INDEX(AB$320:AB$394,$H75)) -> 0 | AC75: =IF($H75=0,0,INDEX(AC$800:AC$1034,$H75)) -> 0 | AD75: =IF(SUMPRODUCT(--_xlfn.ISFORMULA(C75:AB75))=26,"OK","CHECK") -> OK | AE75: =IF($H75=0,0,INDEX(AE$800:AE$1034,$H75)) -> 0 | AF75: =IF($H75=0,0,INDEX(AF$800:AF$1034,$H75)) -> 0 | AG75: =IF($H75=0,0,INDEX(AG$800:AG$1034,$H75)) -> 0 | AH75: =IF($H75=0,0,INDEX(AH$800:AH$1034,$H75)) -> 0 | AI75: =IF($H75=0,0,INDEX(AI$800:AI$1034,$H75)) -> 0 | AJ75: =IF($H75=0,0,INDEX(AJ$800:AJ$1034,$H75)) -> 0 | AK75: =IF($H75=0,0,INDEX(AK$800:AK$1034,$H75)) -> 0 | AL75: =IF($H75=0,0,INDEX(AL$800:AL$1034,$H75)) -> 0 | AM75: =IF($H75=0,0,INDEX(AM$800:AM$1034,$H75)) -> 0 | AN75: =IF($H75=0,0,INDEX(AN$800:AN$1034,$H75)) -> 0 | AO75: =IF($H75=0,0,INDEX(AO$800:AO$1034,$H75)) -> 0 | AP75: =IF($H75=0,0,INDEX(AP$800:AP$1034,$H75)) -> 0 | AQ75: =IF($H75=0,0,INDEX(AQ$800:AQ$1034,$H75)) -> 0 | AR75: =IF($H75=0,0,INDEX(AR$800:AR$1034,$H75)) -> 0
C76: 0 | D76: 0 | E76: 0 | F76: 0 | G76: 0 | H76: 0 | I76: =IF($H76=0,0,INDEX(I$320:I$394,$H76)) -> 0 | J76: =IF($H76=0,0,INDEX(J$320:J$394,$H76)) -> 0 | K76: =IF($H76=0,0,INDEX(K$320:K$394,$H76)) -> 0 | L76: =IF($H76=0,0,INDEX(L$320:L$394,$H76)) -> 0 | M76: =IF($H76=0,0,INDEX(M$320:M$394,$H76)) -> 0 | N76: =IF($H76=0,0,INDEX(N$320:N$394,$H76)) -> 0 | O76: =IF($H76=0,0,INDEX(O$320:O$394,$H76)) -> 0 | P76: =IF($H76=0,0,INDEX(P$320:P$394,$H76)) -> 0 | Q76: =IF($H76=0,0,INDEX(Q$320:Q$394,$H76)) -> 0 | R76: =IF($H76=0,0,INDEX(R$320:R$394,$H76)) -> 0 | S76: =IF($H76=0,0,INDEX(S$320:S$394,$H76)) -> 0 | T76: =IF($H76=0,0,INDEX(T$320:T$394,$H76)) -> 0 | U76: =IF($H76=0,0,INDEX(U$320:U$394,$H76)) -> 0 | V76: =IF($H76=0,0,INDEX(V$320:V$394,$H76)) -> 0 | W76: =IF($H76=0,0,INDEX(W$320:W$394,$H76)) -> 0 | X76: =IF($H76=0,0,INDEX(X$320:X$394,$H76)) -> 0 | Y76: =IF($H76=0,0,INDEX(Y$320:Y$394,$H76)) -> 0 | Z76: =IF($H76=0,0,INDEX(Z$320:Z$394,$H76)) -> 0 | AA76: =IF($H76=0,0,INDEX(AA$320:AA$394,$H76)) -> 0 | AB76: =IF($H76=0,0,INDEX(AB$320:AB$394,$H76)) -> 0 | AC76: =IF($H76=0,0,INDEX(AC$800:AC$1034,$H76)) -> 0 | AD76: =IF(SUMPRODUCT(--_xlfn.ISFORMULA(C76:AB76))=26,"OK","CHECK") -> OK | AE76: =IF($H76=0,0,INDEX(AE$800:AE$1034,$H76)) -> 0 | AF76: =IF($H76=0,0,INDEX(AF$800:AF$1034,$H76)) -> 0 | AG76: =IF($H76=0,0,INDEX(AG$800:AG$1034,$H76)) -> 0 | AH76: =IF($H76=0,0,INDEX(AH$800:AH$1034,$H76)) -> 0 | AI76: =IF($H76=0,0,INDEX(AI$800:AI$1034,$H76)) -> 0 | AJ76: =IF($H76=0,0,INDEX(AJ$800:AJ$1034,$H76)) -> 0 | AK76: =IF($H76=0,0,INDEX(AK$800:AK$1034,$H76)) -> 0 | AL76: =IF($H76=0,0,INDEX(AL$800:AL$1034,$H76)) -> 0 | AM76: =IF($H76=0,0,INDEX(AM$800:AM$1034,$H76)) -> 0 | AN76: =IF($H76=0,0,INDEX(AN$800:AN$1034,$H76)) -> 0 | AO76: =IF($H76=0,0,INDEX(AO$800:AO$1034,$H76)) -> 0 | AP76: =IF($H76=0,0,INDEX(AP$800:AP$1034,$H76)) -> 0 | AQ76: =IF($H76=0,0,INDEX(AQ$800:AQ$1034,$H76)) -> 0 | AR76: =IF($H76=0,0,INDEX(AR$800:AR$1034,$H76)) -> 0
C77: 0 | D77: 0 | E77: 0 | F77: 0 | G77: 0 | H77: 0 | I77: =IF($H77=0,0,INDEX(I$320:I$394,$H77)) -> 0 | J77: =IF($H77=0,0,INDEX(J$320:J$394,$H77)) -> 0 | K77: =IF($H77=0,0,INDEX(K$320:K$394,$H77)) -> 0 | L77: =IF($H77=0,0,INDEX(L$320:L$394,$H77)) -> 0 | M77: =IF($H77=0,0,INDEX(M$320:M$394,$H77)) -> 0 | N77: =IF($H77=0,0,INDEX(N$320:N$394,$H77)) -> 0 | O77: =IF($H77=0,0,INDEX(O$320:O$394,$H77)) -> 0 | P77: =IF($H77=0,0,INDEX(P$320:P$394,$H77)) -> 0 | Q77: =IF($H77=0,0,INDEX(Q$320:Q$394,$H77)) -> 0 | R77: =IF($H77=0,0,INDEX(R$320:R$394,$H77)) -> 0 | S77: =IF($H77=0,0,INDEX(S$320:S$394,$H77)) -> 0 | T77: =IF($H77=0,0,INDEX(T$320:T$394,$H77)) -> 0 | U77: =IF($H77=0,0,INDEX(U$320:U$394,$H77)) -> 0 | V77: =IF($H77=0,0,INDEX(V$320:V$394,$H77)) -> 0 | W77: =IF($H77=0,0,INDEX(W$320:W$394,$H77)) -> 0 | X77: =IF($H77=0,0,INDEX(X$320:X$394,$H77)) -> 0 | Y77: =IF($H77=0,0,INDEX(Y$320:Y$394,$H77)) -> 0 | Z77: =IF($H77=0,0,INDEX(Z$320:Z$394,$H77)) -> 0 | AA77: =IF($H77=0,0,INDEX(AA$320:AA$394,$H77)) -> 0 | AB77: =IF($H77=0,0,INDEX(AB$320:AB$394,$H77)) -> 0 | AC77: =IF($H77=0,0,INDEX(AC$800:AC$1034,$H77)) -> 0 | AD77: =IF(SUMPRODUCT(--_xlfn.ISFORMULA(C77:AB77))=26,"OK","CHECK") -> OK | AE77: =IF($H77=0,0,INDEX(AE$800:AE$1034,$H77)) -> 0 | AF77: =IF($H77=0,0,INDEX(AF$800:AF$1034,$H77)) -> 0 | AG77: =IF($H77=0,0,INDEX(AG$800:AG$1034,$H77)) -> 0 | AH77: =IF($H77=0,0,INDEX(AH$800:AH$1034,$H77)) -> 0 | AI77: =IF($H77=0,0,INDEX(AI$800:AI$1034,$H77)) -> 0 | AJ77: =IF($H77=0,0,INDEX(AJ$800:AJ$1034,$H77)) -> 0 | AK77: =IF($H77=0,0,INDEX(AK$800:AK$1034,$H77)) -> 0 | AL77: =IF($H77=0,0,INDEX(AL$800:AL$1034,$H77)) -> 0 | AM77: =IF($H77=0,0,INDEX(AM$800:AM$1034,$H77)) -> 0 | AN77: =IF($H77=0,0,INDEX(AN$800:AN$1034,$H77)) -> 0 | AO77: =IF($H77=0,0,INDEX(AO$800:AO$1034,$H77)) -> 0 | AP77: =IF($H77=0,0,INDEX(AP$800:AP$1034,$H77)) -> 0 | AQ77: =IF($H77=0,0,INDEX(AQ$800:AQ$1034,$H77)) -> 0 | AR77: =IF($H77=0,0,INDEX(AR$800:AR$1034,$H77)) -> 0
C78: 0 | D78: 0 | E78: 0 | F78: 0 | G78: 0 | H78: 0 | I78: =IF($H78=0,0,INDEX(I$320:I$394,$H78)) -> 0 | J78: =IF($H78=0,0,INDEX(J$320:J$394,$H78)) -> 0 | K78: =IF($H78=0,0,INDEX(K$320:K$394,$H78)) -> 0 | L78: =IF($H78=0,0,INDEX(L$320:L$394,$H78)) -> 0 | M78: =IF($H78=0,0,INDEX(M$320:M$394,$H78)) -> 0 | N78: =IF($H78=0,0,INDEX(N$320:N$394,$H78)) -> 0 | O78: =IF($H78=0,0,INDEX(O$320:O$394,$H78)) -> 0 | P78: =IF($H78=0,0,INDEX(P$320:P$394,$H78)) -> 0 | Q78: =IF($H78=0,0,INDEX(Q$320:Q$394,$H78)) -> 0 | R78: =IF($H78=0,0,INDEX(R$320:R$394,$H78)) -> 0 | S78: =IF($H78=0,0,INDEX(S$320:S$394,$H78)) -> 0 | T78: =IF($H78=0,0,INDEX(T$320:T$394,$H78)) -> 0 | U78: =IF($H78=0,0,INDEX(U$320:U$394,$H78)) -> 0 | V78: =IF($H78=0,0,INDEX(V$320:V$394,$H78)) -> 0 | W78: =IF($H78=0,0,INDEX(W$320:W$394,$H78)) -> 0 | X78: =IF($H78=0,0,INDEX(X$320:X$394,$H78)) -> 0 | Y78: =IF($H78=0,0,INDEX(Y$320:Y$394,$H78)) -> 0 | Z78: =IF($H78=0,0,INDEX(Z$320:Z$394,$H78)) -> 0 | AA78: =IF($H78=0,0,INDEX(AA$320:AA$394,$H78)) -> 0 | AB78: =IF($H78=0,0,INDEX(AB$320:AB$394,$H78)) -> 0 | AC78: =IF($H78=0,0,INDEX(AC$800:AC$1034,$H78)) -> 0 | AD78: =IF(SUMPRODUCT(--_xlfn.ISFORMULA(C78:AB78))=26,"OK","CHECK") -> OK | AE78: =IF($H78=0,0,INDEX(AE$800:AE$1034,$H78)) -> 0 | AF78: =IF($H78=0,0,INDEX(AF$800:AF$1034,$H78)) -> 0 | AG78: =IF($H78=0,0,INDEX(AG$800:AG$1034,$H78)) -> 0 | AH78: =IF($H78=0,0,INDEX(AH$800:AH$1034,$H78)) -> 0 | AI78: =IF($H78=0,0,INDEX(AI$800:AI$1034,$H78)) -> 0 | AJ78: =IF($H78=0,0,INDEX(AJ$800:AJ$1034,$H78)) -> 0 | AK78: =IF($H78=0,0,INDEX(AK$800:AK$1034,$H78)) -> 0 | AL78: =IF($H78=0,0,INDEX(AL$800:AL$1034,$H78)) -> 0 | AM78: =IF($H78=0,0,INDEX(AM$800:AM$1034,$H78)) -> 0 | AN78: =IF($H78=0,0,INDEX(AN$800:AN$1034,$H78)) -> 0 | AO78: =IF($H78=0,0,INDEX(AO$800:AO$1034,$H78)) -> 0 | AP78: =IF($H78=0,0,INDEX(AP$800:AP$1034,$H78)) -> 0 | AQ78: =IF($H78=0,0,INDEX(AQ$800:AQ$1034,$H78)) -> 0 | AR78: =IF($H78=0,0,INDEX(AR$800:AR$1034,$H78)) -> 0
C79: 0 | D79: 0 | E79: 0 | F79: 0 | G79: 0 | H79: 0 | I79: =IF($H79=0,0,INDEX(I$320:I$394,$H79)) -> 0 | J79: =IF($H79=0,0,INDEX(J$320:J$394,$H79)) -> 0 | K79: =IF($H79=0,0,INDEX(K$320:K$394,$H79)) -> 0 | L79: =IF($H79=0,0,INDEX(L$320:L$394,$H79)) -> 0 | M79: =IF($H79=0,0,INDEX(M$320:M$394,$H79)) -> 0 | N79: =IF($H79=0,0,INDEX(N$320:N$394,$H79)) -> 0 | O79: =IF($H79=0,0,INDEX(O$320:O$394,$H79)) -> 0 | P79: =IF($H79=0,0,INDEX(P$320:P$394,$H79)) -> 0 | Q79: =IF($H79=0,0,INDEX(Q$320:Q$394,$H79)) -> 0 | R79: =IF($H79=0,0,INDEX(R$320:R$394,$H79)) -> 0 | S79: =IF($H79=0,0,INDEX(S$320:S$394,$H79)) -> 0 | T79: =IF($H79=0,0,INDEX(T$320:T$394,$H79)) -> 0 | U79: =IF($H79=0,0,INDEX(U$320:U$394,$H79)) -> 0 | V79: =IF($H79=0,0,INDEX(V$320:V$394,$H79)) -> 0 | W79: =IF($H79=0,0,INDEX(W$320:W$394,$H79)) -> 0 | X79: =IF($H79=0,0,INDEX(X$320:X$394,$H79)) -> 0 | Y79: =IF($H79=0,0,INDEX(Y$320:Y$394,$H79)) -> 0 | Z79: =IF($H79=0,0,INDEX(Z$320:Z$394,$H79)) -> 0 | AA79: =IF($H79=0,0,INDEX(AA$320:AA$394,$H79)) -> 0 | AB79: =IF($H79=0,0,INDEX(AB$320:AB$394,$H79)) -> 0 | AC79: =IF($H79=0,0,INDEX(AC$800:AC$1034,$H79)) -> 0 | AD79: =IF(SUMPRODUCT(--_xlfn.ISFORMULA(C79:AB79))=26,"OK","CHECK") -> OK | AE79: =IF($H79=0,0,INDEX(AE$800:AE$1034,$H79)) -> 0 | AF79: =IF($H79=0,0,INDEX(AF$800:AF$1034,$H79)) -> 0 | AG79: =IF($H79=0,0,INDEX(AG$800:AG$1034,$H79)) -> 0 | AH79: =IF($H79=0,0,INDEX(AH$800:AH$1034,$H79)) -> 0 | AI79: =IF($H79=0,0,INDEX(AI$800:AI$1034,$H79)) -> 0 | AJ79: =IF($H79=0,0,INDEX(AJ$800:AJ$1034,$H79)) -> 0 | AK79: =IF($H79=0,0,INDEX(AK$800:AK$1034,$H79)) -> 0 | AL79: =IF($H79=0,0,INDEX(AL$800:AL$1034,$H79)) -> 0 | AM79: =IF($H79=0,0,INDEX(AM$800:AM$1034,$H79)) -> 0 | AN79: =IF($H79=0,0,INDEX(AN$800:AN$1034,$H79)) -> 0 | AO79: =IF($H79=0,0,INDEX(AO$800:AO$1034,$H79)) -> 0 | AP79: =IF($H79=0,0,INDEX(AP$800:AP$1034,$H79)) -> 0 | AQ79: =IF($H79=0,0,INDEX(AQ$800:AQ$1034,$H79)) -> 0 | AR79: =IF($H79=0,0,INDEX(AR$800:AR$1034,$H79)) -> 0
C80: 0 | D80: 0 | E80: 0 | F80: 0 | G80: 0 | H80: 0 | I80: =IF($H80=0,0,INDEX(I$320:I$394,$H80)) -> 0 | J80: =IF($H80=0,0,INDEX(J$320:J$394,$H80)) -> 0 | K80: =IF($H80=0,0,INDEX(K$320:K$394,$H80)) -> 0 | L80: =IF($H80=0,0,INDEX(L$320:L$394,$H80)) -> 0 | M80: =IF($H80=0,0,INDEX(M$320:M$394,$H80)) -> 0 | N80: =IF($H80=0,0,INDEX(N$320:N$394,$H80)) -> 0 | O80: =IF($H80=0,0,INDEX(O$320:O$394,$H80)) -> 0 | P80: =IF($H80=0,0,INDEX(P$320:P$394,$H80)) -> 0 | Q80: =IF($H80=0,0,INDEX(Q$320:Q$394,$H80)) -> 0 | R80: =IF($H80=0,0,INDEX(R$320:R$394,$H80)) -> 0 | S80: =IF($H80=0,0,INDEX(S$320:S$394,$H80)) -> 0 | T80: =IF($H80=0,0,INDEX(T$320:T$394,$H80)) -> 0 | U80: =IF($H80=0,0,INDEX(U$320:U$394,$H80)) -> 0 | V80: =IF($H80=0,0,INDEX(V$320:V$394,$H80)) -> 0 | W80: =IF($H80=0,0,INDEX(W$320:W$394,$H80)) -> 0 | X80: =IF($H80=0,0,INDEX(X$320:X$394,$H80)) -> 0 | Y80: =IF($H80=0,0,INDEX(Y$320:Y$394,$H80)) -> 0 | Z80: =IF($H80=0,0,INDEX(Z$320:Z$394,$H80)) -> 0 | AA80: =IF($H80=0,0,INDEX(AA$320:AA$394,$H80)) -> 0 | AB80: =IF($H80=0,0,INDEX(AB$320:AB$394,$H80)) -> 0 | AC80: =IF($H80=0,0,INDEX(AC$800:AC$1034,$H80)) -> 0 | AD80: =IF(SUMPRODUCT(--_xlfn.ISFORMULA(C80:AB80))=26,"OK","CHECK") -> OK | AE80: =IF($H80=0,0,INDEX(AE$800:AE$1034,$H80)) -> 0 | AF80: =IF($H80=0,0,INDEX(AF$800:AF$1034,$H80)) -> 0 | AG80: =IF($H80=0,0,INDEX(AG$800:AG$1034,$H80)) -> 0 | AH80: =IF($H80=0,0,INDEX(AH$800:AH$1034,$H80)) -> 0 | AI80: =IF($H80=0,0,INDEX(AI$800:AI$1034,$H80)) -> 0 | AJ80: =IF($H80=0,0,INDEX(AJ$800:AJ$1034,$H80)) -> 0 | AK80: =IF($H80=0,0,INDEX(AK$800:AK$1034,$H80)) -> 0 | AL80: =IF($H80=0,0,INDEX(AL$800:AL$1034,$H80)) -> 0 | AM80: =IF($H80=0,0,INDEX(AM$800:AM$1034,$H80)) -> 0 | AN80: =IF($H80=0,0,INDEX(AN$800:AN$1034,$H80)) -> 0 | AO80: =IF($H80=0,0,INDEX(AO$800:AO$1034,$H80)) -> 0 | AP80: =IF($H80=0,0,INDEX(AP$800:AP$1034,$H80)) -> 0 | AQ80: =IF($H80=0,0,INDEX(AQ$800:AQ$1034,$H80)) -> 0 | AR80: =IF($H80=0,0,INDEX(AR$800:AR$1034,$H80)) -> 0
B83: ="Tariff schedule 3 | "&forecastyear&" prices" -> Tariff schedule 3 | 2024–25 prices | D83: Tariff class | E83: =tariffid1 -> Code | F83: =tariffid2 -> Other identifier | G83: =tariffid3 -> Other identifier | I83: ='Prop. prices'!I5 -> Fixed | J83: ='Prop. prices'!J5 -> Anytime | K83: ='Prop. prices'!K5 -> Peak | L83: ='Prop. prices'!L5 -> Off-peak | M83: ='Prop. prices'!M5 -> Summer Dmd | N83: ='Prop. prices'!N5 -> Non-sum. Dmd | O83: ='Prop. prices'!O5 -> Rolling Dmd | P83: ='Prop. prices'!P5 -> Incentive Dmd | Q83: ='Prop. prices'!Q5 -> Saver | R83: ='Prop. prices'!R5 -> Export | S83: ='Prop. prices'!S5 -> Critical peak | T83: ='Prop. prices'!T5 -> Rolling Peak Dmd | U83: ='Prop. prices'!U5 -> 0 | V83: ='Prop. prices'!V5 -> 0 | W83: ='Prop. prices'!W5 -> 0 | X83: ='Prop. prices'!X5 -> 0 | Y83: ='Prop. prices'!Y5 -> 0 | Z83: ='Prop. prices'!Z5 -> 0 | AA83: ='Prop. prices'!AA5 -> 0 | AB83: ='Prop. prices'!AB5 -> 0
I84: ='Prop. prices'!I6 -> cents/day | J84: ='Prop. prices'!J6 -> cents/kWh | K84: ='Prop. prices'!K6 -> cents/kWh | L84: ='Prop. prices'!L6 -> cents/kWh | M84: ='Prop. prices'!M6 -> cents/kW/day | N84: ='Prop. prices'!N6 -> cents/kW/day | O84: ='Prop. prices'!O6 -> cents/kVA/day | P84: ='Prop. prices'!P6 -> cents/kVA/day | Q84: ='Prop. prices'!Q6 -> cents/kWh | R84: ='Prop. prices'!R6 -> cents/kWh | S84: ='Prop. prices'!S6 -> cents/kWh | T84: ='Prop. prices'!T6 -> $/kW/month | U84: ='Prop. prices'!U6 ->  | V84: ='Prop. prices'!V6 ->  | W84: ='Prop. prices'!W6 ->  | X84: ='Prop. prices'!X6 ->  | Y84: ='Prop. prices'!Y6 ->  | Z84: ='Prop. prices'!Z6 ->  | AA84: ='Prop. prices'!AA6 ->  | AB84: ='Prop. prices'!AB6 -> 
C85: Total network prices
C86: =Qty!C36 -> Residential Single Rate | D86: =Qty!D36 -> Residential | E86: =Qty!E36 -> LVS1R | F86: =Qty!F36 -> 0 | G86: =Qty!G36 -> 0 | I86: =I164+I242+I320 -> 26.02 | J86: 9.25 | K86: 0 | L86: 0 | M86: 0 | N86: 0 | O86: 0 | P86: 0 | Q86: 0 | R86: 0 | S86: 0 | T86: 0 | U86: 0 | V86: 0 | W86: 0 | X86: 0 | Y86: 0 | Z86: 0 | AA86: 0 | AB86: 0 | AD86: =IF(SUMPRODUCT(--_xlfn.ISFORMULA(C86:AB86))=25,"OK","CHECK") -> OK
C87: =Qty!C37 -> Residential ToU | D87: =Qty!D37 -> Residential | E87: =Qty!E37 -> URTOU | F87: =Qty!F37 -> 0 | G87: =Qty!G37 -> 0 | I87: =I165+I243+I321 -> 26.02 | J87: 0 | K87: 17.39 | L87: 4.33 | M87: 0 | N87: 0 | O87: 0 | P87: 0 | Q87: 0 | R87: 0 | S87: 0 | T87: 0 | U87: 0 | V87: 0 | W87: 0 | X87: 0 | Y87: 0 | Z87: 0 | AA87: 0 | AB87: 0 | AD87: =IF(SUMPRODUCT(--_xlfn.ISFORMULA(C87:AB87))=25,"OK","CHECK") -> OK
C88: =Qty!C38 -> Residential Demand | D88: =Qty!D38 -> Residential | E88: =Qty!E38 -> RESKW1R | F88: =Qty!F38 -> 0 | G88: =Qty!G38 -> 0 | I88: =I166+I244+I322 -> 26.02 | J88: 4.49 | K88: 0 | L88: 0 | M88: 36.72 | N88: 11.87 | O88: 0 | P88: 0 | Q88: 0 | R88: 0 | S88: 0 | T88: 0 | U88: 0 | V88: 0 | W88: 0 | X88: 0 | Y88: 0 | Z88: 0 | AA88: 0 | AB88: 0 | AD88: =IF(SUMPRODUCT(--_xlfn.ISFORMULA(C88:AB88))=25,"OK","CHECK") -> OK
C89: =Qty!C39 -> Dedicated Circuit | D89: =Qty!D39 -> Residential | E89: =Qty!E39 -> LVDed | F89: =Qty!F39 -> 0 | G89: =Qty!G39 -> 0 | I89: =I167+I245+I323 -> 0 | J89: 0 | K89: 0 | L89: 2.54 | M89: 0 | N89: 0 | O89: 0 | P89: 0 | Q89: 0 | R89: 0 | S89: 0 | T89: 0 | U89: 0 | V89: 0 | W89: 0 | X89: 0 | Y89: 0 | Z89: 0 | AA89: 0 | AB89: 0 | AD89: =IF(SUMPRODUCT(--_xlfn.ISFORMULA(C89:AB89))=25,"OK","CHECK") -> OK
C90: =Qty!C40 -> 0 | D90: =Qty!D40 -> 0 | E90: =Qty!E40 -> 0 | F90: =Qty!F40 -> 0 | G90: =Qty!G40 -> 0 | I90: =I168+I246+I324 -> 0 | J90: 0 | K90: 0 | L90: 0 | M90: 0 | N90: 0 | O90: 0 | P90: 0 | Q90: 0 | R90: 0 | S90: 0 | T90: 0 | U90: 0 | V90: 0 | W90: 0 | X90: 0 | Y90: 0 | Z90: 0 | AA90: 0 | AB90: 0 | AD90: =IF(SUMPRODUCT(--_xlfn.ISFORMULA(C90:AB90))=25,"OK","CHECK") -> OK
C91: =Qty!C41 -> Small Business single rate | D91: =Qty!D41 -> Small and medium business | E91: =Qty!E41 -> LVM1R | F91: =Qty!F41 -> 0 | G91: =Qty!G41 -> 0 | I91: =I169+I247+I325 -> 42.46 | J91: 10.29 | K91: 0 | L91: 0 | M91: 0 | N91: 0 | O91: 0 | P91: 0 | Q91: 0 | R91: 0 | S91: 0 | T91: 0 | U91: 0 | V91: 0 | W91: 0 | X91: 0 | Y91: 0 | Z91: 0 | AA91: 0 | AB91: 0 | AD91: =IF(SUMPRODUCT(--_xlfn.ISFORMULA(C91:AB91))=25,"OK","CHECK") -> OK
C92: =Qty!C42 -> Small Business ToU | D92: =Qty!D42 -> Small and medium business | E92: =Qty!E42 -> LVTOU | F92: =Qty!F42 -> 0 | G92: =Qty!G42 -> 0 | I92: =I170+I248+I326 -> 42.46 | J92: 0 | K92: 16.41 | L92: 3.64 | M92: 0 | N92: 0 | O92: 0 | P92: 0 | Q92: 0 | R92: 0 | S92: 0 | T92: 0 | U92: 0 | V92: 0 | W92: 0 | X92: 0 | Y92: 0 | Z92: 0 | AA92: 0 | AB92: 0 | AD92: =IF(SUMPRODUCT(--_xlfn.ISFORMULA(C92:AB92))=25,"OK","CHECK") -> OK
C93: =Qty!C43 -> Small Business demand | D93: =Qty!D43 -> Small and medium business | E93: =Qty!E43 -> LVMKW1R | F93: =Qty!F43 -> 0 | G93: =Qty!G43 -> 0 | I93: =I171+I249+I327 -> 42.46 | J93: 5.84 | K93: 0 | L93: 0 | M93: 63.55 | N93: 25.98 | O93: 0 | P93: 0 | Q93: 0 | R93: 0 | S93: 0 | T93: 0 | U93: 0 | V93: 0 | W93: 0 | X93: 0 | Y93: 0 | Z93: 0 | AA93: 0 | AB93: 0 | AD93: =IF(SUMPRODUCT(--_xlfn.ISFORMULA(C93:AB93))=25,"OK","CHECK") -> OK
C94: =Qty!C44 -> Unmetered supplies | D94: =Qty!D44 -> Small and medium business | E94: =Qty!E44 -> UnMet | F94: =Qty!F44 -> 0 | G94: =Qty!G44 -> 0 | I94: =I172+I250+I328 -> 0 | J94: 0 | K94: 16.64 | L94: 4.78 | M94: 0 | N94: 0 | O94: 0 | P94: 0 | Q94: 0 | R94: 0 | S94: 0 | T94: 0 | U94: 0 | V94: 0 | W94: 0 | X94: 0 | Y94: 0 | Z94: 0 | AA94: 0 | AB94: 0 | AD94: =IF(SUMPRODUCT(--_xlfn.ISFORMULA(C94:AB94))=25,"OK","CHECK") -> OK
C95: =Qty!C45 -> 0 | D95: =Qty!D45 -> 0 | E95: =Qty!E45 -> 0 | F95: =Qty!F45 -> 0 | G95: =Qty!G45 -> 0 | I95: =I173+I251+I329 -> 0 | J95: 0 | K95: 0 | L95: 0 | M95: 0 | N95: 0 | O95: 0 | P95: 0 | Q95: 0 | R95: 0 | S95: 0 | T95: 0 | U95: 0 | V95: 0 | W95: 0 | X95: 0 | Y95: 0 | Z95: 0 | AA95: 0 | AB95: 0 | AD95: =IF(SUMPRODUCT(--_xlfn.ISFORMULA(C95:AB95))=25,"OK","CHECK") -> OK
C96: =Qty!C46 -> Large low voltage | D96: =Qty!D46 -> Large low voltage | E96: =Qty!E46 -> LVkVATOU | F96: =Qty!F46 -> 0 | G96: =Qty!G46 -> 0 | I96: =I174+I252+I330 -> 0 | J96: 0 | K96: 3.37 | L96: 1.61 | M96: 0 | N96: 0 | O96: 29.34 | P96: 35.09 | Q96: 0 | R96: 0 | S96: 0 | T96: 0 | U96: 0 | V96: 0 | W96: 0 | X96: 0 | Y96: 0 | Z96: 0 | AA96: 0 | AB96: 0 | AD96: =IF(SUMPRODUCT(--_xlfn.ISFORMULA(C96:AB96))=25,"OK","CHECK") -> OK
C97: =Qty!C47 -> 0 | D97: =Qty!D47 -> 0 | E97: =Qty!E47 -> 0 | F97: =Qty!F47 -> 0 | G97: =Qty!G47 -> 0 | I97: =I175+I253+I331 -> 0 | J97: 0 | K97: 0 | L97: 0 | M97: 0 | N97: 0 | O97: 0 | P97: 0 | Q97: 0 | R97: 0 | S97: 0 | T97: 0 | U97: 0 | V97: 0 | W97: 0 | X97: 0 | Y97: 0 | Z97: 0 | AA97: 0 | AB97: 0 | AD97: =IF(SUMPRODUCT(--_xlfn.ISFORMULA(C97:AB97))=25,"OK","CHECK") -> OK
C98: =Qty!C48 -> High Voltage | D98: =Qty!D48 -> High voltage | E98: =Qty!E48 -> HVkVATOU | F98: =Qty!F48 -> 0 | G98: =Qty!G48 -> 0 | I98: =I176+I254+I332 -> 0 | J98: 0 | K98: 2.65 | L98: 1.28 | M98: 0 | N98: 0 | O98: 16.96 | P98: 22.16 | Q98: 0 | R98: 0 | S98: 0 | T98: 0 | U98: 0 | V98: 0 | W98: 0 | X98: 0 | Y98: 0 | Z98: 0 | AA98: 0 | AB98: 0 | AD98: =IF(SUMPRODUCT(--_xlfn.ISFORMULA(C98:AB98))=25,"OK","CHECK") -> OK
C99: =Qty!C49 -> 0 | D99: =Qty!D49 -> 0 | E99: =Qty!E49 -> 0 | F99: =Qty!F49 -> 0 | G99: =Qty!G49 -> 0 | I99: =I177+I255+I333 -> 0 | J99: 0 | K99: 0 | L99: 0 | M99: 0 | N99: 0 | O99: 0 | P99: 0 | Q99: 0 | R99: 0 | S99: 0 | T99: 0 | U99: 0 | V99: 0 | W99: 0 | X99: 0 | Y99: 0 | Z99: 0 | AA99: 0 | AB99: 0 | AD99: =IF(SUMPRODUCT(--_xlfn.ISFORMULA(C99:AB99))=25,"OK","CHECK") -> OK
C100: =Qty!C50 -> Sub-transmission | D100: =Qty!D50 -> Sub-transmission | E100: =Qty!E50 -> SUBTkVATOU | F100: =Qty!F50 -> 0 | G100: =Qty!G50 -> 0 | I100: =I178+I256+I334 -> 0 | J100: 0 | K100: 1.77 | L100: 0.88 | M100: 0 | N100: 0 | O100: 4.55 | P100: 13.37 | Q100: 0 | R100: 0 | S100: 0 | T100: 0 | U100: 0 | V100: 0 | W100: 0 | X100: 0 | Y100: 0 | Z100: 0 | AA100: 0 | AB100: 0 | AD100: =IF(SUMPRODUCT(--_xlfn.ISFORMULA(C100:AB100))=25,"OK","CHECK") -> OK
C101: =Qty!C51 -> 0 | D101: =Qty!D51 -> 0 | E101: =Qty!E51 -> 0 | F101: =Qty!F51 -> 0 | G101: =Qty!G51 -> 0 | I101: =I179+I257+I335 -> 0 | J101: 0 | K101: 0 | L101: 0 | M101: 0 | N101: 0 | O101: 0 | P101: 0 | Q101: 0 | R101: 0 | S101: 0 | T101: 0 | U101: 0 | V101: 0 | W101: 0 | X101: 0 | Y101: 0 | Z101: 0 | AA101: 0 | AB101: 0 | AD101: =IF(SUMPRODUCT(--_xlfn.ISFORMULA(C101:AB101))=25,"OK","CHECK") -> OK
C102: =Qty!C52 -> 0 | D102: =Qty!D52 -> 0 | E102: =Qty!E52 -> 0 | F102: =Qty!F52 -> 0 | G102: =Qty!G52 -> 0 | I102: =I180+I258+I336 -> 0 | J102: 0 | K102: 0 | L102: 0 | M102: 0 | N102: 0 | O102: 0 | P102: 0 | Q102: 0 | R102: 0 | S102: 0 | T102: 0 | U102: 0 | V102: 0 | W102: 0 | X102: 0 | Y102: 0 | Z102: 0 | AA102: 0 | AB102: 0 | AD102: =IF(SUMPRODUCT(--_xlfn.ISFORMULA(C102:AB102))=25,"OK","CHECK") -> OK
C103: =Qty!C53 -> 0 | D103: =Qty!D53 -> 0 | E103: =Qty!E53 -> 0 | F103: =Qty!F53 -> 0 | G103: =Qty!G53 -> 0 | I103: =I181+I259+I337 -> 0 | J103: 0 | K103: 0 | L103: 0 | M103: 0 | N103: 0 | O103: 0 | P103: 0 | Q103: 0 | R103: 0 | S103: 0 | T103: 0 | U103: 0 | V103: 0 | W103: 0 | X103: 0 | Y103: 0 | Z103: 0 | AA103: 0 | AB103: 0 | AD103: =IF(SUMPRODUCT(--_xlfn.ISFORMULA(C103:AB103))=25,"OK","CHECK") -> OK
C104: =Qty!C54 -> 0 | D104: =Qty!D54 -> 0 | E104: =Qty!E54 -> 0 | F104: =Qty!F54 -> 0 | G104: =Qty!G54 -> 0 | I104: =I182+I260+I338 -> 0 | J104: 0 | K104: 0 | L104: 0 | M104: 0 | N104: 0 | O104: 0 | P104: 0 | Q104: 0 | R104: 0 | S104: 0 | T104: 0 | U104: 0 | V104: 0 | W104: 0 | X104: 0 | Y104: 0 | Z104: 0 | AA104: 0 | AB104: 0 | AD104: =IF(SUMPRODUCT(--_xlfn.ISFORMULA(C104:AB104))=25,"OK","CHECK") -> OK
C105: =Qty!C55 -> 0 | D105: =Qty!D55 -> 0 | E105: =Qty!E55 -> 0 | F105: =Qty!F55 -> 0 | G105: =Qty!G55 -> 0 | I105: =I183+I261+I339 -> 0 | J105: 0 | K105: 0 | L105: 0 | M105: 0 | N105: 0 | O105: 0 | P105: 0 | Q105: 0 | R105: 0 | S105: 0 | T105: 0 | U105: 0 | V105: 0 | W105: 0 | X105: 0 | Y105: 0 | Z105: 0 | AA105: 0 | AB105: 0 | AD105: =IF(SUMPRODUCT(--_xlfn.ISFORMULA(C105:AB105))=25,"OK","CHECK") -> OK
C106: =Qty!C56 -> 0 | D106: =Qty!D56 -> 0 | E106: =Qty!E56 -> 0 | F106: =Qty!F56 -> 0 | G106: =Qty!G56 -> 0 | I106: =I184+I262+I340 -> 0 | J106: 0 | K106: 0 | L106: 0 | M106: 0 | N106: 0 | O106: 0 | P106: 0 | Q106: 0 | R106: 0 | S106: 0 | T106: 0 | U106: 0 | V106: 0 | W106: 0 | X106: 0 | Y106: 0 | Z106: 0 | AA106: 0 | AB106: 0 | AD106: =IF(SUMPRODUCT(--_xlfn.ISFORMULA(C106:AB106))=25,"OK","CHECK") -> OK
C107: =Qty!C57 -> 0 | D107: =Qty!D57 -> 0 | E107: =Qty!E57 -> 0 | F107: =Qty!F57 -> 0 | G107: =Qty!G57 -> 0 | I107: =I185+I263+I341 -> 0 | J107: 0 | K107: 0 | L107: 0 | M107: 0 | N107: 0 | O107: 0 | P107: 0 | Q107: 0 | R107: 0 | S107: 0 | T107: 0 | U107: 0 | V107: 0 | W107: 0 | X107: 0 | Y107: 0 | Z107: 0 | AA107: 0 | AB107: 0 | AD107: =IF(SUMPRODUCT(--_xlfn.ISFORMULA(C107:AB107))=25,"OK","CHECK") -> OK
C108: =Qty!C58 -> 0 | D108: =Qty!D58 -> 0 | E108: =Qty!E58 -> 0 | F108: =Qty!F58 -> 0 | G108: =Qty!G58 -> 0 | I108: =I186+I264+I342 -> 0 | J108: 0 | K108: 0 | L108: 0 | M108: 0 | N108: 0 | O108: 0 | P108: 0 | Q108: 0 | R108: 0 | S108: 0 | T108: 0 | U108: 0 | V108: 0 | W108: 0 | X108: 0 | Y108: 0 | Z108: 0 | AA108: 0 | AB108: 0 | AD108: =IF(SUMPRODUCT(--_xlfn.ISFORMULA(C108:AB108))=25,"OK","CHECK") -> OK
C109: =Qty!C59 -> 0 | D109: =Qty!D59 -> 0 | E109: =Qty!E59 -> 0 | F109: =Qty!F59 -> 0 | G109: =Qty!G59 -> 0 | I109: =I187+I265+I343 -> 0 | J109: 0 | K109: 0 | L109: 0 | M109: 0 | N109: 0 | O109: 0 | P109: 0 | Q109: 0 | R109: 0 | S109: 0 | T109: 0 | U109: 0 | V109: 0 | W109: 0 | X109: 0 | Y109: 0 | Z109: 0 | AA109: 0 | AB109: 0 | AD109: =IF(SUMPRODUCT(--_xlfn.ISFORMULA(C109:AB109))=25,"OK","CHECK") -> OK
C110: =Qty!C60 -> 0 | D110: =Qty!D60 -> 0 | E110: =Qty!E60 -> 0 | F110: =Qty!F60 -> 0 | G110: =Qty!G60 -> 0 | I110: =I188+I266+I344 -> 0 | J110: 0 | K110: 0 | L110: 0 | M110: 0 | N110: 0 | O110: 0 | P110: 0 | Q110: 0 | R110: 0 | S110: 0 | T110: 0 | U110: 0 | V110: 0 | W110: 0 | X110: 0 | Y110: 0 | Z110: 0 | AA110: 0 | AB110: 0 | AD110: =IF(SUMPRODUCT(--_xlfn.ISFORMULA(C110:AB110))=25,"OK","CHECK") -> OK
C111: =Qty!C61 -> 0 | D111: =Qty!D61 -> 0 | E111: =Qty!E61 -> 0 | F111: =Qty!F61 -> 0 | G111: =Qty!G61 -> 0 | I111: =I189+I267+I345 -> 0 | J111: 0 | K111: 0 | L111: 0 | M111: 0 | N111: 0 | O111: 0 | P111: 0 | Q111: 0 | R111: 0 | S111: 0 | T111: 0 | U111: 0 | V111: 0 | W111: 0 | X111: 0 | Y111: 0 | Z111: 0 | AA111: 0 | AB111: 0 | AD111: =IF(SUMPRODUCT(--_xlfn.ISFORMULA(C111:AB111))=25,"OK","CHECK") -> OK
C112: =Qty!C62 -> 0 | D112: =Qty!D62 -> 0 | E112: =Qty!E62 -> 0 | F112: =Qty!F62 -> 0 | G112: =Qty!G62 -> 0 | I112: =I190+I268+I346 -> 0 | J112: 0 | K112: 0 | L112: 0 | M112: 0 | N112: 0 | O112: 0 | P112: 0 | Q112: 0 | R112: 0 | S112: 0 | T112: 0 | U112: 0 | V112: 0 | W112: 0 | X112: 0 | Y112: 0 | Z112: 0 | AA112: 0 | AB112: 0 | AD112: =IF(SUMPRODUCT(--_xlfn.ISFORMULA(C112:AB112))=25,"OK","CHECK") -> OK
C113: =Qty!C63 -> 0 | D113: =Qty!D63 -> 0 | E113: =Qty!E63 -> 0 | F113: =Qty!F63 -> 0 | G113: =Qty!G63 -> 0 | I113: =I191+I269+I347 -> 0 | J113: 0 | K113: 0 | L113: 0 | M113: 0 | N113: 0 | O113: 0 | P113: 0 | Q113: 0 | R113: 0 | S113: 0 | T113: 0 | U113: 0 | V113: 0 | W113: 0 | X113: 0 | Y113: 0 | Z113: 0 | AA113: 0 | AB113: 0 | AD113: =IF(SUMPRODUCT(--_xlfn.ISFORMULA(C113:AB113))=25,"OK","CHECK") -> OK
C114: =Qty!C64 -> 0 | D114: =Qty!D64 -> 0 | E114: =Qty!E64 -> 0 | F114: =Qty!F64 -> 0 | G114: =Qty!G64 -> 0 | I114: =I192+I270+I348 -> 0 | J114: 0 | K114: 0 | L114: 0 | M114: 0 | N114: 0 | O114: 0 | P114: 0 | Q114: 0 | R114: 0 | S114: 0 | T114: 0 | U114: 0 | V114: 0 | W114: 0 | X114: 0 | Y114: 0 | Z114: 0 | AA114: 0 | AB114: 0 | AD114: =IF(SUMPRODUCT(--_xlfn.ISFORMULA(C114:AB114))=25,"OK","CHECK") -> OK
C115: =Qty!C65 -> 0 | D115: =Qty!D65 -> 0 | E115: =Qty!E65 -> 0 | F115: =Qty!F65 -> 0 | G115: =Qty!G65 -> 0 | I115: =I193+I271+I349 -> 0 | J115: 0 | K115: 0 | L115: 0 | M115: 0 | N115: 0 | O115: 0 | P115: 0 | Q115: 0 | R115: 0 | S115: 0 | T115: 0 | U115: 0 | V115: 0 | W115: 0 | X115: 0 | Y115: 0 | Z115: 0 | AA115: 0 | AB115: 0 | AD115: =IF(SUMPRODUCT(--_xlfn.ISFORMULA(C115:AB115))=25,"OK","CHECK") -> OK
C116: =Qty!C66 -> 0 | D116: =Qty!D66 -> 0 | E116: =Qty!E66 -> 0 | F116: =Qty!F66 -> 0 | G116: =Qty!G66 -> 0 | I116: =I194+I272+I350 -> 0 | J116: 0 | K116: 0 | L116: 0 | M116: 0 | N116: 0 | O116: 0 | P116: 0 | Q116: 0 | R116: 0 | S116: 0 | T116: 0 | U116: 0 | V116: 0 | W116: 0 | X116: 0 | Y116: 0 | Z116: 0 | AA116: 0 | AB116: 0 | AD116: =IF(SUMPRODUCT(--_xlfn.ISFORMULA(C116:AB116))=25,"OK","CHECK") -> OK
C117: =Qty!C67 -> 0 | D117: =Qty!D67 -> 0 | E117: =Qty!E67 -> 0 | F117: =Qty!F67 -> 0 | G117: =Qty!G67 -> 0 | I117: =I195+I273+I351 -> 0 | J117: 0 | K117: 0 | L117: 0 | M117: 0 | N117: 0 | O117: 0 | P117: 0 | Q117: 0 | R117: 0 | S117: 0 | T117: 0 | U117: 0 | V117: 0 | W117: 0 | X117: 0 | Y117: 0 | Z117: 0 | AA117: 0 | AB117: 0 | AD117: =IF(SUMPRODUCT(--_xlfn.ISFORMULA(C117:AB117))=25,"OK","CHECK") -> OK
C118: =Qty!C68 -> 0 | D118: =Qty!D68 -> 0 | E118: =Qty!E68 -> 0 | F118: =Qty!F68 -> 0 | G118: =Qty!G68 -> 0 | I118: =I196+I274+I352 -> 0 | J118: 0 | K118: 0 | L118: 0 | M118: 0 | N118: 0 | O118: 0 | P118: 0 | Q118: 0 | R118: 0 | S118: 0 | T118: 0 | U118: 0 | V118: 0 | W118: 0 | X118: 0 | Y118: 0 | Z118: 0 | AA118: 0 | AB118: 0 | AD118: =IF(SUMPRODUCT(--_xlfn.ISFORMULA(C118:AB118))=25,"OK","CHECK") -> OK
C119: =Qty!C69 -> 0 | D119: =Qty!D69 -> 0 | E119: =Qty!E69 -> 0 | F119: =Qty!F69 -> 0 | G119: =Qty!G69 -> 0 | I119: =I197+I275+I353 -> 0 | J119: 0 | K119: 0 | L119: 0 | M119: 0 | N119: 0 | O119: 0 | P119: 0 | Q119: 0 | R119: 0 | S119: 0 | T119: 0 | U119: 0 | V119: 0 | W119: 0 | X119: 0 | Y119: 0 | Z119: 0 | AA119: 0 | AB119: 0 | AD119: =IF(SUMPRODUCT(--_xlfn.ISFORMULA(C119:AB119))=25,"OK","CHECK") -> OK
C120: =Qty!C70 -> 0 | D120: =Qty!D70 -> 0 | E120: =Qty!E70 -> 0 | F120: =Qty!F70 -> 0 | G120: =Qty!G70 -> 0 | I120: =I198+I276+I354 -> 0 | J120: 0 | K120: 0 | L120: 0 | M120: 0 | N120: 0 | O120: 0 | P120: 0 | Q120: 0 | R120: 0 | S120: 0 | T120: 0 | U120: 0 | V120: 0 | W120: 0 | X120: 0 | Y120: 0 | Z120: 0 | AA120: 0 | AB120: 0 | AD120: =IF(SUMPRODUCT(--_xlfn.ISFORMULA(C120:AB120))=25,"OK","CHECK") -> OK
C121: =Qty!C71 -> 0 | D121: =Qty!D71 -> 0 | E121: =Qty!E71 -> 0 | F121: =Qty!F71 -> 0 | G121: =Qty!G71 -> 0 | I121: =I199+I277+I355 -> 0 | J121: 0 | K121: 0 | L121: 0 | M121: 0 | N121: 0 | O121: 0 | P121: 0 | Q121: 0 | R121: 0 | S121: 0 | T121: 0 | U121: 0 | V121: 0 | W121: 0 | X121: 0 | Y121: 0 | Z121: 0 | AA121: 0 | AB121: 0 | AD121: =IF(SUMPRODUCT(--_xlfn.ISFORMULA(C121:AB121))=25,"OK","CHECK") -> OK
C122: =Qty!C72 -> 0 | D122: =Qty!D72 -> 0 | E122: =Qty!E72 -> 0 | F122: =Qty!F72 -> 0 | G122: =Qty!G72 -> 0 | I122: =I200+I278+I356 -> 0 | J122: 0 | K122: 0 | L122: 0 | M122: 0 | N122: 0 | O122: 0 | P122: 0 | Q122: 0 | R122: 0 | S122: 0 | T122: 0 | U122: 0 | V122: 0 | W122: 0 | X122: 0 | Y122: 0 | Z122: 0 | AA122: 0 | AB122: 0 | AD122: =IF(SUMPRODUCT(--_xlfn.ISFORMULA(C122:AB122))=25,"OK","CHECK") -> OK
C123: =Qty!C73 -> 0 | D123: =Qty!D73 -> 0 | E123: =Qty!E73 -> 0 | F123: =Qty!F73 -> 0 | G123: =Qty!G73 -> 0 | I123: =I201+I279+I357 -> 0 | J123: 0 | K123: 0 | L123: 0 | M123: 0 | N123: 0 | O123: 0 | P123: 0 | Q123: 0 | R123: 0 | S123: 0 | T123: 0 | U123: 0 | V123: 0 | W123: 0 | X123: 0 | Y123: 0 | Z123: 0 | AA123: 0 | AB123: 0 | AD123: =IF(SUMPRODUCT(--_xlfn.ISFORMULA(C123:AB123))=25,"OK","CHECK") -> OK
C124: =Qty!C74 -> 0 | D124: =Qty!D74 -> 0 | E124: =Qty!E74 -> 0 | F124: =Qty!F74 -> 0 | G124: =Qty!G74 -> 0 | I124: =I202+I280+I358 -> 0 | J124: 0 | K124: 0 | L124: 0 | M124: 0 | N124: 0 | O124: 0 | P124: 0 | Q124: 0 | R124: 0 | S124: 0 | T124: 0 | U124: 0 | V124: 0 | W124: 0 | X124: 0 | Y124: 0 | Z124: 0 | AA124: 0 | AB124: 0 | AD124: =IF(SUMPRODUCT(--_xlfn.ISFORMULA(C124:AB124))=25,"OK","CHECK") -> OK
C125: =Qty!C75 -> 0 | D125: =Qty!D75 -> 0 | E125: =Qty!E75 -> 0 | F125: =Qty!F75 -> 0 | G125: =Qty!G75 -> 0 | I125: =I203+I281+I359 -> 0 | J125: 0 | K125: 0 | L125: 0 | M125: 0 | N125: 0 | O125: 0 | P125: 0 | Q125: 0 | R125: 0 | S125: 0 | T125: 0 | U125: 0 | V125: 0 | W125: 0 | X125: 0 | Y125: 0 | Z125: 0 | AA125: 0 | AB125: 0 | AD125: =IF(SUMPRODUCT(--_xlfn.ISFORMULA(C125:AB125))=25,"OK","CHECK") -> OK
... 148 more rows

Sheet Stakeholder report
E3: =DNSP&" "&forecastyear&" pricing" -> United Energy 2024–25 pricing
E4: Stakeholder report
B6: ="The AER provides the below information in relation to "&DNSP&"'s "&forecastyear&" pricing proposal. This information includes:" -> The AER provides the below information in relation to United Energy's 2024–25 pricing proposal. This information includes: | G6: Revenue trends | H6: Consumption trends | I6: Cost movements
B7: This report is intended to compliment the AER's Statement of Reasons, published upon approval of the pricing proposal. More information regarding our decision can be found in the AER's Statement of Reasons.
B8: ="More information underlying that provided below can be found in "&DNSP&"'s "&forecastyear&" pricing model and proposal document." -> More information underlying that provided below can be found in United Energy's 2024–25 pricing model and proposal document.
B9: If you require assistance navigating the data and mechanisms below, navigating underlying data, or have any feedback, please reach out to AERPricing@aer.gov.au
B11: Revenue trends
B12: ="The below table provides allowed revenues for "&DNSP&" for "&forecastyear&" as well as historical years. This includes revenues allowed to pass-through any transmission and jurisdictional scheme costs." -> The below table provides allowed revenues for United Energy for 2024–25 as well as historical years. This includes revenues allowed to pass-through any transmission and jurisdictional scheme costs.
B13: ="Allowed revenues are as per the AER's final "&LEFT(RCP_firstyear,5)&RIGHT(RCP_lastyear,2)&" determination, adjusted for actual CPI and annual debt updates, and may also include approved cost pass-throughs." -> Allowed revenues are as per the AER's final 2021–26 determination, adjusted for actual CPI and annual debt updates, and may also include approved cost pass-throughs.
B14: Other adjustments are listed, including incentive schemes, cost pass-throughs, true-ups for under/over-recovered revenues. Cost pass-throughs may be applied through the allowed revenue (X-factor), or through adjustments (C-factor).
B15: Please note, metering revenue is excluded from network revenue below as metering operates as a price cap for some networks.
D17: =tminus3_year -> 2021–22 | E17: =previousyear -> 2022–23 | F17: =currentyear -> 2023–24 | G17: =forecastyear -> 2024–25 | H17: =forecastyear& " movement" -> 2024–25 movement | I17: ="3-year trend to "&forecastyear -> 3-year trend to 2024–25
B18: Allowed distribution revenue ($m) | D18: ='Stakeholder report'!D22-'Stakeholder report'!D19-'Stakeholder report'!D20-INDEX(Financial!$J$35:$Q$35,1,MATCH('Stakeholder report'!D17,Financial!$J$14:$Q$14,0)) -> 412.7851242 | E18: ='Stakeholder report'!E22-'Stakeholder report'!E19-'Stakeholder report'!E20-INDEX(Financial!$J$35:$Q$35,1,MATCH('Stakeholder report'!E17,Financial!$J$14:$Q$14,0)) -> 421.4752848 | F18: ='Stakeholder report'!F22-'Stakeholder report'!F19-'Stakeholder report'!F20-INDEX(Financial!$J$35:$Q$35,1,MATCH('Stakeholder report'!F17,Financial!$J$14:$Q$14,0)) -> 450.9100267 | G18: ='Stakeholder report'!G22-'Stakeholder report'!G19-'Stakeholder report'!G20-INDEX(Financial!$J$35:$Q$35,1,MATCH('Stakeholder report'!G17,Financial!$J$14:$Q$14,0)) -> 470.2013239 | H18: =IFERROR(G18/F18-1,0) -> 0.04278302994 | I18: =IFERROR(SLOPE(D18:G18,'Qty forecasts'!$H$6:$K$6)/D18,0) -> 0.04885915918
B19: Incentive schemes ($m) | D19: =INDEX(Financial!$J$24:$Q$24,1,MATCH('Stakeholder report'!D17,Financial!$J$14:$Q$14,0)) -> 0.2289 | E19: =INDEX(Financial!$J$24:$Q$24,1,MATCH('Stakeholder report'!E17,Financial!$J$14:$Q$14,0)) -> 22.60109545 | F19: =INDEX(Financial!$J$24:$Q$24,1,MATCH('Stakeholder report'!F17,Financial!$J$14:$Q$14,0)) -> 32.18057302 | G19: =INDEX(Financial!$J$24:$Q$24,1,MATCH('Stakeholder report'!G17,Financial!$J$14:$Q$14,0)) -> 7.039673058 | H19: =IFERROR(G19/F19-1,0) -> -0.7812446331 | I19: =IFERROR(SLOPE(D19:G19,'Qty forecasts'!$H$6:$K$6)/D19,0) -> 13.11131356
B20: Cost pass-throughs ($m) | D20: =INDEX(Financial!$J$29:$Q$29,1,MATCH('Stakeholder report'!D17,Financial!$J$14:$Q$14,0)) -> -0.5127287194 | E20: =INDEX(Financial!$J$29:$Q$29,1,MATCH('Stakeholder report'!E17,Financial!$J$14:$Q$14,0)) -> 0 | F20: =INDEX(Financial!$J$29:$Q$29,1,MATCH('Stakeholder report'!F17,Financial!$J$14:$Q$14,0)) -> 0 | G20: =INDEX(Financial!$J$29:$Q$29,1,MATCH('Stakeholder report'!G17,Financial!$J$14:$Q$14,0)) -> 0 | H20: 0 | I20: =IFERROR(SLOPE(D20:G20,'Qty forecasts'!$H$6:$K$6)/D20,0) -> -0.3
B21: Unders/overs true-up ($m) | D21: =INDEX(Accounts!$J$18:$Q$18,1,MATCH('Stakeholder report'!D17,Accounts!$J$11:$Q$11,0)) -> -2.592006025 | E21: =INDEX(Accounts!$J$18:$Q$18,1,MATCH('Stakeholder report'!E17,Accounts!$J$11:$Q$11,0)) -> 7.462949124 | F21: =INDEX(Accounts!$J$18:$Q$18,1,MATCH('Stakeholder report'!F17,Accounts!$J$11:$Q$11,0)) -> -5.905411893 | G21: =INDEX(Accounts!$J$18:$Q$18,1,MATCH('Stakeholder report'!G17,Accounts!$J$11:$Q$11,0)) -> 10.24254873 | H21: -2.734434264 | I21: =IFERROR(SLOPE(D21:G21,'Qty forecasts'!$H$6:$K$6)/D21,0) -> -0.9697239518
B22: Total allowed distribution revenue ($m)¹ | D22: =INDEX(Accounts!$J$17:$Q$17,1,MATCH('Stakeholder report'!D17,Accounts!$J$11:$Q$11,0))+INDEX(Accounts!$J$18:$Q$18,1,MATCH('Stakeholder report'!D17,Accounts!$J$11:$Q$11,0)) -> 410.4092139 | E22: =INDEX(Accounts!$J$17:$Q$17,1,MATCH('Stakeholder report'!E17,Accounts!$J$11:$Q$11,0))+INDEX(Accounts!$J$18:$Q$18,1,MATCH('Stakeholder report'!E17,Accounts!$J$11:$Q$11,0)) -> 452.081428 | F22: =INDEX(Accounts!$J$17:$Q$17,1,MATCH('Stakeholder report'!F17,Accounts!$J$11:$Q$11,0))+INDEX(Accounts!$J$18:$Q$18,1,MATCH('Stakeholder report'!F17,Accounts!$J$11:$Q$11,0)) -> 478.0173277 | G22: =INDEX(Accounts!$J$17:$Q$17,1,MATCH('Stakeholder report'!G17,Accounts!$J$11:$Q$11,0))+INDEX(Accounts!$J$18:$Q$18,1,MATCH('Stakeholder report'!G17,Accounts!$J$11:$Q$11,0)) -> 488.2930916 | H22: 0.02149663471 | I22: =IFERROR(SLOPE(D22:G22,'Qty forecasts'!$H$6:$K$6)/D22,0) -> 0.06325090272
B24: Transmission (DPPC) costs ($m) | D24: =INDEX(Accounts!$J$35:$Q$35,1,MATCH('Stakeholder report'!D17,Accounts!$J$11:$Q$11,0)) -> 134.6866011 | E24: =INDEX(Accounts!$J$35:$Q$35,1,MATCH('Stakeholder report'!E17,Accounts!$J$11:$Q$11,0)) -> 133.7400714 | F24: =INDEX(Accounts!$J$35:$Q$35,1,MATCH('Stakeholder report'!F17,Accounts!$J$11:$Q$11,0)) -> 139.2185421 | G24: =INDEX(Accounts!$J$35:$Q$35,1,MATCH('Stakeholder report'!G17,Accounts!$J$11:$Q$11,0)) -> 161.0851187 | H24: 0.1570665535 | I24: =IFERROR(SLOPE(D24:G24,'Qty forecasts'!$H$6:$K$6)/D24,0) -> 0.06286744404
B25: Unders/overs true-up ($m) | D25: =INDEX(Accounts!$J$36:$Q$36,1,MATCH('Stakeholder report'!D17,Accounts!$J$11:$Q$11,0)) -> 17.41267181 | E25: =INDEX(Accounts!$J$36:$Q$36,1,MATCH('Stakeholder report'!E17,Accounts!$J$11:$Q$11,0)) -> 3.478824774 | F25: =INDEX(Accounts!$J$36:$Q$36,1,MATCH('Stakeholder report'!F17,Accounts!$J$11:$Q$11,0)) -> -4.044718548 | G25: =INDEX(Accounts!$J$36:$Q$36,1,MATCH('Stakeholder report'!G17,Accounts!$J$11:$Q$11,0)) -> 5.748845673 | H25: -2.421321559 | I25: =IFERROR(SLOPE(D25:G25,'Qty forecasts'!$H$6:$K$6)/D25,0) -> -0.2441613912
B26: Total allowed transmission (DPPC) revenue ($m) | D26: =D24+D25 -> 152.0992729 | E26: =E24+E25 -> 137.2188962 | F26: =F24+F25 -> 135.1738236 | G26: =G24+G25 -> 166.8339644 | H26: 0.2342179868 | I26: =IFERROR(SLOPE(D26:G26,'Qty forecasts'!$H$6:$K$6)/D26,0) -> 0.02771808242
B28: Jurisdictional scheme amounts ($m) | D28: =INDEX(Accounts!$J$55:$Q$55,1,MATCH('Stakeholder report'!D17,Accounts!$J$11:$Q$11,0)) -> 15.25162944 | E28: =INDEX(Accounts!$J$55:$Q$55,1,MATCH('Stakeholder report'!E17,Accounts!$J$11:$Q$11,0)) -> 15.53513295 | F28: =INDEX(Accounts!$J$55:$Q$55,1,MATCH('Stakeholder report'!F17,Accounts!$J$11:$Q$11,0)) -> 16.85267576 | G28: =INDEX(Accounts!$J$55:$Q$55,1,MATCH('Stakeholder report'!G17,Accounts!$J$11:$Q$11,0)) -> 7.895008257 | H28: -0.5315279087 | I28: =IFERROR(SLOPE(D28:G28,'Qty forecasts'!$H$6:$K$6)/D28,0) -> -0.1360662532
B29: Unders/overs true-up ($m) | D29: =INDEX(Accounts!$J$56:$Q$56,1,MATCH('Stakeholder report'!D17,Accounts!$J$11:$Q$11,0)) -> -3.565740017 | E29: =INDEX(Accounts!$J$56:$Q$56,1,MATCH('Stakeholder report'!E17,Accounts!$J$11:$Q$11,0)) -> -1.423664258 | F29: =INDEX(Accounts!$J$56:$Q$56,1,MATCH('Stakeholder report'!F17,Accounts!$J$11:$Q$11,0)) -> -0.5324297829 | G29: =INDEX(Accounts!$J$56:$Q$56,1,MATCH('Stakeholder report'!G17,Accounts!$J$11:$Q$11,0)) -> 0.372261274 | H29: -1.6991744 | I29: =IFERROR(SLOPE(D29:G29,'Qty forecasts'!$H$6:$K$6)/D29,0) -> -0.3563142093
B30: Total allowed jurisdictional scheme revenue ($m) | D30: =D28+D29 -> 11.68588942 | E30: =E28+E29 -> 14.11146869 | F30: =F28+F29 -> 16.32024598 | G30: =G28+G29 -> 8.267269531 | H30: -0.4934347471 | I30: =IFERROR(SLOPE(D30:G30,'Qty forecasts'!$H$6:$K$6)/D30,0) -> -0.0688615312
B32: Total allowed network revenue ($m) | D32: =D22+D26+D30 -> 574.1943762 | E32: =E22+E26+E30 -> 603.4117929 | F32: =F22+F26+F30 -> 629.5113972 | G32: =G22+G26+G30 -> 663.3943255 | H32: 0.05382416966 | I32: =IFERROR(SLOPE(D32:G32,'Qty forecasts'!$H$6:$K$6)/D32,0) -> 0.05114983083
B33: 1 - Total allowed distribution revenue may not equal the sum of the proceeding rows as other minor adjustments may exist.
B36: Consumption trends
B37: ="The below table provides energy consumption trends for "&DNSP&". Some datasets are only now available due to the use of the standardised pricing models or new data requirements, and therefore historical data is not provided here." -> The below table provides energy consumption trends for United Energy. Some datasets are only now available due to the use of the standardised pricing models or new data requirements, and therefore historical data is not provided here.
B38: Charts are provided below to visualise some of these data trends.
D40: =tminus6_year -> 2019 | E40: =tminus5_year -> 2020 | F40: =tminus4_year -> HY21 | G40: =tminus3_year -> 2021–22 | H40: =previousyear -> 2022–23 | I40: =currentyear -> 2023–24 | J40: =forecastyear -> 2024–25 | K40: =H17 -> 2024–25 movement | L40: 6-year trend to 2023–24
B41: Residential consumption (GWh) | D41: ='Qty forecasts'!E9 -> 2841 | E41: ='Qty forecasts'!F9 -> 2991 | F41: ='Qty forecasts'!G9 -> 2839.568051 | G41: ='Qty forecasts'!H9 -> 2941 | H41: ='Qty forecasts'!I9 -> 2899 | I41: ='Qty forecasts'!J9 -> 2806.753385 | J41: ='Qty forecasts'!K9 -> 2850.337141 | K41: =IFERROR(J41/I41-1,0) -> 0.01552817445 | L41: =IFERROR(SLOPE(D41:J41,'Qty forecasts'!$E$6:$K$6)/D41,0) -> -0.003533085158
B42: Small business consumption (GWh) | D42: ='Qty forecasts'!E10 -> 676 | E42: ='Qty forecasts'!F10 -> 598 | F42: ='Qty forecasts'!G10 -> 1365.893726 | G42: ='Qty forecasts'!H10 -> 1366.141051 | H42: ='Qty forecasts'!I10 -> 1382.83592 | I42: ='Qty forecasts'!J10 -> 1361.389447 | J42: ='Qty forecasts'!K10 -> 1366.217347 | K42: =IFERROR(J42/I42-1,0) -> 0.003546303179 | L42: =IFERROR(SLOPE(D42:J42,'Qty forecasts'!$E$6:$K$6)/D42,0) -> 0.190953779
B43: Other consumption (GWh) | D43: ='Qty forecasts'!E14 -> 4176 | E43: ='Qty forecasts'!F14 -> 3913 | F43: ='Qty forecasts'!G14 -> 3265.357468 | G43: ='Qty forecasts'!H14 -> 3284.858949 | H43: ='Qty forecasts'!I14 -> 3326.16408 | I43: ='Qty forecasts'!J14 -> 3299.607769 | J43: ='Qty forecasts'!K14 -> 3318.090033 | K43: 0.005601351818 | L43: =IFERROR(SLOPE(D43:J43,'Qty forecasts'!$E$6:$K$6)/D43,0) -> -0.03198299594
B44: Total Consumption (GWh) | D44: ='Qty forecasts'!E21 -> 7693 | E44: ='Qty forecasts'!F21 -> 7502 | F44: ='Qty forecasts'!G21 -> 7470.819245 | G44: ='Qty forecasts'!H21 -> 7592 | H44: ='Qty forecasts'!I21 -> 7608 | I44: ='Qty forecasts'!J21 -> 7467.750601 | J44: ='Qty forecasts'!K21 -> 7534.644521 | K44: =IFERROR(J44/I44-1,0) -> 0.008957706742 | L44: =IFERROR(SLOPE(D44:J44,'Qty forecasts'!$E$6:$K$6)/D44,0) -> -0.001886615287
K45: 0 | L45: =IFERROR(SLOPE(D45:J45,'Qty forecasts'!$E$6:$K$6)/D45,0) -> 0
B46: Residential customer numbers | D46: ='Qty forecasts'!E25 -> 625621 | E46: ='Qty forecasts'!F25 -> 631042 | F46: ='Qty forecasts'!G25 -> 634506.5 | G46: ='Qty forecasts'!H25 -> 636954 | H46: ='Qty forecasts'!I25 -> 640639 | I46: ='Qty forecasts'!J25 -> 638904.4995 | J46: ='Qty forecasts'!K25 -> 641981.7269 | K46: 0.004816412238 | L46: =IFERROR(SLOPE(D46:J46,'Qty forecasts'!$E$6:$K$6)/D46,0) -> 0.004049672232
B47: Small business customer numbers | D47: ='Qty forecasts'!E26 -> 50545 | E47: ='Qty forecasts'!F26 -> 50961 | F47: ='Qty forecasts'!G26 -> 50330.44366 | G47: ='Qty forecasts'!H26 -> 68097 | H47: ='Qty forecasts'!I26 -> 67486.15348 | I47: ='Qty forecasts'!J26 -> 67901.25532 | J47: ='Qty forecasts'!K26 -> 67995.81358 | K47: 0.001392584764 | L47: =IFERROR(SLOPE(D47:J47,'Qty forecasts'!$E$6:$K$6)/D47,0) -> 0.07305276854
B48: Other customer numbers | D48: ='Qty forecasts'!E30 -> 21428 | E48: ='Qty forecasts'!F30 -> 21116 | F48: ='Qty forecasts'!G30 -> 22220.55634 | G48: ='Qty forecasts'!H30 -> 5245 | H48: ='Qty forecasts'!I30 -> 7526.846516 | I48: ='Qty forecasts'!J30 -> 3135.841096 | J48: ='Qty forecasts'!K30 -> 3126 | K48: -0.003138263576 | L48: =IFERROR(SLOPE(D48:J48,'Qty forecasts'!$E$6:$K$6)/D48,0) -> -0.1759380711
B49: Total customer numbers | D49: ='Qty forecasts'!E32 -> 697594 | E49: ='Qty forecasts'!F32 -> 703119 | F49: ='Qty forecasts'!G32 -> 707057.5 | G49: ='Qty forecasts'!H32 -> 710296 | H49: ='Qty forecasts'!I32 -> 715652 | I49: ='Qty forecasts'!J32 -> 709941.5959 | J49: ='Qty forecasts'!K32 -> 713103.5405 | K49: 0.004453809477 | L49: =IFERROR(SLOPE(D49:J49,'Qty forecasts'!$E$6:$K$6)/D49,0) -> 0.003520688524
K50: 0 | L50: =IFERROR(SLOPE(D50:J50,'Qty forecasts'!$E$6:$K$6)/D50,0) -> 0
B51: Average residential consumption (kWh) | D51: =IFERROR(D41*1000000/D46,0) -> 4541.087975 | E51: =IFERROR(E41*1000000/E46,0) -> 4739.779603 | F51: 4475.238711 | G51: 4617.287905 | H51: 4525.169401 | I51: 4393.071871 | J51: 4439.90385 | K51: 0.01066041725 | L51: =IFERROR(SLOPE(D51:J51,'Qty forecasts'!$E$6:$K$6)/D51,0) -> -0.007448161205
B52: Average small business consumption (kWh) | D52: =IFERROR(D42*1000000/D47,0) -> 13374.22099 | E52: 11734.46361 | F52: 27138.51949 | G52: 20061.69216 | H52: 20490.6614 | I52: 20049.54755 | J52: 20092.66858 | K52: 0.002150723351 | L52: =IFERROR(SLOPE(D52:J52,'Qty forecasts'!$E$6:$K$6)/D52,0) -> 0.08047905998
B53: Average other consumption (kWh) | D53: 194885.1969 | E53: 185309.7177 | F53: 146952.1023 | G53: 626283.8797 | H53: 441906.7232 | I53: 1052224.162 | J53: 1061449.147 | K53: 0.008767128955 | L53: =IFERROR(SLOPE(D53:J53,'Qty forecasts'!$E$6:$K$6)/D53,0) -> 0.8482054769
B54: Average total consumption (kWh) | D54: 11027.90448 | E54: 10669.60216 | F54: 10566.07029 | G54: 10688.5017 | H54: 10630.86528 | I54: 10518.82386 | J54: 10565.9895 | K54: 0.00448392671 | L54: =IFERROR(SLOPE(D54:J54,'Qty forecasts'!$E$6:$K$6)/D54,0) -> -0.005254548819
B79: Cost movements
B80: The second table below provides cost movement analysis for small customer consumption tariffs. Tariffs with demand/capacity components are not included in this mechanism.
B81: Tariffs can be selected from the drop-down menus in the first table below. Consumption profiles can also be adjusted in this table to override calculated average consumption (including exports and TOU where applicable).
B82: Where no overrides are entered, consumption will be calculated on averages of the most recent actual data for that tariff. Demand and capacity will be calculated in this way as no overrides are provided.
B83: Waterfall charts are also provided to visualise these cost movements and how revenue adjustments might impact at the tariff level.
B85: Please note, an assumption is made in this analysis that revenue adjustments are apportioned equally across all tariffs.
B86: Any residual movements are grouped with the volume updates and tariff path components. These residuals would also include the variance of application from our assumption.
B88: Tariff selection | D88: Consumption overrides | E88: Exports | F88: TOU - Peak % | G88: TOU - Shoulder % | H88: TOU - Off peak %
B89: Residential Single Rate
B90: Residential ToU
B91: Small Business single rate
B92: Small Business ToU
D94: Customer type | E94: Ratio of customer type | F94: Consumption (kWh) | G94: =previousyear -> 2022–23 | H94: =currentyear -> 2023–24 | I94: =forecastyear -> 2024–25 | J94: ="$ change in "&forecastyear -> $ change in 2024–25 | K94: ="% change in "&forecastyear -> % change in 2024–25
B95: =B89 -> Residential Single Rate | D95: =INDEX('Stakeholder report data'!I$207:I$272,MATCH('Stakeholder report'!$B95,'Stakeholder report data'!$C$207:$C$272,0)) -> Residential | E95: =INDEX('Stakeholder report data'!J$207:J$272,MATCH('Stakeholder report'!$B95,'Stakeholder report data'!$C$207:$C$272,0)) -> 0.8275558675 | F95: =INDEX('Stakeholder report data'!K$207:K$272,MATCH('Stakeholder report'!$B95,'Stakeholder report data'!$C$207:$C$272,0)) -> 4285.055531 | G95: =INDEX('Stakeholder report data'!L$207:L$272,MATCH('Stakeholder report'!$B95,'Stakeholder report data'!$C$207:$C$272,0)) -> 483.3581091 | H95: =INDEX('Stakeholder report data'!M$207:M$272,MATCH('Stakeholder report'!$B95,'Stakeholder report data'!$C$207:$C$272,0)) -> 501.8462424 | I95: =INDEX('Stakeholder report data'!N$207:N$272,MATCH('Stakeholder report'!$B95,'Stakeholder report data'!$C$207:$C$272,0)) -> 539.5406366 | J95: =INDEX('Stakeholder report data'!O$207:O$272,MATCH('Stakeholder report'!$B95,'Stakeholder report data'!$C$207:$C$272,0)) -> 37.69439427 | K95: =INDEX('Stakeholder report data'!P$207:P$272,MATCH('Stakeholder report'!$B95,'Stakeholder report data'!$C$207:$C$272,0)) -> 0.0751114407
B96: =B90 -> Residential ToU | D96: =INDEX('Stakeholder report data'!I$207:I$272,MATCH('Stakeholder report'!$B96,'Stakeholder report data'!$C$207:$C$272,0)) -> Residential | E96: =INDEX('Stakeholder report data'!J$207:J$272,MATCH('Stakeholder report'!$B96,'Stakeholder report data'!$C$207:$C$272,0)) -> 0.1715718615 | F96: =INDEX('Stakeholder report data'!K$207:K$272,MATCH('Stakeholder report'!$B96,'Stakeholder report data'!$C$207:$C$272,0)) -> 4428.697713 | G96: =INDEX('Stakeholder report data'!L$207:L$272,MATCH('Stakeholder report'!$B96,'Stakeholder report data'!$C$207:$C$272,0)) -> 482.3713922 | H96: =INDEX('Stakeholder report data'!M$207:M$272,MATCH('Stakeholder report'!$B96,'Stakeholder report data'!$C$207:$C$272,0)) -> 500.488761 | I96: =INDEX('Stakeholder report data'!N$207:N$272,MATCH('Stakeholder report'!$B96,'Stakeholder report data'!$C$207:$C$272,0)) -> 523.0668263 | J96: =INDEX('Stakeholder report data'!O$207:O$272,MATCH('Stakeholder report'!$B96,'Stakeholder report data'!$C$207:$C$272,0)) -> 22.57806531 | K96: =INDEX('Stakeholder report data'!P$207:P$272,MATCH('Stakeholder report'!$B96,'Stakeholder report data'!$C$207:$C$272,0)) -> 0.04511203261
B97: =B91 -> Small Business single rate | D97: =INDEX('Stakeholder report data'!I$207:I$272,MATCH('Stakeholder report'!$B97,'Stakeholder report data'!$C$207:$C$272,0)) -> Small business | E97: =INDEX('Stakeholder report data'!J$207:J$272,MATCH('Stakeholder report'!$B97,'Stakeholder report data'!$C$207:$C$272,0)) -> 0.4380530983 | F97: =INDEX('Stakeholder report data'!K$207:K$272,MATCH('Stakeholder report'!$B97,'Stakeholder report data'!$C$207:$C$272,0)) -> 8432.897276 | G97: =INDEX('Stakeholder report data'!L$207:L$272,MATCH('Stakeholder report'!$B97,'Stakeholder report data'!$C$207:$C$272,0)) -> 948.8998111 | H97: =INDEX('Stakeholder report data'!M$207:M$272,MATCH('Stakeholder report'!$B97,'Stakeholder report data'!$C$207:$C$272,0)) -> 983.5965543 | I97: =INDEX('Stakeholder report data'!N$207:N$272,MATCH('Stakeholder report'!$B97,'Stakeholder report data'!$C$207:$C$272,0)) -> 1077.06413 | J97: =INDEX('Stakeholder report data'!O$207:O$272,MATCH('Stakeholder report'!$B97,'Stakeholder report data'!$C$207:$C$272,0)) -> 93.46757549 | K97: =INDEX('Stakeholder report data'!P$207:P$272,MATCH('Stakeholder report'!$B97,'Stakeholder report data'!$C$207:$C$272,0)) -> 0.09502633482
B98: =B92 -> Small Business ToU | D98: =INDEX('Stakeholder report data'!I$207:I$272,MATCH('Stakeholder report'!$B98,'Stakeholder report data'!$C$207:$C$272,0)) -> Small business | E98: =INDEX('Stakeholder report data'!J$207:J$272,MATCH('Stakeholder report'!$B98,'Stakeholder report data'!$C$207:$C$272,0)) -> 0.3205991833 | F98: =INDEX('Stakeholder report data'!K$207:K$272,MATCH('Stakeholder report'!$B98,'Stakeholder report data'!$C$207:$C$272,0)) -> 21535.21126 | G98: =INDEX('Stakeholder report data'!L$207:L$272,MATCH('Stakeholder report'!$B98,'Stakeholder report data'!$C$207:$C$272,0)) -> 2087.006549 | H98: =INDEX('Stakeholder report data'!M$207:M$272,MATCH('Stakeholder report'!$B98,'Stakeholder report data'!$C$207:$C$272,0)) -> 2155.914015 | I98: =INDEX('Stakeholder report data'!N$207:N$272,MATCH('Stakeholder report'!$B98,'Stakeholder report data'!$C$207:$C$272,0)) -> 2299.523476 | J98: =INDEX('Stakeholder report data'!O$207:O$272,MATCH('Stakeholder report'!$B98,'Stakeholder report data'!$C$207:$C$272,0)) -> 143.6094609 | K98: =INDEX('Stakeholder report data'!P$207:P$272,MATCH('Stakeholder report'!$B98,'Stakeholder report data'!$C$207:$C$272,0)) -> 0.06661186854

Sheet Proposal report
E3: =DNSP&" "&forecastyear&" pricing" -> United Energy 2024–25 pricing
E4: Pricing proposal report
B6: ="The below information is provided in relation to "&DNSP&"'s "&forecastyear&" pricing proposal. This information includes:" -> The below information is provided in relation to United Energy's 2024–25 pricing proposal. This information includes: | F6: Revenues | G6: Unders/overs accounts | H6: Side constraints | I6: Tariff trials | J6: Standalone and avoidable costs
B7: ="This report is intended to compliment "&DNSP&"'s "&forecastyear&" pricing proposal by highlighting key data from this model for the purposes of demonstrating compliance with the National Electricity Rules and other requirements." -> This report is intended to compliment United Energy's 2024–25 pricing proposal by highlighting key data from this model for the purposes of demonstrating compliance with the National Electricity Rules and other requirements.
B8: ="More information underlying that provided below can be found in "&DNSP&"'s "&forecastyear&" pricing model and proposal document." -> More information underlying that provided below can be found in United Energy's 2024–25 pricing model and proposal document.
B10: Revenues
B11: ="The below table provides weighted average revenues for "&DNSP&" for "&forecastyear&" and "&currentyear&". This information is provided at the tariff class level." -> The below table provides weighted average revenues for United Energy for 2024–25 and 2023–24. This information is provided at the tariff class level.
B12: ="This table supports the requirement for "&DNSP&" to set out, for each tariff class related to standard control services, the expected weighted average revenue for the relevant regulatory year and also for the current regulatory year." -> This table supports the requirement for United Energy to set out, for each tariff class related to standard control services, the expected weighted average revenue for the relevant regulatory year and also for the current regulatory year.
B13: This requirement is set out in the NER at cl.6.18.2(b)(4).
D15: =currentyear&" ($m)" -> 2023–24 ($m) | E15: =forecastyear&" ($m)" -> 2024–25 ($m) | F15: % change | G15: =currentyear&" with "&forecastyear&" quantities ($m)" -> 2023–24 with 2024–25 quantities ($m) | H15: =forecastyear&" ($m)" -> 2024–25 ($m) | I15: weighted average % change
B16: =Tables!C9 -> Residential | D16: =Tables!D9 -> 242.7152851 | E16: =Tables!E9 -> 256.8744062 | F16: =Tables!F9 -> 0.05833633861 | G16: =Tables!G9 -> 245.989484 | H16: =Tables!H9 -> 256.8744062 | I16: =Tables!I9 -> 0.04424954273
B17: =Tables!C10 -> Small and medium business | D17: =Tables!D10 -> 108.3482094 | E17: =Tables!E10 -> 113.4496484 | F17: =Tables!F10 -> 0.04708374005 | G17: =Tables!G10 -> 108.6223214 | H17: =Tables!H10 -> 113.4496484 | I17: =Tables!I10 -> 0.04444139042
B18: =Tables!C11 -> Large low voltage | D18: =Tables!D11 -> 100.450437 | E18: =Tables!E11 -> 100.386638 | F18: =Tables!F11 -> -0.0006351288869 | G18: =Tables!G11 -> 100.0964793 | H18: =Tables!H11 -> 100.386638 | I18: =Tables!I11 -> 0.002898790114
B19: =Tables!C12 -> High voltage | D19: =Tables!D12 -> 17.13782689 | E19: =Tables!E12 -> 17.36518663 | F19: =Tables!F12 -> 0.01326654464 | G19: =Tables!G12 -> 17.29470971 | H19: =Tables!H12 -> 17.36518663 | I19: =Tables!I12 -> 0.004075057011
B20: =Tables!C13 -> Sub-transmission | D20: =Tables!D13 -> 0.09825861807 | E20: =Tables!E13 -> 0.09639811929 | F20: =Tables!F13 -> -0.01893471349 | G20: =Tables!G13 -> 0.09606106293 | H20: =Tables!H13 -> 0.09639811929 | I20: =Tables!I13 -> 0.00350877193
B21: =Tables!C14 -> 0 | D21: =Tables!D14 -> 0 | E21: =Tables!E14 -> 0 | F21: =Tables!F14 -> 0 | G21: =Tables!G14 -> 0 | H21: =Tables!H14 -> 0 | I21: =Tables!I14 -> 0
B22: =Tables!C15 -> 0 | D22: =Tables!D15 -> 0 | E22: =Tables!E15 -> 0 | F22: =Tables!F15 -> 0 | G22: =Tables!G15 -> 0 | H22: =Tables!H15 -> 0 | I22: =Tables!I15 -> 0
B23: =Tables!C16 -> 0 | D23: =Tables!D16 -> 0 | E23: =Tables!E16 -> 0 | F23: =Tables!F16 -> 0 | G23: =Tables!G16 -> 0 | H23: =Tables!H16 -> 0 | I23: =Tables!I16 -> 0
B24: =Tables!C17 -> 0 | D24: =Tables!D17 -> 0 | E24: =Tables!E17 -> 0 | F24: =Tables!F17 -> 0 | G24: =Tables!G17 -> 0 | H24: =Tables!H17 -> 0 | I24: =Tables!I17 -> 0
B25: =Tables!C18 -> 0 | D25: =Tables!D18 -> 0 | E25: =Tables!E18 -> 0 | F25: =Tables!F18 -> 0 | G25: =Tables!G18 -> 0 | H25: =Tables!H18 -> 0 | I25: =Tables!I18 -> 0
B26: =Tables!C19 -> 0 | D26: =Tables!D19 -> 0 | E26: =Tables!E19 -> 0 | F26: =Tables!F19 -> 0 | G26: =Tables!G19 -> 0 | H26: =Tables!H19 -> 0 | I26: =Tables!I19 -> 0
B27: Total | D27: =Tables!D20 -> 468.750017 | E27: =Tables!E20 -> 488.1722773 | F27: =Tables!F20 -> 0.04143415371 | G27: =Tables!G20 -> 472.0990554 | H27: =Tables!H20 -> 488.1722773 | I27: =Tables!I20 -> 0.03404629105
B30: The below tables provide the build-up of allowable revenue for each component of network revenue - distribution, designated pricing proposal charges, and jurisdictional schemes.
B31: ="These tables support the NER requirements for "&DNSP&" to set out how desingated pricing proposal charges and jurisdictional sheme amounts are to be passed on to consumers, as per NER cll. 6.18.2(b)(6) and (6A)." -> These tables support the NER requirements for United Energy to set out how desingated pricing proposal charges and jurisdictional sheme amounts are to be passed on to consumers, as per NER cll. 6.18.2(b)(6) and (6A).
B32: ="These tables also support the NER requirements for "&DNSP&" to demonstrate compliance with the control mechanism formulae set out in the applicable distribution determination, as per NER cl. 6.18.2(b)(7)." -> These tables also support the NER requirements for United Energy to demonstrate compliance with the control mechanism formulae set out in the applicable distribution determination, as per NER cl. 6.18.2(b)(7).
B34: Distribution | D34: $m | E34: $m | H34: Designated pricing proposal charges | J34: $m | K34: $m
B35: =Tables!C26 -> Adjusted annual smoothed revenue for 2023–24 (AARt-1) | E35: =Tables!E26 -> 450.9100267 | H35: =Tables!C41 -> TUOS expenditure charges for 2024–25 | J35: =Tables!D41 -> 0
B36: =Tables!C27 -> Inflation (CPI) | D36: =Tables!D27 -> 0.04051987768 | H36: =Tables!C42 -> Avoided TUOS charges for 2024–25 | J36: =Tables!D42 -> 0.1289148137
B37: =Tables!C28 -> X-factor for 2024–25 | D37: =Tables!D28 -> -0.002175020693 | H37: =Tables!C43 -> Cross-boundary expenditure charges for 2024–25 | J37: =Tables!D43 -> 2.004135442
B38: =Tables!C29 -> S factor (STPIS 1.2) | D38: =Tables!D29 -> 0 | H38: =Tables!C44 -> AEMO charges charges for 2024–25 | J38: =Tables!D44 -> 149.7433186
B39: =Tables!C31 -> Adjusted annual smoothed revenue for 2024–25 (AARt) | E39: =Tables!E31 -> 470.2013239 | H39: =Tables!C45 -> Connection fees charges for 2024–25 | J39: =Tables!D45 -> 9.20874982
B40: =Tables!C32 -> I factor (incentive schemes payments applied in 2024–25) | D40: =Tables!D32 -> 7.039673058 | H40: =Tables!C46 -> Total Forecast DPPC | J40: =Tables!I33 -> 0 | K40: =Tables!E46 -> 161.0851187
B41: =Tables!C33 -> C factor (approved cost pass-throughs applied in 2024–25) | D41: =Tables!D33 -> 0 | H41: =Tables!C47 -> Under/over-recovery adjustment applied in 2024–25 | J41: =Tables!D47 -> 5.748845673
B42: =Tables!C34 -> B factor (annual adjustment factors applied in 2024–25) | D42: =Tables!D34 -> 11.05209465 | H42: =Tables!C48 -> Total allowable revenue for 2024–25 | J42: =Tables!I35 -> 0 | K42: =Tables!E48 -> 166.8339644
B43: =Tables!C35 -> Total allowable revenue for 2024–25 (TARt) | E43: =Tables!E35 -> 488.2930916
B46: Metering (Victoria only) | D46: $m | E46: $m | H46: Jurisdictional scheme amounts | J46: $m | K46: $m
B47: =Tables!C76 -> Adjusted annual smoothed revenue for 2023–24 (AARt-1) | E47: =Tables!E76 -> 33.46203102 | H47: =Tables!C57 -> PFiT charges for 2024–25 | J47: =Tables!D57 -> 3.4
B48: =Tables!C77 -> Inflation (CPI) | D48: =Tables!D77 -> 0.04051987768 | H48: =Tables!C58 -> TFiT charges for 2024–25 | J48: =Tables!D58 -> 0
B49: =Tables!C78 -> Metering x-factor for 2024–25 | D49: =Tables!D78 -> -0.01689652948 | H49: =Tables!C59 -> ESV levy charges for 2024–25 | J49: =Tables!D59 -> 4.495008257
B50: =Tables!C79 -> Adjusted annual smoothed revenue for 2024–25 (AARt) | E50: =Tables!E79 -> 35.40621024 | H50: =Tables!C60 ->  | J50: =Tables!D60 -> 0
B51: =Tables!C80 -> Total cost pass-throughs applied in 2024–25 | D51: =Tables!D80 -> 0 | H51: =Tables!C61 -> Total Forecast JSA | J51: =Tables!I47 -> 0 | K51: =Tables!E61 -> 7.895008257
B52: =Tables!C81 -> Under/over-recovery adjustment applied in 2024–25 | D52: =Tables!D81 -> -0.2248026573 | H52: =Tables!C62 -> Under/over-recovery adjustment applied in 2024–25 | J52: =Tables!D62 -> 0.372261274
B53: =Tables!C82 -> Total allowable revenue for 2024–25 (TARMt) | E53: =Tables!E82 -> 35.18140759 | H53: =Tables!C63 -> Total allowable revenue for 2024–25 | J53: =Tables!I49 -> 0 | K53: =Tables!E63 -> 8.267269531
B56: Unders/overs accounts
B57: The below tables provide a summary of the unders/overs statements and accounts for each component of network revenue - distribution, designated pricing proposal charges, and jurisdictional schemes.
B58: ="These tables support the NER requirements for "&DNSP&" to set out how desingated pricing proposal charges and jurisdictional scheme amounts are to be passed on to consumers, as per NER cll. 6.18.2(b)(6) and (6A)." -> These tables support the NER requirements for United Energy to set out how desingated pricing proposal charges and jurisdictional scheme amounts are to be passed on to consumers, as per NER cll. 6.18.2(b)(6) and (6A).
B59: ="These tables also support the NER requirements for "&DNSP&" to demonstrate compliance with the mechanisms set out in the applicable distribution determination, as per NER cl. 6.18.2(b)(7)." -> These tables also support the NER requirements for United Energy to demonstrate compliance with the mechanisms set out in the applicable distribution determination, as per NER cl. 6.18.2(b)(7).
B61: Distribution | D61: =previousyear&" ($m)" -> 2022–23 ($m) | E61: =currentyear&" ($m)" -> 2023–24 ($m) | F61: =forecastyear&" ($m)" -> 2024–25 ($m) | H61: Designated pricing proposal charges | J61: =D61 -> 2022–23 ($m) | K61: =E61 -> 2023–24 ($m) | L61: =F61 -> 2024–25 ($m)
B62: Revenue from charges | D62: =Tables!L26 -> 454.8987002 | E62: =Tables!M26 -> 468.7513719 | F62: =Tables!N26 -> 488.2596043 | H62: =B62 -> Revenue from charges | J62: =Tables!L41 -> 137.183802 | K62: =Tables!M41 -> 130.592625 | L62: =Tables!N41 -> 166.8136322
B63: Deliberate under-recoveries | D63: =Tables!L27 -> 0 | E63: =Tables!M27 -> 0 | F63: =Tables!N27 -> 0 | H63: Cross-boundary revenue | J63: =Tables!L42 -> 0 | K63: =Tables!M42 -> 0 | L63: =Tables!N42 -> 0
B64: Unpaid network charges (deducted from revenue) | D64: =Tables!L28 -> 0.2095349452 | E64: =Tables!M28 -> 0 | F64: =Tables!N28 -> 0 | H64: =B63 -> Deliberate under-recoveries | J64: =Tables!L43 -> 0 | K64: =Tables!M43 -> 0 | L64: =Tables!N43 -> 0
B65: Total revenue | D65: =Tables!L29 -> 454.6891653 | E65: =Tables!M29 -> 468.7513719 | F65: =Tables!N29 -> 488.2596043 | H65: =B64 -> Unpaid network charges (deducted from revenue) | J65: =Tables!L44 -> 0.0394840191 | K65: =Tables!M44 -> 0 | L65: =Tables!N44 -> 0
B66: Total allowable revenue | D66: =Tables!L30 -> 444.6184789 | E66: =Tables!M30 -> 483.9227396 | F66: =Tables!N30 -> 478.0505428 | H66: =B65 -> Total revenue | J66: =Tables!L45 -> 137.1443179 | K66: =Tables!M45 -> 130.592625 | L66: =Tables!N45 -> 166.8136322
B67: Total under/over-recovery of revenue for regulatory year | D67: =D65-D66 -> 10.07068639 | E67: =E65-E66 -> -15.17136768 | F67: =F65-F66 -> 10.20906143 | H67: Total designated pricing proposal charges | J67: =Tables!L46 -> 133.7400714 | K67: =Tables!M46 -> 139.2185421 | L67: =Tables!N46 -> 161.0851187
B68: Balancing adjustment made when year was 't' | D68: =Tables!L31 -> 7.462949124 | E68: =Tables!M31 -> -5.905411893 | F68: =Tables!N31 -> 10.24254873 | H68: =B67 -> Total under/over-recovery of revenue for regulatory year | J68: =J66-J67 -> 3.404246521 | K68: =K66-K67 -> -8.625917155 | L68: =L66-L67 -> 5.728513478
B69: Net under/over-recovery of revenue for regulatory year | D69: =Tables!L32 -> 2.607737263 | E69: =Tables!M32 -> -9.265955784 | F69: =Tables!N32 -> -0.03348730366 | H69: =B68 -> Balancing adjustment made when year was 't' | J69: =Tables!L47 -> 3.478824774 | K69: =Tables!M47 -> -4.044718548 | L69: =Tables!N47 -> 5.748845673
H70: =B69 -> Net under/over-recovery of revenue for regulatory year | J70: =Tables!L48 -> -0.07457825291 | K70: =Tables!M48 -> -4.581198607 | L70: =Tables!N48 -> -0.02033219481
B71: Opening balance | D71: =Tables!L33 -> -4.624143313 | E71: =Tables!M33 -> 5.46734444 | F71: =Tables!N33 -> -9.909938491
B72: Interest on opening balance | D72: =Tables!L34 -> -0.2867233984 | E72: =Tables!M34 -> 0.584616038 | F72: =Tables!N34 -> -0.6763839792 | H72: =B71 -> Opening balance | J72: =Tables!L49 -> -0.3148301827 | K72: =Tables!M49 -> 3.173849258 | L72: =Tables!N49 -> -5.562161187
B73: Under/over-recovery of revenue for regulatory year | D73: =Tables!L35 -> 10.07068639 | E73: =Tables!M35 -> -15.17136768 | F73: =Tables!N35 -> 10.20906143 | H73: =B72 -> Interest on opening balance | J73: =Tables!L50 -> -0.01952127644 | K73: =Tables!M50 -> 0.3393755778 | L73: =Tables!N50 -> -0.3796347192
B74: Interest on under/over-recovery for regulatory year | D74: =Tables!L36 -> 0.3075247646 | E74: =Tables!M36 -> -0.7905312931 | F74: =Tables!N36 -> 0.3426497939 | H74: =B73 -> Under/over-recovery of revenue for regulatory year | J74: =Tables!L51 -> 3.404246521 | K74: =Tables!M51 -> -8.625917155 | L74: =Tables!N51 -> 5.728513478
B75: Closing balance | D75: =Tables!L37 -> 5.46734444 | E75: =Tables!M37 -> -9.909938491 | F75: =Tables!N37 -> -0.03461124809 | H75: =B74 -> Interest on under/over-recovery for regulatory year | J75: =Tables!L52 -> 0.1039541964 | K75: =Tables!M52 -> -0.4494688672 | L75: =Tables!N52 -> 0.1922678178
H76: =B75 -> Closing balance | J76: =Tables!L53 -> 3.173849258 | K76: =Tables!M53 -> -5.562161187 | L76: =Tables!N53 -> -0.02101461037
B79: Jurisdictional scheme amounts | D79: =D61 -> 2022–23 ($m) | E79: =E61 -> 2023–24 ($m) | F79: =F61 -> 2024–25 ($m) | H79: Metering (Victoria only) | J79: =D61 -> 2022–23 ($m) | K79: =E61 -> 2023–24 ($m) | L79: =F61 -> 2024–25 ($m)
B80: =B62 -> Revenue from charges | D80: =Tables!L57 -> 14.5920836 | E80: =Tables!M57 -> 15.2669146 | F80: =Tables!N57 -> 8.248662997 | H80: =B62 -> Revenue from charges | J80: =Tables!L76 -> 30.72900249 | K80: =Tables!M76 -> 33.29151874 | L80: =Tables!N76 -> 35.17756101
B81: =B63 -> Deliberate under-recoveries | D81: =Tables!L58 -> 0 | E81: =Tables!M58 -> 0 | F81: =Tables!N58 -> 0 | H81: =B63 -> Deliberate under-recoveries | J81: =Tables!L77 -> 0 | K81: =Tables!M77 -> 0 | L81: =Tables!N77 -> 0
B82: Unpaid network charges (deducted from revenue) | D82: =Tables!L59 -> 0.00494418 | E82: =Tables!M59 -> 0 | F82: =Tables!N59 -> 0 | H82: Unpaid network charges (deducted from revenue) | J82: =Tables!L78 -> 0.01206191 | K82: =Tables!M78 -> 0 | L82: =Tables!N78 -> 0
B83: Total revenue | D83: =Tables!L60 -> 14.58713942 | E83: =Tables!M60 -> 15.2669146 | F83: =Tables!N60 -> 8.248662997 | H83: Total revenue | J83: =Tables!L79 -> 30.71694058 | K83: =Tables!M79 -> 33.29151874 | L83: =Tables!N79 -> 35.17756101
B84: Total jurisdictional scheme amounts | D84: =Tables!L65 -> 15.53513295 | E84: =Tables!M65 -> 16.85267576 | F84: =Tables!N65 -> 7.895008257 | H84: Total allowable revenue | J84: =Tables!L80 -> 30.67049453 | K84: =Tables!M80 -> 33.46203102 | L84: =Tables!N80 -> 35.40621024
B85: Total under/over-recovery of revenue for regulatory year | D85: =D83-D84 -> -0.94799353 | E85: =E83-E84 -> -1.58576116 | F85: =F83-F84 -> 0.3536547394 | H85: Total under/over-recovery of revenue for regulatory year | J85: =J83-J84 -> 0.04644604776 | K85: =K83-K84 -> -0.1705122844 | L85: =L83-L84 -> -0.2286492345
B86: Balancing adjustment made when year was 't' | D86: =Tables!L66 -> -1.423664258 | E86: =Tables!M66 -> -0.5324297829 | F86: =Tables!N66 -> 0.372261274 | H86: Balancing adjustment made when year was 't' | J86: =Tables!L81 -> -0.1314753713 | K86: =Tables!M81 -> -0.1691867032 | L86: =Tables!N81 -> -0.2248026573
B87: Net under/over-recovery of revenue for regulatory year | D87: =Tables!L67 -> 0.4756707276 | E87: =Tables!M67 -> -1.053331377 | F87: =Tables!N67 -> -0.01860653454 | H87: Net under/over-recovery of revenue for regulatory year | J87: =Tables!L82 -> 0.1779214191 | K87: =Tables!M82 -> -0.00132558116 | L87: =Tables!N82 -> -0.003846577179
B88: 0 | H88: 0 | J88: =Tables!I86 -> 0 | K88: =Tables!J86 -> 0 | L88: =Tables!K86 -> 0.02285693292
B89: Opening balance | D89: =Tables!L68 -> 2.032744553 | E89: =Tables!M68 -> 1.181844319 | F89: =Tables!N68 -> -0.3601726898 | H89: Opening balance | J89: =Tables!L83 -> 0.2925549578 | K89: =Tables!M83 -> 0.3585593959 | L89: =Tables!N83 -> 0.2175025538
B90: Interest on opening balance | D90: =Tables!L69 -> 0.1260418173 | E90: =Tables!M69 -> 0.1263730776 | F90: =Tables!N69 -> -0.02458290103 | H90: Interest on opening balance | J90: =Tables!L84 -> 0.01814008478 | K90: =Tables!M84 -> 0.03834029037 | L90: =Tables!N84 -> 0.0148452226
B91: Under/over-recovery of revenue for regulatory year | D91: =Tables!L70 -> -0.94799353 | E91: =Tables!M70 -> -1.58576116 | F91: =Tables!N70 -> 0.3536547394 | H91: Under/over-recovery of revenue for regulatory year | J91: =Tables!L85 -> 0.04644604776 | K91: =Tables!M85 -> -0.1705122844 | L91: =Tables!N85 -> -0.2286492345
B92: Interest on under/over-recovery for regulatory year | D92: =Tables!L71 -> -0.02894852208 | E92: =Tables!M71 -> -0.0826289262 | F92: =Tables!N71 -> 0.0118698202 | H92: Interest on under/over-recovery for regulatory year | J92: =Tables!L86 -> 0.001418305501 | K92: =Tables!M86 -> -0.00888484806 | L92: =Tables!N86 -> -0.007674222907
B93: Closing balance | D93: =Tables!L72 -> 1.181844319 | E93: =Tables!M72 -> -0.3601726898 | F93: =Tables!N72 -> -0.01923103124 | H93: Closing balance | J93: =Tables!L87 -> 0.3585593959 | K93: =Tables!M87 -> 0.2175025538 | L93: =Tables!N87 -> -0.003975681004
B96: Side constraints
B97: ="The below table provides weighted average revenue movements for "&DNSP&" for "&forecastyear&" and "&currentyear&". This information is provided at the tariff class level." -> The below table provides weighted average revenue movements for United Energy for 2024–25 and 2023–24. This information is provided at the tariff class level.
B98: Also provided is the components of the permissable percentage threshold for which weighted average tariff class revenue movements are constrained by.
B99: ="This table supports the requirement for "&DNSP&" to ensure that the weighted average revenue to be raised from a tariff class in any year must not exceed the corresponding expected revenue for the preceding year by more than the permissable percentage." -> This table supports the requirement for United Energy to ensure that the weighted average revenue to be raised from a tariff class in any year must not exceed the corresponding expected revenue for the preceding year by more than the permissable percentage.
B100: This requirement is set out in the NER at cl.6.18.6(b). This requirement does not apply in the first year of a new regulatory control period.
D102: =G15 -> 2023–24 with 2024–25 quantities ($m) | E102: =H15 -> 2024–25 ($m) | F102: =I15 -> weighted average % change | I102: Permissable percentage
B103: =Tables!C93 -> Residential | D103: =Tables!D93 -> 245.989484 | E103: =Tables!E93 -> 256.8744062 | F103: =Tables!F93 -> 0.04424954273 | H103: =Tables!H93 -> Inflation | I103: =Tables!J93 -> 0.04051987768
B104: =Tables!C94 -> Small and medium business | D104: =Tables!D94 -> 108.6223214 | E104: =Tables!E94 -> 113.4496484 | F104: =Tables!F94 -> 0.04444139042 | H104: =Tables!H94 -> X-factor (if X>0, X=0) | I104: =Tables!J94 -> -0.002175020693
B105: =Tables!C95 -> Large low voltage | D105: =Tables!D95 -> 100.0964793 | E105: =Tables!E95 -> 100.386638 | F105: =Tables!F95 -> 0.002898790114 | H105: =Tables!H95 -> S factor (STPIS 1.2) | I105: =Tables!J95 -> 0
B106: =Tables!C96 -> High voltage | D106: =Tables!D96 -> 17.29470971 | E106: =Tables!E96 -> 17.36518663 | F106: =Tables!F96 -> 0.004075057011 | H106: =Tables!H96 -> I factor | I106: =Tables!J96 -> -0.05325344262
B107: =Tables!C97 -> Sub-transmission | D107: =Tables!D97 -> 0.09606106293 | E107: =Tables!E97 -> 0.09639811929 | F107: =Tables!F97 -> 0.00350877193 | H107: =Tables!H97 -> C factor | I107: =Tables!J97 -> 0
B108: =Tables!C98 -> 0 | D108: =Tables!D98 -> 0 | E108: =Tables!E98 -> 0 | F108: =Tables!F98 -> 0 | H108: =Tables!H98 -> B factor | I108: =Tables!J98 -> 0.03415674418
B109: =Tables!C99 -> 0 | D109: =Tables!D99 -> 0 | E109: =Tables!E99 -> 0 | F109: =Tables!F99 -> 0 | H109: =Tables!H99 -> NER permissable change | I109: =Tables!J99 -> 0.02
B110: =Tables!C100 -> 0 | D110: =Tables!D100 -> 0 | E110: =Tables!E100 -> 0 | F110: =Tables!F100 -> 0
B111: =Tables!C101 -> 0 | D111: =Tables!D101 -> 0 | E111: =Tables!E101 -> 0 | F111: =Tables!F101 -> 0
B112: =Tables!C102 -> 0 | D112: =Tables!D102 -> 0 | E112: =Tables!E102 -> 0 | F112: =Tables!F102 -> 0
B113: =Tables!C103 -> 0 | D113: =Tables!D103 -> 0 | E113: =Tables!E103 -> 0 | F113: =Tables!F103 -> 0
B114: =Tables!C104 -> Total | D114: =Tables!D104 -> 472.0990554 | E114: =Tables!E104 -> 488.1722773 | F114: =Tables!F104 -> 0.03404629105 | H114: Permissable percentage | I114: =Tables!J100 -> 0.0445419921
B117: Tariff trials
B118: ="The below table provides trial tariff revenues for "&DNSP&" for "&forecastyear&" and historical years." -> The below table provides trial tariff revenues for United Energy for 2024–25 and historical years.
B119: ="This table supports the requirement for "&DNSP&" to ensure that the forecast revenue to be raised from a tariff trial in any year must not exceed a threshold of "&individualtrialthreshold*100&"%." -> This table supports the requirement for United Energy to ensure that the forecast revenue to be raised from a tariff trial in any year must not exceed a threshold of 1%.
B120: ="This table also supports the requirement for "&DNSP&" to ensure that the aggregate forecast revenue to be raised from all tariff trials in any year must not exceed a threshold of "&General!F22*100&"%." -> This table also supports the requirement for United Energy to ensure that the aggregate forecast revenue to be raised from all tariff trials in any year must not exceed a threshold of 5%.
B121: This requirement is set out in the NER at cl.6.18.1C(a). Historical years are provided for information.
D123: =previousyear -> 2022–23 | E123: =currentyear -> 2023–24 | F123: =forecastyear -> 2024–25
B124: =Compliance!C64 -> Residential daytime saver | D124: =INDEX(Compliance!$J64:$Q64,1,MATCH('Proposal report'!D$123,Compliance!$J$62:$Q$62,0)) -> 0 | E124: =INDEX(Compliance!$J64:$Q64,1,MATCH('Proposal report'!E$123,Compliance!$J$62:$Q$62,0)) -> 2.799828251e-06 | F124: =INDEX(Compliance!$J64:$Q64,1,MATCH('Proposal report'!F$123,Compliance!$J$62:$Q$62,0)) -> 0.0001614369049
B125: =Compliance!C65 -> Community battery time of use | D125: =INDEX(Compliance!$J65:$Q65,1,MATCH('Proposal report'!D$123,Compliance!$J$62:$Q$62,0)) -> 0 | E125: =INDEX(Compliance!$J65:$Q65,1,MATCH('Proposal report'!E$123,Compliance!$J$62:$Q$62,0)) -> 0 | F125: =INDEX(Compliance!$J65:$Q65,1,MATCH('Proposal report'!F$123,Compliance!$J$62:$Q$62,0)) -> 0
B126: =Compliance!C66 -> Distributor LV battery | D126: =INDEX(Compliance!$J66:$Q66,1,MATCH('Proposal report'!D$123,Compliance!$J$62:$Q$62,0)) -> 0 | E126: =INDEX(Compliance!$J66:$Q66,1,MATCH('Proposal report'!E$123,Compliance!$J$62:$Q$62,0)) -> 0 | F126: =INDEX(Compliance!$J66:$Q66,1,MATCH('Proposal report'!F$123,Compliance!$J$62:$Q$62,0)) -> 0
B127: =Compliance!C67 -> Pole-top battery | D127: =INDEX(Compliance!$J67:$Q67,1,MATCH('Proposal report'!D$123,Compliance!$J$62:$Q$62,0)) -> 0 | E127: =INDEX(Compliance!$J67:$Q67,1,MATCH('Proposal report'!E$123,Compliance!$J$62:$Q$62,0)) -> 0 | F127: =INDEX(Compliance!$J67:$Q67,1,MATCH('Proposal report'!F$123,Compliance!$J$62:$Q$62,0)) -> 0
B128: =Compliance!C68 -> Generator trial tariff | D128: =INDEX(Compliance!$J68:$Q68,1,MATCH('Proposal report'!D$123,Compliance!$J$62:$Q$62,0)) -> 0 | E128: =INDEX(Compliance!$J68:$Q68,1,MATCH('Proposal report'!E$123,Compliance!$J$62:$Q$62,0)) -> 0 | F128: =INDEX(Compliance!$J68:$Q68,1,MATCH('Proposal report'!F$123,Compliance!$J$62:$Q$62,0)) -> 2.123624824e-05
B129: =Compliance!C69 -> 0 | D129: =INDEX(Compliance!$J69:$Q69,1,MATCH('Proposal report'!D$123,Compliance!$J$62:$Q$62,0)) -> 0 | E129: =INDEX(Compliance!$J69:$Q69,1,MATCH('Proposal report'!E$123,Compliance!$J$62:$Q$62,0)) -> 0 | F129: =INDEX(Compliance!$J69:$Q69,1,MATCH('Proposal report'!F$123,Compliance!$J$62:$Q$62,0)) -> 0
B130: =Compliance!C70 -> 0 | D130: =INDEX(Compliance!$J70:$Q70,1,MATCH('Proposal report'!D$123,Compliance!$J$62:$Q$62,0)) -> 0 | E130: =INDEX(Compliance!$J70:$Q70,1,MATCH('Proposal report'!E$123,Compliance!$J$62:$Q$62,0)) -> 0 | F130: =INDEX(Compliance!$J70:$Q70,1,MATCH('Proposal report'!F$123,Compliance!$J$62:$Q$62,0)) -> 0
B131: =Compliance!C71 -> 0 | D131: =INDEX(Compliance!$J71:$Q71,1,MATCH('Proposal report'!D$123,Compliance!$J$62:$Q$62,0)) -> 0 | E131: =INDEX(Compliance!$J71:$Q71,1,MATCH('Proposal report'!E$123,Compliance!$J$62:$Q$62,0)) -> 0 | F131: =INDEX(Compliance!$J71:$Q71,1,MATCH('Proposal report'!F$123,Compliance!$J$62:$Q$62,0)) -> 0
B132: =Compliance!C72 -> 0 | D132: =INDEX(Compliance!$J72:$Q72,1,MATCH('Proposal report'!D$123,Compliance!$J$62:$Q$62,0)) -> 0 | E132: =INDEX(Compliance!$J72:$Q72,1,MATCH('Proposal report'!E$123,Compliance!$J$62:$Q$62,0)) -> 0 | F132: =INDEX(Compliance!$J72:$Q72,1,MATCH('Proposal report'!F$123,Compliance!$J$62:$Q$62,0)) -> 0
B133: =Compliance!C73 -> 0 | D133: =INDEX(Compliance!$J73:$Q73,1,MATCH('Proposal report'!D$123,Compliance!$J$62:$Q$62,0)) -> 0 | E133: =INDEX(Compliance!$J73:$Q73,1,MATCH('Proposal report'!E$123,Compliance!$J$62:$Q$62,0)) -> 0 | F133: =INDEX(Compliance!$J73:$Q73,1,MATCH('Proposal report'!F$123,Compliance!$J$62:$Q$62,0)) -> 0
B134: =Compliance!C74 -> 0 | D134: =INDEX(Compliance!$J74:$Q74,1,MATCH('Proposal report'!D$123,Compliance!$J$62:$Q$62,0)) -> 0 | E134: =INDEX(Compliance!$J74:$Q74,1,MATCH('Proposal report'!E$123,Compliance!$J$62:$Q$62,0)) -> 0 | F134: =INDEX(Compliance!$J74:$Q74,1,MATCH('Proposal report'!F$123,Compliance!$J$62:$Q$62,0)) -> 0
B135: =Compliance!C75 -> 0 | D135: =INDEX(Compliance!$J75:$Q75,1,MATCH('Proposal report'!D$123,Compliance!$J$62:$Q$62,0)) -> 0 | E135: =INDEX(Compliance!$J75:$Q75,1,MATCH('Proposal report'!E$123,Compliance!$J$62:$Q$62,0)) -> 0 | F135: =INDEX(Compliance!$J75:$Q75,1,MATCH('Proposal report'!F$123,Compliance!$J$62:$Q$62,0)) -> 0
B136: =Compliance!C76 -> 0 | D136: =INDEX(Compliance!$J76:$Q76,1,MATCH('Proposal report'!D$123,Compliance!$J$62:$Q$62,0)) -> 0 | E136: =INDEX(Compliance!$J76:$Q76,1,MATCH('Proposal report'!E$123,Compliance!$J$62:$Q$62,0)) -> 0 | F136: =INDEX(Compliance!$J76:$Q76,1,MATCH('Proposal report'!F$123,Compliance!$J$62:$Q$62,0)) -> 0
B137: =Compliance!C77 -> 0 | D137: =INDEX(Compliance!$J77:$Q77,1,MATCH('Proposal report'!D$123,Compliance!$J$62:$Q$62,0)) -> 0 | E137: =INDEX(Compliance!$J77:$Q77,1,MATCH('Proposal report'!E$123,Compliance!$J$62:$Q$62,0)) -> 0 | F137: =INDEX(Compliance!$J77:$Q77,1,MATCH('Proposal report'!F$123,Compliance!$J$62:$Q$62,0)) -> 0
B138: =Compliance!C78 -> 0 | D138: =INDEX(Compliance!$J78:$Q78,1,MATCH('Proposal report'!D$123,Compliance!$J$62:$Q$62,0)) -> 0 | E138: =INDEX(Compliance!$J78:$Q78,1,MATCH('Proposal report'!E$123,Compliance!$J$62:$Q$62,0)) -> 0 | F138: =INDEX(Compliance!$J78:$Q78,1,MATCH('Proposal report'!F$123,Compliance!$J$62:$Q$62,0)) -> 0
B139: =Compliance!C79 -> 0 | D139: =INDEX(Compliance!$J79:$Q79,1,MATCH('Proposal report'!D$123,Compliance!$J$62:$Q$62,0)) -> 0 | E139: =INDEX(Compliance!$J79:$Q79,1,MATCH('Proposal report'!E$123,Compliance!$J$62:$Q$62,0)) -> 0 | F139: =INDEX(Compliance!$J79:$Q79,1,MATCH('Proposal report'!F$123,Compliance!$J$62:$Q$62,0)) -> 0
B140: =Compliance!C80 -> 0 | D140: =INDEX(Compliance!$J80:$Q80,1,MATCH('Proposal report'!D$123,Compliance!$J$62:$Q$62,0)) -> 0 | E140: =INDEX(Compliance!$J80:$Q80,1,MATCH('Proposal report'!E$123,Compliance!$J$62:$Q$62,0)) -> 0 | F140: =INDEX(Compliance!$J80:$Q80,1,MATCH('Proposal report'!F$123,Compliance!$J$62:$Q$62,0)) -> 0
B141: =Compliance!C81 -> 0 | D141: =INDEX(Compliance!$J81:$Q81,1,MATCH('Proposal report'!D$123,Compliance!$J$62:$Q$62,0)) -> 0 | E141: =INDEX(Compliance!$J81:$Q81,1,MATCH('Proposal report'!E$123,Compliance!$J$62:$Q$62,0)) -> 0 | F141: =INDEX(Compliance!$J81:$Q81,1,MATCH('Proposal report'!F$123,Compliance!$J$62:$Q$62,0)) -> 0
B142: =Compliance!C82 -> 0 | D142: =INDEX(Compliance!$J82:$Q82,1,MATCH('Proposal report'!D$123,Compliance!$J$62:$Q$62,0)) -> 0 | E142: =INDEX(Compliance!$J82:$Q82,1,MATCH('Proposal report'!E$123,Compliance!$J$62:$Q$62,0)) -> 0 | F142: =INDEX(Compliance!$J82:$Q82,1,MATCH('Proposal report'!F$123,Compliance!$J$62:$Q$62,0)) -> 0
B143: =Compliance!C83 -> 0 | D143: =INDEX(Compliance!$J83:$Q83,1,MATCH('Proposal report'!D$123,Compliance!$J$62:$Q$62,0)) -> 0 | E143: =INDEX(Compliance!$J83:$Q83,1,MATCH('Proposal report'!E$123,Compliance!$J$62:$Q$62,0)) -> 0 | F143: =INDEX(Compliance!$J83:$Q83,1,MATCH('Proposal report'!F$123,Compliance!$J$62:$Q$62,0)) -> 0
B144: =Compliance!C84 -> Total trial tariffs | D144: =INDEX(Compliance!$J84:$Q84,1,MATCH('Proposal report'!D$123,Compliance!$J$62:$Q$62,0)) -> 0 | E144: =INDEX(Compliance!$J84:$Q84,1,MATCH('Proposal report'!E$123,Compliance!$J$62:$Q$62,0)) -> 2.799828251e-06 | F144: =INDEX(Compliance!$J84:$Q84,1,MATCH('Proposal report'!F$123,Compliance!$J$62:$Q$62,0)) -> 0.0001826731531
B147: Standalone and avoidable costs
B148: ="The below table provides the total revenues for each tariff class for "&DNSP&" for "&forecastyear&". Information on the standalone and avoidable costs for each tariff class is also provided." -> The below table provides the total revenues for each tariff class for United Energy for 2024–25. Information on the standalone and avoidable costs for each tariff class is also provided.
B149: ="This table supports the requirement for "&DNSP&" to ensure that the revenue expected to be recovered for each tariff class must lie between the stand alone cost of serving those customers, and the avoidable cost of not serving those customers." -> This table supports the requirement for United Energy to ensure that the revenue expected to be recovered for each tariff class must lie between the stand alone cost of serving those customers, and the avoidable cost of not serving those customers.
B150: This requirement is set out in the NER at cl.6.18.5(e).
D152: Avoidable costs ($m) | E152: Forecast revenue ($m) | F152: Standalone costs ($m)
B153: =Tables!C110 -> Residential | D153: =Tables!D110 -> 67.99208355 | E153: =Tables!E110 -> 256.8744062 | F153: =Tables!F110 -> 380.7106991
B154: =Tables!C111 -> Small and medium business | D154: =Tables!D111 -> 20.39762507 | E154: =Tables!E111 -> 113.4496484 | F154: =Tables!F111 -> 190.3553495
B155: =Tables!C112 -> Large low voltage | D155: =Tables!D112 -> 21.24752611 | E155: =Tables!E112 -> 100.386638 | F155: =Tables!F112 -> 237.9441869
B156: =Tables!C113 -> High voltage | D156: =Tables!D113 -> 5.099406266 | E156: =Tables!E113 -> 17.36518663 | F156: =Tables!F113 -> 142.7665122
B157: =Tables!C114 -> Sub-transmission | D157: =Tables!D114 -> 1e-12 | E157: =Tables!E114 -> 0.09639811929 | F157: =Tables!F114 -> 97.36392907
B158: =Tables!C115 -> 0 | D158: =Tables!D115 -> 0 | E158: =Tables!E115 -> 0 | F158: =Tables!F115 -> 0
B159: =Tables!C116 -> 0 | D159: =Tables!D116 -> 0 | E159: =Tables!E116 -> 0 | F159: =Tables!F116 -> 0
B160: =Tables!C117 -> 0 | D160: =Tables!D117 -> 0 | E160: =Tables!E117 -> 0 | F160: =Tables!F117 -> 0
B161: =Tables!C118 -> 0 | D161: =Tables!D118 -> 0 | E161: =Tables!E118 -> 0 | F161: =Tables!F118 -> 0
B162: =Tables!C119 -> 0 | D162: =Tables!D119 -> 0 | E162: =Tables!E119 -> 0 | F162: =Tables!F119 -> 0
B163: =Tables!C120 -> 0 | D163: =Tables!D120 -> 0 | E163: =Tables!E120 -> 0 | F163: =Tables!F120 -> 0

Sheet Model report
B1: ='Outputs>>'!B1 -> AER pricing model - United Energy 2024–25 | I1: Back to Index
B2: ='Outputs>>'!C8 -> Output report | J2: =IF(COUNTIF(E5:E68,"NON-COMPLIANT")+COUNTIF(E5:E68,"REVIEW")+COUNTIF(E5:E68,"NO")>0,"REVIEW","COMPLIANT") -> REVIEW | N2: =IF(COUNTIF(C30:Q41,"CHECK")>0,"CHECK","OK") -> OK | S2: VALIDATION
B3: ='Outputs>>'!D8 -> Provides output report including compliance, validations, trend analysis, and quantity forecast analysis | S3: =IF(COUNTIF(S5:S68,"CHECK")>0,"CHECK","OK") -> OK
B5: Output report 1 | Compliance | M5: Notes
C7: Total allowable revenues | E7: Compliant? | I7: Total revenue | J7: TAR | K7: Variance
C8: Distribution | E8: =Compliance!S12 -> COMPLIANT | I8: =SUM(Compliance!J8:J10) -> 488.2596043 | J8: =Compliance!J11 -> 488.2930916 | K8: =IF(J8=0,0,I8/J8-1) -> -6.858033472e-05 | S8: =IF(SUMPRODUCT(--_xlfn.ISFORMULA(E8:K8))=4,"OK","CHECK") -> OK
C9: Designated pricing proposal costs (DPPC) | E9: =IF(INDEX(Lookups!I129:I143,MATCH(DNSP,Lookups!G129:G143,0))="NT","N/A",Compliance!S19) -> COMPLIANT | I9: =SUM(Compliance!J14:J17) -> 166.8136322 | J9: =Compliance!J18 -> 166.8339644 | K9: =IF(J9=0,0,I9/J9-1) -> -0.0001218708366 | S9: =IF(SUMPRODUCT(--_xlfn.ISFORMULA(E9:K9))=4,"OK","CHECK") -> OK
C10: Jurisdictional scheme amounts (JSA) | E10: =IF(INDEX(Lookups!I129:I143,MATCH(DNSP,Lookups!G129:G143,0))="NT","N/A",IF(INDEX(Lookups!I129:I143,MATCH(DNSP,Lookups!G129:G143,0))="Tas","N/A",Compliance!S25)) -> COMPLIANT | I10: =SUM(Compliance!J21:J23) -> 8.248662997 | J10: =Compliance!J24 -> 8.267269531 | K10: =IF(J10=0,0,I10/J10-1) -> -0.002250626336 | S10: =IF(SUMPRODUCT(--_xlfn.ISFORMULA(E10:K10))=4,"OK","CHECK") -> OK
C11: Metering (Vic only) | E11: =IF(INDEX(Lookups!I129:I143,MATCH(DNSP,Lookups!G129:G143,0))="Vic",Compliance!S30,"N/A") -> COMPLIANT | I11: =SUM(Compliance!J27:J28) -> 35.17756101 | J11: =Compliance!J29 -> 35.18140759 | K11: =IF(J11=0,0,I11/J11-1) -> -0.0001093355111 | S11: =IF(SUMPRODUCT(--_xlfn.ISFORMULA(E11:K11))=4,"OK","CHECK") -> OK
C13: Unders/overs accounts | E13: Compliant? | I13: Closing balances | J13: Materiality
C14: Distribution | E14: =Compliance!S34 -> COMPLIANT | I14: =Compliance!J34 -> -0.03461124809 | J14: =IF(I14=0,0,I14/J8) -> -7.088211708e-05 | S14: =IF(SUMPRODUCT(--_xlfn.ISFORMULA(E14:J14))=3,"OK","CHECK") -> OK
C15: DPPC | E15: =IF(INDEX(Lookups!I129:I143,MATCH(DNSP,Lookups!G129:G143,0))="NT","N/A",Compliance!S35) -> COMPLIANT | I15: =Compliance!J35 -> -0.02101461037 | J15: =IF(I15=0,0,I15/J9) -> -0.0001259612241 | S15: =IF(SUMPRODUCT(--_xlfn.ISFORMULA(E15:J15))=3,"OK","CHECK") -> OK
C16: JSA | E16: =IF(INDEX(Lookups!I129:I143,MATCH(DNSP,Lookups!G129:G143,0))="NT","N/A",IF(INDEX(Lookups!I129:I143,MATCH(DNSP,Lookups!G129:G143,0))="Tas","N/A",Compliance!S36)) -> COMPLIANT | I16: =Compliance!J36 -> -0.01923103124 | J16: =IF(I16=0,0,I16/J10) -> -0.002326164784 | S16: =IF(SUMPRODUCT(--_xlfn.ISFORMULA(E16:J16))=3,"OK","CHECK") -> OK
C17: Metering (Vic only) | E17: =IF(INDEX(Lookups!I129:I143,MATCH(DNSP,Lookups!G129:G143,0))="Vic",Compliance!S37,"N/A") -> COMPLIANT | I17: =Compliance!J37 -> -0.003975681004 | J17: =IF(I17=0,0,I17/J11) -> -0.0001130051717 | S17: =IF(SUMPRODUCT(--_xlfn.ISFORMULA(E17:J17))=3,"OK","CHECK") -> OK
C19: Other compliance | E19: Compliant?
C20: Side constraints | E20: =IF(OR(Compliance!S41:S51="NON-COMPLIANT"),"NON-COMPLIANT","COMPLIANT") -> COMPLIANT | I20: Side constraint threshold | J20: =IF(sideconstraintmethod="Incremental",Compliance!L41,Compliance!N41) -> 0.0445419921 | S20: =IF(SUMPRODUCT(--_xlfn.ISFORMULA(E20:J20))=2,"OK","CHECK") -> OK
C21: Metering side constraints (Vic only) | E21: =IF(INDEX(Lookups!I129:I143,MATCH(DNSP,Lookups!G129:G143,0))="Vic",IF(OR(Compliance!S54:S60="NON-COMPLIANT"),"NON-COMPLIANT","COMPLIANT"),"N/A") -> COMPLIANT | I21: Side constraint threshold | J21: =IF(INDEX(Lookups!I129:I143,MATCH(DNSP,Lookups!G129:G143,0))="Vic",Compliance!L54,"N/A") -> 0.07760385973 | S21: =IF(SUMPRODUCT(--_xlfn.ISFORMULA(E21:J21))=2,"OK","CHECK") -> OK
C22: Trial tariff thresholds (individual) | E22: =IF(OR(Compliance!S64:S83="NON-COMPLIANT"),"NON-COMPLIANT","COMPLIANT") -> COMPLIANT | S22: =IF(_xlfn.ISFORMULA(E22),"OK","CHECK") -> OK
C23: Trial tariff thresholds (aggregate) | E23: =Compliance!S84 -> COMPLIANT | I23: =forecastyear&" aggregate %" -> 2024–25 aggregate % | J23: =INDEX(Compliance!J84:Q84,1,MATCH(forecastyear,Compliance!J62:Q62,0)) -> 0.0001826731531 | S23: =IF(SUMPRODUCT(--_xlfn.ISFORMULA(E23:J23))=3,"OK","CHECK") -> OK
C24: Standalone and avoidable costs | E24: =IF(OR(Compliance!S88:S98="NON-COMPLIANT"),"NON-COMPLIANT","COMPLIANT") -> COMPLIANT | S24: =IF(_xlfn.ISFORMULA(E24),"OK","CHECK") -> OK
C25: Movements from indicative prices | E25: =IF(Q34="OK","COMPLIANT","NON-COMPLIANT") -> COMPLIANT | S25: =IF(_xlfn.ISFORMULA(E25),"OK","CHECK") -> OK
B27: Output report 2 | Validations
C29: Validations | E29: Valid? | L29: =E29 -> Valid? | Q29: =E29 -> Valid?
